Transaction Number,Service - Fund ,Service  - Function ,Service - Cost Centre,Expense Type ,Expense Description,Supplier Name,Supplier Post Code (first 4 digits),Payment Date,Amount �
105118234,Physical Support,Adults,Physical Support 65 and over,3rd Party Payments,Personal Budget - Domiciliary care,247 HOME CARE LTD,SN5 ,15/09/2023,897.87
102208244,Physical Support,Adults,Physical Support 18 - 64,3rd Party Payments,Carers,247 HOME CARE LTD,SN5 ,04/09/2023,114.94
105117233,Physical Support,Adults,Physical Support 18 - 64,3rd Party Payments,Personal Budget - Domiciliary care,247 HOME CARE LTD,SN5 ,15/09/2023,"1,140.18"
102208246,Physical Support,Adults,Physical Support 65 and over,3rd Party Payments,Personal Budget - Domiciliary care,247 HOME CARE LTD,SN5 ,04/09/2023,-162.87
105117233,Physical Support,Adults,Physical Support 18 - 64,3rd Party Payments,Personal Budget - Domiciliary care,247 HOME CARE LTD,SN5 ,15/09/2023,-3.80
102208244,Physical Support,Adults,Physical Support 18 - 64,3rd Party Payments,Personal Budget - Domiciliary care,247 HOME CARE LTD,SN5 ,04/09/2023,-3.80
102208245,Physical Support,Adults,Physical Support 65 and over,3rd Party Payments,Personal Budget - Domiciliary care,247 HOME CARE LTD,SN5 ,04/09/2023,"1,099.98"
103785234,Physical Support,Adults,Physical Support 18 - 64,3rd Party Payments,Personal Budget - Domiciliary care,247 HOME CARE LTD,SN5 ,08/09/2023,"1,184.82"
105118234,Physical Support,Adults,Physical Support 65 and over,3rd Party Payments,Personal Budget - Domiciliary care,247 HOME CARE LTD,SN5 ,15/09/2023,-162.87
103786234,Physical Support,Adults,Physical Support 65 and over,3rd Party Payments,Personal Budget - Domiciliary care,247 HOME CARE LTD,SN5 ,08/09/2023,949.57
103786233,Physical Support,Adults,Physical Support 65 and over,3rd Party Payments,Personal Budget - Domiciliary care,247 HOME CARE LTD,SN5 ,08/09/2023,"1,099.98"
102208246,Physical Support,Adults,Physical Support 65 and over,3rd Party Payments,Personal Budget - Domiciliary care,247 HOME CARE LTD,SN5 ,04/09/2023,897.87
103785234,Physical Support,Adults,Physical Support 18 - 64,3rd Party Payments,Personal Budget - Domiciliary care,247 HOME CARE LTD,SN5 ,08/09/2023,-3.80
102208244,Physical Support,Adults,Physical Support 18 - 64,3rd Party Payments,Personal Budget - Domiciliary care,247 HOME CARE LTD,SN5 ,04/09/2023,"1,140.18"
105118233,Physical Support,Adults,Physical Support 65 and over,3rd Party Payments,Personal Budget - Domiciliary care,247 HOME CARE LTD,SN5 ,15/09/2023,"1,099.98"
103786234,Physical Support,Adults,Physical Support 65 and over,3rd Party Payments,Personal Budget - Domiciliary care,247 HOME CARE LTD,SN5 ,08/09/2023,-162.87
103785234,Physical Support,Adults,Physical Support 18 - 64,3rd Party Payments,Carers,247 HOME CARE LTD,SN5 ,08/09/2023,151.44
105117233,Physical Support,Adults,Physical Support 18 - 64,3rd Party Payments,Carers,247 HOME CARE LTD,SN5 ,15/09/2023,114.94
106139299,Social Care,Children & Families,Children's Resource and Home Finding Team,3rd Party Payments,Residential Care,4D CARE LTD,PE14,22/09/2023,"18,213.90"
102259233,School Transport,"Education, Inclusion and Skills",Mainstream School Transport,Transport Costs,Home to School Transport,4K TRAVEL LTD,SN2 ,01/09/2023,"4,824.60"
102258234,School Transport,"Education, Inclusion and Skills",Mainstream School Transport,Transport Costs,Home to School Transport,4K TRAVEL LTD,SN2 ,01/09/2023,"2,362.50"
102260234,School Transport,"Education, Inclusion and Skills",Mainstream School Transport,Transport Costs,Home to School Transport,4K TRAVEL LTD,SN2 ,01/09/2023,"2,362.50"
103661233,Highways Schemes,Strategic Planning and Highways,Whalebridge Junction,Capital,Internal Fees,A PLUS SAFETY & TRAINING SERVICES LTD,SN3 ,06/09/2023,549.00
105317233,Homelessness and Travellers,Housing Services,Private Sector Landlords,Transfer Payments,Payment of Costs,REDACTED PERSONAL DATA,SN3 ,15/09/2023,"2,000.00"
106416299,Homelessness and Travellers,Housing Services,Private Sector Landlords,Transfer Payments,Payment of Costs,REDACTED PERSONAL DATA,SN3 ,25/09/2023,800.00
105680233,Human Resources and Organisational Development,"People, Culture and Organisational Resilience",Organisational Development,Employees,Training,A1 RISK SOLUTIONS LIMITED,OL5 ,20/09/2023,750.00
104397233,Human Resources and Organisational Development,"People, Culture and Organisational Resilience",HR Operations,Employees,Temporary / Agency - by Accounts Payable,AB RECRUITMENT SOLUTIONS LTD,SN2 ,11/09/2023,"3,480.00"
105059249,Other Repairs,Repairs,Cyclical Maintenance,Supplies and Services,Testing / Inspection,ABBEY ELECTRICAL (SWINDON) LTD T/A ABBEY ELECTRICAL UK,SN6 ,13/09/2023,"1,030.01"
105059245,Other Repairs,Repairs,Cyclical Maintenance,Supplies and Services,Testing / Inspection,ABBEY ELECTRICAL (SWINDON) LTD T/A ABBEY ELECTRICAL UK,SN6 ,13/09/2023,"1,291.34"
105059247,Other Repairs,Repairs,Cyclical Maintenance,Supplies and Services,Testing / Inspection,ABBEY ELECTRICAL (SWINDON) LTD T/A ABBEY ELECTRICAL UK,SN6 ,13/09/2023,"1,435.12"
105059246,Other Repairs,Repairs,Cyclical Maintenance,Supplies and Services,Testing / Inspection,ABBEY ELECTRICAL (SWINDON) LTD T/A ABBEY ELECTRICAL UK,SN6 ,13/09/2023,"1,344.00"
102554233,Other Repairs,Repairs,Unallocated job costs from OPEN system,Premises Costs,Maintenance - Buildings,ABBEY ELECTRICAL (SWINDON) LTD T/A ABBEY ELECTRICAL UK,SN6 ,01/09/2023,510.47
105059243,Other Repairs,Repairs,Cyclical Maintenance,Supplies and Services,Testing / Inspection,ABBEY ELECTRICAL (SWINDON) LTD T/A ABBEY ELECTRICAL UK,SN6 ,13/09/2023,"1,291.34"
105814233,Early Years Block,Dedicated Schools Grant (DSG),Free Nursery Education Commissioning - three & four  year olds,3rd Party Payments,Contracts - Child Care,ABBEY FARM EDUCATE TOGETHER PRIMARY,SN25,20/09/2023,"6,625.32"
105388297,High Needs Block,Dedicated Schools Grant (DSG),SEN Resourcing Assessment Panel,3rd Party Payments,Top up funding - Academies and Free Schools Pre 16,ABBEY MEADS COMMUNITY PRIMARY SCHOOL,SN25,15/09/2023,"4,864.17"
105708233,Early Years Block,Dedicated Schools Grant (DSG),Free Nursery Education Commissioning - three & four  year olds,3rd Party Payments,Contracts - Child Care,ABBEY MEADS COMMUNITY PRIMARY SCHOOL,SN25,20/09/2023,"31,716.72"
106751233,Early Years Block,Dedicated Schools Grant (DSG),Free Nursery Education Commissioning - three & four  year olds,3rd Party Payments,Contracts - Child Care,ABBEY MEADS COMMUNITY PRIMARY SCHOOL,SN25,27/09/2023,"2,280.00"
104765233,Public Health,Public Health,Sexual Health & Health Protection Budget,3rd Party Payments,Contract Payments,ABBEY MEADS MEDICAL GROUP,SN25,13/09/2023,510.00
102661233,Physical Support,Adults,Physical Support 18 - 64,3rd Party Payments,Personal Budget - Domiciliary care,ABICARE SERVICES LTD,BS32,01/09/2023,586.96
102373257,Physical Support,Adults,Physical Support 65 and over,3rd Party Payments,Personal Budget - Domiciliary care,ABICARE SERVICES LTD,BS32,01/09/2023,322.56
102373257,Physical Support,Adults,Physical Support 65 and over,3rd Party Payments,Personal Budget - Domiciliary care,ABICARE SERVICES LTD,BS32,01/09/2023,"1,322.94"
105221233,Physical Support,Adults,Physical Support 18 - 64,3rd Party Payments,Personal Budget - Domiciliary care,ABICARE SERVICES LTD,BS32,15/09/2023,581.90
103998240,Physical Support,Adults,Physical Support 18 - 64,3rd Party Payments,Personal Budget - Domiciliary care,ABICARE SERVICES LTD,BS32,08/09/2023,577.96
103998254,Mental Health,Adults,Mental Health 65 and over,3rd Party Payments,Personal Budget - Domiciliary care,ABICARE SERVICES LTD (LIVE IN),SP2 ,08/09/2023,"1,106.00"
103998253,Mental Health,Adults,Mental Health 65 and over,3rd Party Payments,Personal Budget - Domiciliary care,ABICARE SERVICES LTD (LIVE IN),SP2 ,08/09/2023,"1,106.00"
103998250,Physical Support,Adults,Physical Support 18 - 64,3rd Party Payments,Personal Budget - Domiciliary care,ABICARE SERVICES LTD (LIVE IN),SP2 ,08/09/2023,"1,200.00"
102373259,Physical Support,Adults,Physical Support 65 and over,3rd Party Payments,Personal Budget - Domiciliary care,ABICARE SERVICES LTD (LIVE IN),SP2 ,01/09/2023,322.56
102665233,Mental Health,Adults,Mental Health 65 and over,3rd Party Payments,Personal Budget - Domiciliary care,ABICARE SERVICES LTD (LIVE IN),SP2 ,01/09/2023,"1,106.00"
105228233,Mental Health,Adults,Mental Health 65 and over,3rd Party Payments,Personal Budget - Domiciliary care,ABICARE SERVICES LTD (LIVE IN),SP2 ,15/09/2023,"1,106.00"
102664234,Physical Support,Adults,Physical Support 18 - 64,3rd Party Payments,Personal Budget - Domiciliary care,ABICARE SERVICES LTD (LIVE IN),SP2 ,01/09/2023,"1,106.00"
102663235,Physical Support,Adults,Physical Support 18 - 64,3rd Party Payments,Personal Budget - Domiciliary care,ABICARE SERVICES LTD (LIVE IN),SP2 ,01/09/2023,"1,200.00"
105225233,Physical Support,Adults,Physical Support 18 - 64,3rd Party Payments,Personal Budget - Domiciliary care,ABICARE SERVICES LTD (LIVE IN),SP2 ,15/09/2023,"1,200.00"
105226233,Physical Support,Adults,Physical Support 65 and over,3rd Party Payments,Personal Budget - Domiciliary care,ABICARE SERVICES LTD (LIVE IN),SP2 ,15/09/2023,"1,200.00"
105229233,Mental Health,Adults,Mental Health 65 and over,3rd Party Payments,Personal Budget - Domiciliary care,ABICARE SERVICES LTD (LIVE IN),SP2 ,15/09/2023,"1,106.00"
102665234,Mental Health,Adults,Mental Health 65 and over,3rd Party Payments,Personal Budget - Domiciliary care,ABICARE SERVICES LTD (LIVE IN),SP2 ,01/09/2023,"1,106.00"
105227233,Physical Support,Adults,Physical Support 18 - 64,3rd Party Payments,Personal Budget - Domiciliary care,ABICARE SERVICES LTD (LIVE IN),SP2 ,15/09/2023,"1,106.00"
102664233,Physical Support,Adults,Physical Support 65 and over,3rd Party Payments,Personal Budget - Domiciliary care,ABICARE SERVICES LTD (LIVE IN),SP2 ,01/09/2023,"1,200.00"
103998251,Physical Support,Adults,Physical Support 65 and over,3rd Party Payments,Personal Budget - Domiciliary care,ABICARE SERVICES LTD (LIVE IN),SP2 ,08/09/2023,"1,200.00"
103998252,Physical Support,Adults,Physical Support 18 - 64,3rd Party Payments,Personal Budget - Domiciliary care,ABICARE SERVICES LTD (LIVE IN),SP2 ,08/09/2023,"1,106.00"
102373259,Physical Support,Adults,Physical Support 65 and over,3rd Party Payments,Personal Budget - Domiciliary care,ABICARE SERVICES LTD (LIVE IN),SP2 ,01/09/2023,"1,322.94"
105299240,Social Care,Children & Families,Placement - Care Leaver Team,3rd Party Payments,Semi Independent,ABIDING LIMITED T/A ABIDING CARE,OX4 ,15/09/2023,"13,234.78"
105299239,Social Care,Children & Families,Unaccompanied Asylum Seeking Children (UASC),3rd Party Payments,Semi Independent,ABIDING LIMITED T/A ABIDING CARE,OX4 ,15/09/2023,"11,569.74"
105814234,Early Years Block,Dedicated Schools Grant (DSG),Free Nursery Education Commissioning - three & four  year olds,3rd Party Payments,Contracts - Child Care,REDACTED PERSONAL DATA,SN2 ,20/09/2023,686.00
107156233,Social Care,Children & Families,Placement Fostering Service,Supplies and Services,Service Charges,AC EDUCATION,AL2 ,27/09/2023,750.00
104117233,Streetsmart,Streetsmart,Waterside Fleet Hires,Transport Costs,Vehicle Hire / Contract,ACCESS HIRE NATIONWIDE,WF6 ,08/09/2023,"1,671.79"
104116233,Streetsmart,Streetsmart,Waterside Fleet Hires,Transport Costs,Vehicle Hire / Contract,ACCESS HIRE NATIONWIDE,WF6 ,08/09/2023,"1,675.00"
103553233,Schools Maintenance,Skills & Attainment,Capita One education,Capital,Contractor Payments,ACCESS UK LTD,LE11,06/09/2023,"37,221.00"
102262233,Learning Disabilities,Adults,Learning Disability 18 - 64,3rd Party Payments,Residential Care,ACHIEVE TOGETHER LTD,BA2 ,01/09/2023,"5,985.70"
103803233,Learning Disabilities,Adults,Learning Disability 18 - 64,3rd Party Payments,Residential Care,ACHIEVE TOGETHER LTD,BA2 ,06/09/2023,"5,985.70"
102269233,Learning Disabilities,Adults,Learning Disability 18 - 64,3rd Party Payments,Residential Care,ACHIEVE TOGETHER LTD,BA2 ,01/09/2023,"5,985.70"
102267233,Learning Disabilities,Adults,Learning Disability 18 - 64,3rd Party Payments,Residential Care,ACHIEVE TOGETHER LTD,BA2 ,01/09/2023,"5,792.61"
106416320,Homelessness and Travellers,Housing Services,Private Sector Landlords,Transfer Payments,Payment of Costs,REDACTED PERSONAL DATA,SN8 ,25/09/2023,700.00
106416358,Homelessness and Travellers,Housing Services,Private Sector Landlords,Transfer Payments,Payment of Costs,REDACTED PERSONAL DATA,SN8 ,25/09/2023,650.00
103073237,Social Care,Children & Families,Children's Resource and Home Finding Team,3rd Party Payments,Independent Fostering Agency Placements,ACTION FOR CHILDREN,WD18,04/09/2023,"3,175.33"
103073239,Social Care,Children & Families,Children's Resource and Home Finding Team,3rd Party Payments,Independent Fostering Agency Placements,ACTION FOR CHILDREN,WD18,04/09/2023,"3,660.17"
103073240,Social Care,Children & Families,Children's Resource and Home Finding Team,3rd Party Payments,Independent Fostering Agency Placements,ACTION FOR CHILDREN,WD18,04/09/2023,"3,542.10"
103074233,Social Care,Children & Families,Children's Resource and Home Finding Team,3rd Party Payments,Independent Fostering Agency Placements,ACTION FOR CHILDREN,WD18,04/09/2023,"3,660.17"
103073234,Social Care,Children & Families,Children's Resource and Home Finding Team,3rd Party Payments,Independent Fostering Agency Placements,ACTION FOR CHILDREN,WD18,04/09/2023,"3,068.70"
103073235,Social Care,Children & Families,Children's Resource and Home Finding Team,3rd Party Payments,Independent Fostering Agency Placements,ACTION FOR CHILDREN,WD18,04/09/2023,"3,170.99"
103073238,Social Care,Children & Families,Children's Resource and Home Finding Team,3rd Party Payments,Independent Fostering Agency Placements,ACTION FOR CHILDREN,WD18,04/09/2023,"3,542.10"
103073236,Social Care,Children & Families,Children's Resource and Home Finding Team,3rd Party Payments,Independent Fostering Agency Placements,ACTION FOR CHILDREN,WD18,04/09/2023,"3,072.90"
105388352,High Needs Block,Dedicated Schools Grant (DSG),SEN Resourcing Assessment Panel,3rd Party Payments,Top up funding - Academies and Free Schools Post 16,ACTIVATE LEARNING EDUCATION TRUST,OX1 ,15/09/2023,660.83
103077233,Social Care,Children & Families,Unaccompanied Asylum Seeking Children (UASC),3rd Party Payments,Independent Fostering Agency Placements,ACTIVE CARE SOLUTIONS LTD,B60 ,04/09/2023,"4,345.58"
103078234,Social Care,Children & Families,Children's Resource and Home Finding Team,3rd Party Payments,Independent Fostering Agency Placements,ACTIVE CARE SOLUTIONS LTD,B60 ,04/09/2023,"3,365.36"
103078233,Social Care,Children & Families,Children's Resource and Home Finding Team,3rd Party Payments,Independent Fostering Agency Placements,ACTIVE CARE SOLUTIONS LTD,B60 ,04/09/2023,"3,277.01"
103076233,Social Care,Children & Families,Children's Resource and Home Finding Team,3rd Party Payments,Independent Fostering Agency Placements,ACTIVE CARE SOLUTIONS LTD,B60 ,04/09/2023,"6,394.68"
103881259,Learning Disabilities,Adults,Learning Disability 18 - 64,Transfer Payments,Personal Budget - Direct Payments - Domiciliary Care,REDACTED PERSONAL DATA,SN4 ,06/09/2023,"1,230.65"
103881514,Learning Disabilities,Adults,Learning Disability 18 - 64,Transfer Payments,Personal Budget - Direct Payments - Domiciliary Care,REDACTED PERSONAL DATA,SN3 ,06/09/2023,"2,115.93"
106416319,Homelessness and Travellers,Housing Services,Private Sector Landlords,Transfer Payments,Payment of Costs,ADVANCE HOUSING & SUPPORT LTD,OX28,25/09/2023,"1,074.00"
104012241,Social Care,Children & Families,Children's Resource and Home Finding Team,3rd Party Payments,Independent Fostering Agency Placements,AFFINITY FOSTERING SERVICES LTD,CM4 ,08/09/2023,"3,813.00"
104012236,Social Care,Children & Families,Children's Resource and Home Finding Team,3rd Party Payments,Independent Fostering Agency Placements,AFFINITY FOSTERING SERVICES LTD,CM4 ,08/09/2023,"5,646.34"
104012237,Social Care,Children & Families,Children's Resource and Home Finding Team,3rd Party Payments,Independent Fostering Agency Placements,AFFINITY FOSTERING SERVICES LTD,CM4 ,08/09/2023,"5,646.34"
104012238,Social Care,Children & Families,Children's Resource and Home Finding Team,3rd Party Payments,Independent Fostering Agency Placements,AFFINITY FOSTERING SERVICES LTD,CM4 ,08/09/2023,"3,813.00"
104012239,Social Care,Children & Families,Children's Resource and Home Finding Team,3rd Party Payments,Independent Fostering Agency Placements,AFFINITY FOSTERING SERVICES LTD,CM4 ,08/09/2023,"3,813.00"
104012240,Social Care,Children & Families,Children's Resource and Home Finding Team,3rd Party Payments,Independent Fostering Agency Placements,AFFINITY FOSTERING SERVICES LTD,CM4 ,08/09/2023,"3,813.00"
107356233,Landscaping & Open Space,Culture & Heritage & Art,Moredon Recreation - Multi Sports Hub,Capital,Contractor Payments,AGGREGATE INDUSTRIES UK LTD T/A SPADEOAK,HP10,29/09/2023,"274,659.12"
105370373,Learning Disabilities,Adults,Learning Disability 65 and over,3rd Party Payments,Supported Lodgings (Childrens)/Supported Living (Adults),AGINCARE ENABLE LTD,DT5 ,15/09/2023,"6,099.00"
105370373,Learning Disabilities,Adults,Learning Disability 65 and over,3rd Party Payments,Supported Lodgings (Childrens)/Supported Living (Adults),AGINCARE ENABLE LTD,DT5 ,15/09/2023,"2,573.48"
105370373,Learning Disabilities,Adults,Learning Disability 65 and over,Income,Client Contribution - Supported Living,AGINCARE ENABLE LTD,DT5 ,15/09/2023,-476.60
105370302,Physical Support,Adults,Physical Support 65 and over,3rd Party Payments,Residential Care,AGINCARE LTD,DT5 ,15/09/2023,"3,780.00"
105370302,Physical Support,Adults,Physical Support 65 and over,Income,Client Contribution - Residential,AGINCARE LTD,DT5 ,15/09/2023,"-1,231.12"
Corporate Card Transaction,Landlord Services,Supervision & Management,Estate Management Team,Premises Costs,Non-contract Cleaning,Airbnb * Hmnt43atpz,,18/09/2023,1243.1
Corporate Card Transaction,Landlord Services,Supervision & Management,Estate Management Team,Premises Costs,Non-contract Cleaning,Airbnb * Hmpte2ft3f,,18/09/2023,1449.05
103097233,Travel,Highways & Transport,Public Transport,3rd Party Payments,Contract Payments,AKCESS CIC,SN2 ,04/09/2023,"15,023.18"
102241233,School Transport,"Education, Inclusion and Skills",Mainstream School Transport,Transport Costs,Home to School Transport,AKCESS CIC,SN2 ,01/09/2023,"4,158.00"
103177233,School Transport,"Education, Inclusion and Skills",Mainstream School Transport,Transport Costs,Home to School Transport,AKCESS CIC,SN2 ,04/09/2023,"64,598.21"
104724233,Travel,Highways & Transport,Concessionary Travel,3rd Party Payments,Concessionary Travel Subsidy,AKCESS CIC,SN2 ,13/09/2023,621.60
105493233,Senior Management Team,Children & Families,Family Safeguarding Model,Supplies and Services,Services,ALASDAIR CANT & ASSOCIATES LIMITED,CB2 ,18/09/2023,"4,350.00"
105186233,Learning Disabilities,Adults,Learning Disability 18 - 64,3rd Party Payments,Supported Accommodation Scheme,REDACTED PERSONAL DATA,SN2 ,20/09/2023,"2,850.00"
103179233,Physical Support,Adults,Physical Support 18 - 64,3rd Party Payments,Supported Lodgings (Childrens)/Supported Living (Adults),REDACTED PERSONAL DATA,SN2 ,13/09/2023,528.00
102790233,Disabled Children,Children & Families,DCT Daytime Short Breaks,Transfer Payments,Personal Budget - Direct Payments - Other,REDACTED PERSONAL DATA,SN1 ,01/09/2023,661.50
103881532,Learning Disabilities,Adults,Learning Disability 18 - 64,Transfer Payments,Personal Budget - Direct Payments - Domiciliary Care,REDACTED PERSONAL DATA,SN25,06/09/2023,"1,082.42"
105814237,Early Years Block,Dedicated Schools Grant (DSG),Free Nursery Education Commissioning - two year olds,3rd Party Payments,Contracts - Child Care,ALFRESCO CHILDCARE,SN6 ,20/09/2023,864.64
105814236,Early Years Block,Dedicated Schools Grant (DSG),Free Nursery Education Commissioning - three & four  year olds,3rd Party Payments,Contracts - Child Care,ALFRESCO CHILDCARE,SN6 ,20/09/2023,"6,840.40"
105215233,Learning Disabilities,Adults,Learning Disability 18 - 64,3rd Party Payments,Supported Accommodation Scheme,REDACTED PERSONAL DATA,SN1 ,20/09/2023,"3,332.50"
103881627,Learning Disabilities,Adults,Learning Disability 18 - 64,Transfer Payments,Personal Budget - Direct Payments - Domiciliary Care,REDACTED PERSONAL DATA,SN4 ,06/09/2023,"7,574.42"
105216233,Learning Disabilities,Adults,Learning Disability 18 - 64,3rd Party Payments,Supported Accommodation Scheme,REDACTED PERSONAL DATA,SN2 ,20/09/2023,827.14
105216233,Learning Disabilities,Adults,Learning Disability 18 - 64,3rd Party Payments,Supported Accommodation Scheme,REDACTED PERSONAL DATA,SN2 ,20/09/2023,"2,300.00"
105216233,Learning Disabilities,Adults,Learning Disability 18 - 64,3rd Party Payments,Supported Accommodation Scheme,REDACTED PERSONAL DATA,SN2 ,20/09/2023,"2,782.50"
105216233,Learning Disabilities,Adults,Learning Disability 18 - 64,3rd Party Payments,Supported Accommodation Scheme,REDACTED PERSONAL DATA,SN2 ,20/09/2023,"2,332.50"
103881261,Learning Disabilities,Adults,Learning Disability 18 - 64,Transfer Payments,Personal Budget - Direct Payments - Domiciliary Care,REDACTED PERSONAL DATA,SN5 ,06/09/2023,"9,467.22"
105710233,Early Years Block,Dedicated Schools Grant (DSG),Free Nursery Education Commissioning - two year olds,3rd Party Payments,Contracts - Child Care,REDACTED PERSONAL DATA,SN25,20/09/2023,"1,204.32"
105709233,Early Years Block,Dedicated Schools Grant (DSG),Free Nursery Education Commissioning - three & four  year olds,3rd Party Payments,Contracts - Child Care,REDACTED PERSONAL DATA,SN25,20/09/2023,"7,534.80"
105814238,Early Years Block,Dedicated Schools Grant (DSG),Free Nursery Education Commissioning - three & four  year olds,3rd Party Payments,Contracts - Child Care,REDACTED PERSONAL DATA,SN1 ,20/09/2023,588.00
105814239,Early Years Block,Dedicated Schools Grant (DSG),Free Nursery Education Commissioning - three & four  year olds,3rd Party Payments,Contracts - Child Care,REDACTED PERSONAL DATA,SN1 ,20/09/2023,"1,215.20"
103881420,Learning Disabilities,Adults,Learning Disability 18 - 64,Transfer Payments,Personal Budget - Direct Payments - Domiciliary Care,REDACTED PERSONAL DATA,SN5 ,06/09/2023,"3,665.69"
103704233,Local Transport Plan Funded,Strategic Planning and Highways,Rights of way Improvement Plan,Capital,Contractor Payments,ALLBUILD BUILDING & LANDSCAPING SERVICES,SN25,06/09/2023,350.00
103749233,Environmental & Regulatory,Highways & Transport,Shaw Farm Landfill Site,Supplies and Services,Testing / Inspection,ALLBUILD BUILDING & LANDSCAPING SERVICES,SN25,06/09/2023,"2,638.00"
103704233,Highways & Transport,Highways & Transport,Rights of Way (ROW),Supplies and Services,Repairs & Maintenance,ALLBUILD BUILDING & LANDSCAPING SERVICES,SN25,06/09/2023,900.00
106063234,Property & Assets,Property & Assets,General Enhancement Works Corporate Buildings,Capital,Contractor Payments,ALLEN & FOXWORTHY LIMITED,SN25,20/09/2023,"2,250.00"
105914233,Streetsmart,Streetsmart,Waterside Fleet Workshops,Supplies and Services,Equipment,ALLIANCE AUTOMOTIVE UK T/A BRAYMARC,BD4 ,20/09/2023,915.00
105034233,Landlord Services,Supervision & Management,Estate Management Team,Supplies and Services,Contracts,ALLPAY-NET LIMITED,HR1 ,13/09/2023,"1,910.72"
104086234,Treasury,Corporate Finance,Treasury,Supplies and Services,Bank Charges,ALLPAY-NET LIMITED,HR1 ,08/09/2023,"1,206.12"
105711233,Early Years Block,Dedicated Schools Grant (DSG),Free Nursery Education Commissioning - two year olds,3rd Party Payments,Contracts - Child Care,ALPHA PRE-SCHOOL,SN5 ,20/09/2023,"7,781.76"
103806233,Early Years Block,Dedicated Schools Grant (DSG),Free Nursery Education Commissioning - two year olds,3rd Party Payments,Contracts - Child Care,ALPHA PRE-SCHOOL,SN5 ,06/09/2023,"1,127.10"
105712233,Early Years Block,Dedicated Schools Grant (DSG),Free Nursery Education Commissioning - three & four  year olds,3rd Party Payments,Contracts - Child Care,ALPHA PRE-SCHOOL,SN5 ,20/09/2023,"5,312.16"
103805233,Early Years Block,Dedicated Schools Grant (DSG),Free Nursery Education Commissioning - three & four  year olds,3rd Party Payments,Contracts - Child Care,ALPHA PRE-SCHOOL,SN5 ,06/09/2023,986.18
103294233,Disabled Children,Children & Families,DCT Daytime Short Breaks,3rd Party Payments,Respite Care,ALPHA24 HEALTHCARE LTD,EC3A,06/09/2023,"1,080.00"
102700233,Disabled Children,Children & Families,DCT Daytime Short Breaks,3rd Party Payments,Respite Care,ALPHA24 HEALTHCARE LTD,EC3A,01/09/2023,"1,080.00"
102694233,Disabled Children,Children & Families,DCT Daytime Short Breaks,3rd Party Payments,Respite Care,ALPHA24 HEALTHCARE LTD,EC3A,01/09/2023,"1,800.00"
102398233,Disabled Children,Children & Families,DCT Daytime Short Breaks,3rd Party Payments,Respite Care,ALPHA24 HEALTHCARE LTD,EC3A,01/09/2023,"1,080.00"
102390233,Disabled Children,Children & Families,DCT Daytime Short Breaks,3rd Party Payments,Respite Care,ALPHA24 HEALTHCARE LTD,EC3A,01/09/2023,"1,440.00"
104694233,Social Care,Children & Families,Assessment and Child Protection Team,3rd Party Payments,Personal Needs,ALPHA24 HEALTHCARE LTD,EC3A,13/09/2023,690.00
106519233,Disabled Children,Children & Families,DCT Daytime Short Breaks,3rd Party Payments,Respite Care,ALPHA24 HEALTHCARE LTD,EC3A,22/09/2023,720.00
102620233,Disabled Children,Children & Families,DCT Daytime Short Breaks,3rd Party Payments,Respite Care,ALPHA24 HEALTHCARE LTD,EC3A,01/09/2023,"1,080.00"
102320233,Disabled Children,Children & Families,DCT Daytime Short Breaks,3rd Party Payments,Respite Care,ALPHA24 HEALTHCARE LTD,EC3A,01/09/2023,"1,080.00"
106061233,Disabled Children,Children & Families,DCT Daytime Short Breaks,3rd Party Payments,Respite Care,ALPHA24 HEALTHCARE LTD,EC3A,20/09/2023,720.00
106057233,Disabled Children,Children & Families,DCT Daytime Short Breaks,3rd Party Payments,Respite Care,ALPHA24 HEALTHCARE LTD,EC3A,20/09/2023,"1,080.00"
105707233,Disabled Children,Children & Families,DCT Daytime Short Breaks,3rd Party Payments,Respite Care,ALPHA24 HEALTHCARE LTD,EC3A,20/09/2023,720.00
102405234,Disabled Children,Children & Families,DCT Daytime Short Breaks,3rd Party Payments,Respite Care,ALPHA24 HEALTHCARE LTD,EC3A,01/09/2023,720.00
102393234,Disabled Children,Children & Families,DCT Daytime Short Breaks,3rd Party Payments,Respite Care,ALPHA24 HEALTHCARE LTD,EC3A,01/09/2023,720.00
104734233,Social Care,Children & Families,Assessment and Child Protection Team,3rd Party Payments,Personal Needs,ALPHA24 HEALTHCARE LTD,EC3A,13/09/2023,"1,260.00"
104695233,Social Care,Children & Families,Assessment and Child Protection Team,3rd Party Payments,Personal Needs,ALPHA24 HEALTHCARE LTD,EC3A,13/09/2023,840.00
106518233,Disabled Children,Children & Families,DCT Daytime Short Breaks,3rd Party Payments,Respite Care,ALPHA24 HEALTHCARE LTD,EC3A,22/09/2023,"1,080.00"
103283233,Disabled Children,Children & Families,DCT Daytime Short Breaks,3rd Party Payments,Respite Care,ALPHA24 HEALTHCARE LTD,EC3A,06/09/2023,"1,080.00"
103297233,Disabled Children,Children & Families,DCT Daytime Short Breaks,3rd Party Payments,Respite Care,ALPHA24 HEALTHCARE LTD,EC3A,06/09/2023,720.00
102701233,Disabled Children,Children & Families,DCT Daytime Short Breaks,3rd Party Payments,Respite Care,ALPHA24 HEALTHCARE LTD,EC3A,01/09/2023,720.00
102308233,Disabled Children,Children & Families,DCT Daytime Short Breaks,3rd Party Payments,Respite Care,ALPHA24 HEALTHCARE LTD,EC3A,01/09/2023,"1,080.00"
102621233,Disabled Children,Children & Families,DCT Daytime Short Breaks,3rd Party Payments,Respite Care,ALPHA24 HEALTHCARE LTD,EC3A,01/09/2023,"1,440.00"
102397233,Disabled Children,Children & Families,DCT Daytime Short Breaks,3rd Party Payments,Respite Care,ALPHA24 HEALTHCARE LTD,EC3A,01/09/2023,"1,440.00"
102321233,Disabled Children,Children & Families,DCT Daytime Short Breaks,3rd Party Payments,Respite Care,ALPHA24 HEALTHCARE LTD,EC3A,01/09/2023,"1,440.00"
102310233,Disabled Children,Children & Families,DCT Daytime Short Breaks,3rd Party Payments,Respite Care,ALPHA24 HEALTHCARE LTD,EC3A,01/09/2023,720.00
104735233,Social Care,Children & Families,Assessment and Child Protection Team,3rd Party Payments,Personal Needs,ALPHA24 HEALTHCARE LTD,EC3A,13/09/2023,"1,170.00"
105690233,Disabled Children,Children & Families,DCT Daytime Short Breaks,3rd Party Payments,Respite Care,ALPHA24 HEALTHCARE LTD,EC3A,20/09/2023,"1,080.00"
102622233,Disabled Children,Children & Families,DCT Daytime Short Breaks,3rd Party Payments,Respite Care,ALPHA24 HEALTHCARE LTD,EC3A,01/09/2023,"1,080.00"
102386234,Disabled Children,Children & Families,DCT Daytime Short Breaks,3rd Party Payments,Respite Care,ALPHA24 HEALTHCARE LTD,EC3A,01/09/2023,"1,440.00"
105705233,Disabled Children,Children & Families,DCT Daytime Short Breaks,3rd Party Payments,Respite Care,ALPHA24 HEALTHCARE LTD,EC3A,20/09/2023,720.00
102403233,Disabled Children,Children & Families,DCT Daytime Short Breaks,3rd Party Payments,Respite Care,ALPHA24 HEALTHCARE LTD,EC3A,01/09/2023,"1,080.00"
102619233,Disabled Children,Children & Families,DCT Daytime Short Breaks,3rd Party Payments,Respite Care,ALPHA24 HEALTHCARE LTD,EC3A,01/09/2023,720.00
102312233,Disabled Children,Children & Families,DCT Daytime Short Breaks,3rd Party Payments,Respite Care,ALPHA24 HEALTHCARE LTD,EC3A,01/09/2023,720.00
105706233,Disabled Children,Children & Families,DCT Daytime Short Breaks,3rd Party Payments,Respite Care,ALPHA24 HEALTHCARE LTD,EC3A,20/09/2023,720.00
106742233,Disabled Children,Children & Families,DCT Daytime Short Breaks,3rd Party Payments,Respite Care,ALPHA24 HEALTHCARE LTD,EC3A,27/09/2023,"1,440.00"
106059233,Disabled Children,Children & Families,DCT Daytime Short Breaks,3rd Party Payments,Respite Care,ALPHA24 HEALTHCARE LTD,EC3A,20/09/2023,"1,080.00"
106055233,Disabled Children,Children & Families,DCT Daytime Short Breaks,3rd Party Payments,Respite Care,ALPHA24 HEALTHCARE LTD,EC3A,20/09/2023,720.00
106054233,Disabled Children,Children & Families,DCT Daytime Short Breaks,3rd Party Payments,Respite Care,ALPHA24 HEALTHCARE LTD,EC3A,20/09/2023,720.00
105703233,Disabled Children,Children & Families,DCT Daytime Short Breaks,3rd Party Payments,Respite Care,ALPHA24 HEALTHCARE LTD,EC3A,20/09/2023,"1,440.00"
103300234,Disabled Children,Children & Families,DCT Daytime Short Breaks,3rd Party Payments,Respite Care,ALPHA24 HEALTHCARE LTD,EC3A,06/09/2023,"1,440.00"
106109233,Social Care,Children & Families,Legal Fees,Supplies and Services,Fees,ALPHABIOLABS,WA5 ,22/09/2023,860.00
105370377,Physical Support,Adults,Physical Support 65 and over,3rd Party Payments,Nursing Care,ALTOGETHER CARE WEYMOUTH CARE HOME,DT4 ,15/09/2023,"4,023.28"
105370377,Physical Support,Adults,Physical Support 65 and over,Income,Client Contribution - Nursing,ALTOGETHER CARE WEYMOUTH CARE HOME,DT4 ,15/09/2023,-691.20
105037233,"Volutary Sector, Equipment and Carers",Adults,Voluntary Sector Adults,3rd Party Payments,Contracts - Social Care,ALZHEIMERS SOCIETY,PL2 ,13/09/2023,"2,433.00"
103881346,Learning Disabilities,Adults,Learning Disability 18 - 64,3rd Party Payments,Carers,REDACTED PERSONAL DATA,SN3 ,06/09/2023,"1,925.37"
104436243,Social Care,Children & Families,Children's Resource and Home Finding Team,3rd Party Payments,Residential Care,AMBERLEIGH CARE LTD,TF2 ,11/09/2023,"9,492.00"
103084233,Social Care,Children & Families,Children's Resource and Home Finding Team,3rd Party Payments,Residential Care,AMEGREEN CHILDREN'S SERVICES LTD,RG7 ,04/09/2023,"17,437.50"
106139297,Social Care,Children & Families,Children's Resource and Home Finding Team,3rd Party Payments,Residential Care,AMEGREEN CHILDREN'S SERVICES LTD,RG7 ,22/09/2023,"16,875.00"
106046233,Responsive Repairs,Repairs,Responsive Repairs,Premises Costs,Repairs - Buildings,AMELIO UTILITIES(GLOU) LTD T/A 3 COUNTIES DRAIN SERVICES,GL1 ,20/09/2023,412.00
107356235,Responsive Repairs,Repairs,Responsive Repairs,Premises Costs,Repairs - Buildings,AMELIO UTILITIES(GLOU) LTD T/A 3 COUNTIES DRAIN SERVICES,GL1 ,29/09/2023,176.57
107356235,Responsive Repairs,Repairs,Responsive Repairs,Premises Costs,Repairs - Buildings,AMELIO UTILITIES(GLOU) LTD T/A 3 COUNTIES DRAIN SERVICES,GL1 ,29/09/2023,140.60
106046233,Responsive Repairs,Repairs,Responsive Repairs,Premises Costs,Repairs - Buildings,AMELIO UTILITIES(GLOU) LTD T/A 3 COUNTIES DRAIN SERVICES,GL1 ,20/09/2023,140.60
106046233,Responsive Repairs,Repairs,Responsive Repairs,Premises Costs,Repairs - Buildings,AMELIO UTILITIES(GLOU) LTD T/A 3 COUNTIES DRAIN SERVICES,GL1 ,20/09/2023,353.14
107356235,Responsive Repairs,Repairs,Responsive Repairs,Premises Costs,Repairs - Buildings,AMELIO UTILITIES(GLOU) LTD T/A 3 COUNTIES DRAIN SERVICES,GL1 ,29/09/2023,210.90
107356235,Responsive Repairs,Repairs,Responsive Repairs,Premises Costs,Repairs - Buildings,AMELIO UTILITIES(GLOU) LTD T/A 3 COUNTIES DRAIN SERVICES,GL1 ,29/09/2023,"1,934.47"
106046233,Responsive Repairs,Repairs,Responsive Repairs,Premises Costs,Repairs - Buildings,AMELIO UTILITIES(GLOU) LTD T/A 3 COUNTIES DRAIN SERVICES,GL1 ,20/09/2023,176.57
102289233,Highways & Transport,Highways & Transport,Project Delivery,Supplies and Services,Services,AMEY OW LTD,L19 ,01/09/2023,"101,709.01"
102288233,Highways & Transport,Highways & Transport,Project Delivery,Supplies and Services,Services,AMEY OW LTD,L19 ,01/09/2023,"52,103.55"
107397233,Highways & Transport,Highways & Transport,Project Delivery,Supplies and Services,Services,AMEY OW LTD,L19 ,29/09/2023,"79,099.04"
104012266,Social Care,Children & Families,Children's Resource and Home Finding Team,3rd Party Payments,Independent Fostering Agency Placements,AMICUS FOSTER CARE,BS2 ,08/09/2023,"5,256.05"
104029233,Highways Inspections & Maintenance,Highway Operations and Car Parking,Streetlighting,Supplies and Services,Materials,AMR TRAFFIC MANAGEMENT LTD,RG14,08/09/2023,480.00
102793233,Disabled Children,Children & Families,DCT Daytime Short Breaks,Transfer Payments,Personal Budget - Direct Payments - Other,REDACTED PERSONAL DATA,SN2 ,01/09/2023,"1,846.74"
103881297,Mental Health,Adults,Mental Health 18-64,Transfer Payments,Personal Budget - Direct Payments - Domiciliary Care,REDACTED PERSONAL DATA,SN25,06/09/2023,590.49
105814241,Early Years Block,Dedicated Schools Grant (DSG),Free Nursery Education Commissioning - three & four  year olds,3rd Party Payments,Contracts - Child Care,REDACTED PERSONAL DATA,SN25,20/09/2023,"1,176.00"
105812242,Early Years Block,Dedicated Schools Grant (DSG),Free Nursery Education Commissioning - two year olds,3rd Party Payments,Contracts - Child Care,REDACTED PERSONAL DATA,SN5 ,20/09/2023,"18,157.44"
106763233,Early Years Block,Dedicated Schools Grant (DSG),Free Nursery Education Commissioning - three & four  year olds,3rd Party Payments,Contracts - Child Care,REDACTED PERSONAL DATA,SN5 ,27/09/2023,"2,280.00"
105812241,Early Years Block,Dedicated Schools Grant (DSG),Free Nursery Education Commissioning - three & four  year olds,3rd Party Payments,Contracts - Child Care,REDACTED PERSONAL DATA,SN5 ,20/09/2023,"97,708.80"
106416311,Homelessness and Travellers,Housing Services,Private Sector Landlords,Transfer Payments,Payment of Costs,ANGELVIEW PROPERTIES LTD,ALBO,25/09/2023,590.00
105814243,Early Years Block,Dedicated Schools Grant (DSG),Free Nursery Education Commissioning - three & four  year olds,3rd Party Payments,Contracts - Child Care,REDACTED PERSONAL DATA,SN1 ,20/09/2023,588.00
103732233,Early Help,Early Intervention & Prevention,"Holiday, Activities & Food Grant",3rd Party Payments,Contracts - Child Care,REDACTED PERSONAL DATA,TR16,06/09/2023,"1,500.00"
106632277,Social Care,Children & Families,Placement Fostering Service,3rd Party Payments,Carers Skills Payments - Qualified,REDACTED PERSONAL DATA,SN5 ,25/09/2023,-1.00
106632277,Social Care,Children & Families,Placement Fostering Service,3rd Party Payments,Foster Care Basic Payments,REDACTED PERSONAL DATA,SN5 ,25/09/2023,385.71
106632277,Social Care,Children & Families,Placement Fostering Service,3rd Party Payments,Carers Skills Payments - Advanced,REDACTED PERSONAL DATA,SN5 ,25/09/2023,237.86
103881516,Physical Support,Adults,Physical Support 18 - 64,Transfer Payments,Personal Budget - Direct Payments - Domiciliary Care,REDACTED PERSONAL DATA,SN25,06/09/2023,"2,561.38"
107377233,HRA Overheads,Supervision & Management,Admin / Management General,Premises Costs,Insurance - Premises,AON UK LIMITED,EC3V,29/09/2023,"2,442.71"
106486233,Supported Employment,Housing Services,Community Meals,Supplies and Services,Food,APETITO LIMITED,BA14,22/09/2023,662.54
106484233,Supported Employment,Housing Services,Community Meals,Supplies and Services,Food,APETITO LIMITED,BA14,22/09/2023,"1,090.21"
106485233,Supported Employment,Housing Services,Community Meals,Supplies and Services,Food,APETITO LIMITED,BA14,22/09/2023,"1,440.67"
106487233,Supported Employment,Housing Services,Community Meals,Supplies and Services,Food,APETITO LIMITED,BA14,22/09/2023,674.49
105380233,Supported Employment,Housing Services,Community Meals,Supplies and Services,Food,APETITO LIMITED,BA14,15/09/2023,"1,204.91"
105380235,Supported Employment,Housing Services,Community Meals,Supplies and Services,Food,APETITO LIMITED,BA14,15/09/2023,731.21
106865233,Responsive Repairs,Repairs,Responsive Repairs,3rd Party Payments,Contract Payments,APEX SCAFFOLDING SERVICES,SN2 ,27/09/2023,"1,250.00"
103486233,,,Balance Sheet,Balance Sheet & Recharge,Resources Recharges,APOGEE CORPORATION LIMITED,EC2A,06/09/2023,"1,609.53"
105285233,,,Balance Sheet,Balance Sheet & Recharge,Resources Recharges,APOGEE CORPORATION LIMITED,EC2A,15/09/2023,"15,095.86"
105370313,Learning Disabilities,Adults,Learning Disability 18 - 64,3rd Party Payments,Residential Care,APPLEFORD LTD T/A DANESWOOD,BS25,15/09/2023,"22,008.12"
105370313,Learning Disabilities,Adults,Learning Disability 18 - 64,Income,Client Contribution - Residential,APPLEFORD LTD T/A DANESWOOD,BS25,15/09/2023,-438.80
103667233,Adults - Staffing and Supporting People,Adults,Blue Badges,Supplies and Services,Materials,APS GROUP,SK3 ,06/09/2023,886.17
106158233,Early Help,Early Intervention & Prevention,U-Turn Substance Misuse Project,Employees,Training,APT TRAINING & CONSULTANCY LTD,LE7 ,22/09/2023,440.00
105284233,Learning Disabilities,Adults,Firethorn Close,Supplies and Services,Equipment,AQUATRONIC GROUP MANAGEMENT PLC,CO6 ,15/09/2023,892.22
106696233,High Needs Block,Dedicated Schools Grant (DSG),SEN Resourcing Assessment Panel,3rd Party Payments,Top up funding - Maintained providers Pre 16,REDACTED PERSONAL DATA,SN2 ,27/09/2023,"10,003.92"
105713233,Early Years Block,Dedicated Schools Grant (DSG),Free Nursery Education Commissioning - three & four  year olds,3rd Party Payments,Contracts - Child Care,REDACTED PERSONAL DATA,SN2 ,20/09/2023,"11,778.37"
106750233,Early Years Block,Dedicated Schools Grant (DSG),Free Nursery Education Commissioning - three & four  year olds,3rd Party Payments,Contracts - Child Care,REDACTED PERSONAL DATA,SN2 ,27/09/2023,"10,003.92"
105563233,Human Resources and Organisational Development,"People, Culture and Organisational Resilience",Organisational Development,Employees,Training,ARCA LIMITED,DE13,18/09/2023,"1,440.00"
105563233,Human Resources and Organisational Development,"People, Culture and Organisational Resilience",Organisational Development,Employees,Training,ARCA LIMITED,DE13,18/09/2023,164.00
105365233,Landscaping & Open Space,Culture & Heritage & Art,GWCF - Trees for Climate,Capital,Contractor Payments,ARCHAEOLOGICAL SURVEYS LTD,SN11,15/09/2023,"1,750.00"
103630233,Human Resources and Organisational Development,"People, Culture and Organisational Resilience",Pay & Reward,Employees,Temporary / Agency - by Accounts Payable,ARGONAUT MANAGEMENT SERVICES LIMITED,N11 ,06/09/2023,"1,800.00"
105370383,Mental Health,Adults,Mental Health 65 and over,3rd Party Payments,Nursing Care,ARIA HEALTHCARE GROUP LTD,CO4 ,15/09/2023,"6,000.00"
103403233,Lydiard Park,Culture & Heritage,Lydiard : Hotel Operations,Supplies and Services,Liquid,ARKELLS BREWERY LTD,SN2 ,06/09/2023,469.52
103500233,Streetsmart,Streetsmart,Waterside Fleet Hires,Transport Costs,Vehicle Hire / Contract,ARNOLD PLANT HIRE LIMITED,SK6 ,06/09/2023,"1,610.00"
103502233,Streetsmart,Streetsmart,Waterside Fleet Hires,Transport Costs,Vehicle Hire / Contract,ARNOLD PLANT HIRE LIMITED,SK6 ,06/09/2023,"8,625.00"
103501233,Streetsmart,Streetsmart,Waterside Fleet Hires,Transport Costs,Vehicle Hire / Contract,ARNOLD PLANT HIRE LIMITED,SK6 ,06/09/2023,"1,219.00"
105370381,Mental Health,Adults,Mental Health 65 and over,3rd Party Payments,Residential Care,ARTI CARE HOMES (GLOUCESTER) LIMITED,WD7 ,15/09/2023,"4,800.00"
105274233,Homelessness and Travellers,Housing Services,Private Sector Landlords,Transfer Payments,Payment of Costs,ASCENT------------,SN2 ,15/09/2023,500.00
102609233,Communications & Engagement,Communications & Engagement,"Policy, Campaigns and Communications",Supplies and Services,Materials,ASF SIGNS LTD,SN4 ,01/09/2023,"1,528.00"
105279233,Sheltered Accomodation,Special Services,Sheltered Housing Management General,Supplies and Services,Equipment,ASF SIGNS LTD,SN4 ,15/09/2023,"1,462.50"
Corporate Card Transaction,Community Health & Wellbeing,Public Health,Community Health and Wellbeing Management,Supplies and Services,Food,Asda Stores,,04/09/2023,1000
Corporate Card Transaction,Community Health & Wellbeing,Public Health,Community Health and Wellbeing Management,Supplies and Services,Food,Asda Stores,,04/09/2023,500
105370314,Mental Health,Adults,Mental Health 18-64,Income,Client Contribution - Residential,ASH VIEW HOUSE,BS15,15/09/2023,-418.80
105370314,Mental Health,Adults,Mental Health 18-64,3rd Party Payments,Residential Care,ASH VIEW HOUSE,BS15,15/09/2023,"7,993.72"
103681233,Traded Services,"Education, Inclusion and Skills",Plas Pencelli Outdoor Education Centre,Supplies and Services,Materials,ASHBURNHAM BAKERY,LD3 ,06/09/2023,541.62
105370242,Physical Support,Adults,Physical Support 65 and over,Income,Client Contribution - Residential,ASHBURY LODGE,SN3 ,15/09/2023,"1,580.29"
105370242,Physical Support,Adults,Physical Support 65 and over,Income,Client Contribution - Residential,ASHBURY LODGE,SN3 ,15/09/2023,"-1,398.12"
105370242,Physical Support,Adults,Physical Support 65 and over,Income,Client Contribution - Residential,ASHBURY LODGE,SN3 ,15/09/2023,"-1,084.56"
105370242,Physical Support,Adults,Physical Support 65 and over,Income,Client Contribution - Residential,ASHBURY LODGE,SN3 ,15/09/2023,-587.40
105370242,Physical Support,Adults,Physical Support 65 and over,Income,Client Contribution - Residential,ASHBURY LODGE,SN3 ,15/09/2023,"-1,580.29"
105370242,Physical Support,Adults,Physical Support 65 and over,Income,Client Contribution - Residential,ASHBURY LODGE,SN3 ,15/09/2023,"2,493.26"
105370242,Physical Support,Adults,Physical Support 65 and over,3rd Party Payments,Residential Care,ASHBURY LODGE,SN3 ,15/09/2023,"-3,174.53"
105370242,Physical Support,Adults,Physical Support 65 and over,3rd Party Payments,Residential Care,ASHBURY LODGE,SN3 ,15/09/2023,"-4,096.17"
105370242,Mental Health,Adults,Mental Health 65 and over,Income,Client Contribution - Residential,ASHBURY LODGE,SN3 ,15/09/2023,"1,235.74"
105370242,Mental Health,Adults,Mental Health 65 and over,Income,Client Contribution - Residential,ASHBURY LODGE,SN3 ,15/09/2023,31.69
105370242,Mental Health,Adults,Mental Health 65 and over,3rd Party Payments,Residential Care,ASHBURY LODGE,SN3 ,15/09/2023,"2,988.96"
105370242,Physical Support,Adults,Physical Support 65 and over,Income,Client Contribution - Residential,ASHBURY LODGE,SN3 ,15/09/2023,44.84
105370242,Physical Support,Adults,Physical Support 65 and over,Income,Client Contribution - Residential,ASHBURY LODGE,SN3 ,15/09/2023,"-1,125.72"
105370242,Physical Support,Adults,Physical Support 65 and over,Income,Client Contribution - Residential,ASHBURY LODGE,SN3 ,15/09/2023,-886.60
105370242,Physical Support,Adults,Physical Support 65 and over,Income,Client Contribution - Residential,ASHBURY LODGE,SN3 ,15/09/2023,"-1,308.16"
105370242,Physical Support,Adults,Physical Support 65 and over,3rd Party Payments,Residential Care,ASHBURY LODGE,SN3 ,15/09/2023,307.21
105370242,Mental Health,Adults,Mental Health 65 and over,Income,Client Contribution - Residential,ASHBURY LODGE,SN3 ,15/09/2023,"1,150.46"
105370242,Mental Health,Adults,Mental Health 65 and over,3rd Party Payments,Residential Care,ASHBURY LODGE,SN3 ,15/09/2023,"-4,163.19"
105370242,Mental Health,Adults,Mental Health 65 and over,3rd Party Payments,Residential Care,ASHBURY LODGE,SN3 ,15/09/2023,"-2,252.89"
105370242,Mental Health,Adults,Mental Health 65 and over,3rd Party Payments,Residential Care,ASHBURY LODGE,SN3 ,15/09/2023,-106.75
105370242,Physical Support,Adults,Physical Support 65 and over,3rd Party Payments,Residential Care,ASHBURY LODGE,SN3 ,15/09/2023,"4,096.17"
105370242,Mental Health,Adults,Mental Health 65 and over,Income,Client Contribution - Residential,ASHBURY LODGE,SN3 ,15/09/2023,-881.64
105370242,Physical Support,Adults,Physical Support 65 and over,Income,Client Contribution - Residential,ASHBURY LODGE,SN3 ,15/09/2023,"-1,378.60"
105370242,Physical Support,Adults,Physical Support 65 and over,3rd Party Payments,Residential Care,ASHBURY LODGE,SN3 ,15/09/2023,"2,867.32"
105370242,Physical Support,Adults,Physical Support 65 and over,Income,Client Contribution - Residential,ASHBURY LODGE,SN3 ,15/09/2023,695.06
105370242,Physical Support,Adults,Physical Support 65 and over,Income,Client Contribution - Residential,ASHBURY LODGE,SN3 ,15/09/2023,-801.80
105370242,Physical Support,Adults,Physical Support 65 and over,3rd Party Payments,Residential Care,ASHBURY LODGE,SN3 ,15/09/2023,"4,032.00"
105370242,Physical Support,Adults,Physical Support 65 and over,3rd Party Payments,Residential Care,ASHBURY LODGE,SN3 ,15/09/2023,"-10,342.83"
105370242,Mental Health,Adults,Mental Health 65 and over,Income,Client Contribution - Residential,ASHBURY LODGE,SN3 ,15/09/2023,"-1,259.49"
105370242,Physical Support,Adults,Physical Support 65 and over,Income,Client Contribution - Residential,ASHBURY LODGE,SN3 ,15/09/2023,"1,378.60"
105370242,Physical Support,Adults,Physical Support 65 and over,Income,Client Contribution - Residential,ASHBURY LODGE,SN3 ,15/09/2023,-953.20
105370242,Physical Support,Adults,Physical Support 65 and over,Income,Client Contribution - Residential,ASHBURY LODGE,SN3 ,15/09/2023,-657.68
105370242,Physical Support,Adults,Physical Support 65 and over,Income,Client Contribution - Residential,ASHBURY LODGE,SN3 ,15/09/2023,-764.80
105370242,Mental Health,Adults,Mental Health 65 and over,Income,Client Contribution - Residential,ASHBURY LODGE,SN3 ,15/09/2023,"-1,267.43"
105370242,Mental Health,Adults,Mental Health 65 and over,Income,Client Contribution - Residential,ASHBURY LODGE,SN3 ,15/09/2023,-691.20
105370242,Mental Health,Adults,Mental Health 65 and over,3rd Party Payments,Residential Care,ASHBURY LODGE,SN3 ,15/09/2023,"2,867.32"
105370242,Physical Support,Adults,Physical Support 65 and over,Income,Client Contribution - Residential,ASHBURY LODGE,SN3 ,15/09/2023,"-1,608.17"
105370242,Physical Support,Adults,Physical Support 65 and over,Income,Client Contribution - Residential,ASHBURY LODGE,SN3 ,15/09/2023,-730.76
105370242,Physical Support,Adults,Physical Support 65 and over,Income,Client Contribution - Residential,ASHBURY LODGE,SN3 ,15/09/2023,-691.20
105370242,Mental Health,Adults,Mental Health 65 and over,3rd Party Payments,Residential Care,ASHBURY LODGE,SN3 ,15/09/2023,"4,269.94"
105370241,Physical Support,Adults,Physical Support 65 and over,3rd Party Payments,Nursing Care,ASHGROVE HOUSE NURSING HOME,SN5 ,15/09/2023,"6,080.00"
105370241,Physical Support,Adults,Physical Support 65 and over,Income,Client Contribution - Nursing,ASHGROVE HOUSE NURSING HOME,SN5 ,15/09/2023,-655.04
103881538,Physical Support,Adults,Physical Support 18 - 64,Transfer Payments,Personal Budget - Direct Payments - Domiciliary Care,REDACTED PERSONAL DATA,SN25,06/09/2023,"1,611.23"
105169234,Libraries,"Education, Inclusion and Skills",Library Delivery,Supplies and Services,Materials,ASKEWS AND HOLTS LIBRARY SERVICES LIMITED,PR1 ,15/09/2023,"1,190.91"
103572233,Libraries,"Education, Inclusion and Skills",Library Delivery,Supplies and Services,Materials,ASKEWS AND HOLTS LIBRARY SERVICES LIMITED,PR1 ,06/09/2023,"1,529.14"
107325243,Libraries,"Education, Inclusion and Skills",Library Delivery,Supplies and Services,Materials,ASKEWS AND HOLTS LIBRARY SERVICES LIMITED,PR1 ,29/09/2023,"2,375.00"
107326233,Libraries,"Education, Inclusion and Skills",Library Delivery,Supplies and Services,Materials,ASKEWS AND HOLTS LIBRARY SERVICES LIMITED,PR1 ,29/09/2023,"2,120.17"
102876233,Libraries,"Education, Inclusion and Skills",Library Delivery,Supplies and Services,Materials,ASKEWS AND HOLTS LIBRARY SERVICES LIMITED,PR1 ,01/09/2023,621.19
105034236,Libraries,"Education, Inclusion and Skills",Library Delivery,Supplies and Services,Materials,ASKEWS AND HOLTS LIBRARY SERVICES LIMITED,PR1 ,13/09/2023,"1,379.62"
102878233,Libraries,"Education, Inclusion and Skills",Library Delivery,Supplies and Services,Materials,ASKEWS AND HOLTS LIBRARY SERVICES LIMITED,PR1 ,01/09/2023,"2,336.90"
105370282,Learning Disabilities,Adults,Learning Disability 18 - 64,3rd Party Payments,Residential Care,ASPECTS & MILESTONES TRUST,BS16,15/09/2023,"6,964.88"
105370282,Learning Disabilities,Adults,Learning Disability 18 - 64,Income,Client Contribution - Residential,ASPECTS & MILESTONES TRUST,BS16,15/09/2023,-463.20
105370322,Mental Health,Adults,Mental Health 65 and over,3rd Party Payments,Supported Lodgings (Childrens)/Supported Living (Adults),ASPECTS 2 LTD,B70 ,15/09/2023,"1,449.60"
105370322,Learning Disabilities,Adults,Learning Disability 18 - 64,Income,Client Contribution - Residential,ASPECTS 2 LTD,B70 ,15/09/2023,-438.80
105370322,Physical Support,Adults,Physical Support 18 - 64,3rd Party Payments,Supported Lodgings (Childrens)/Supported Living (Adults),ASPECTS 2 LTD,B70 ,15/09/2023,"4,200.00"
105370322,Learning Disabilities,Adults,Learning Disability 18 - 64,3rd Party Payments,Residential Care,ASPECTS 2 LTD,B70 ,15/09/2023,"9,278.64"
105364234,High Needs Block,Dedicated Schools Grant (DSG),Out of Borough School Fees,3rd Party Payments,Independent Special School- Pre 16,ASPRIS CHILDREN'S SERVICES,DL1 ,15/09/2023,"2,506.80"
106841233,Public Health,Public Health,Public Health,Supplies and Services,Subscriptions,ASSOCIATION OF DIRECTORS OF PUBLIC HEALTH (UK),EC4Y,27/09/2023,"4,250.00"
105370344,Learning Disabilities,Adults,Learning Disability 65 and over,3rd Party Payments,Residential Care,ASTON CARE LIMITED,RG30,15/09/2023,"8,008.00"
105370344,Learning Disabilities,Adults,Learning Disability 18 - 64,3rd Party Payments,Residential Care,ASTON CARE LIMITED,RG30,15/09/2023,"8,288.00"
105370344,Learning Disabilities,Adults,Learning Disability 18 - 64,Income,Client Contribution - Residential,ASTON CARE LIMITED,RG30,15/09/2023,"-1,033.20"
105370345,Learning Disabilities,Adults,Learning Disability 18 - 64,Income,Client Contribution - Residential,ASTON CARE LIMITED,RG30,15/09/2023,-788.80
105370345,Learning Disabilities,Adults,Learning Disability 18 - 64,3rd Party Payments,Residential Care,ASTON CARE LIMITED,RG30,15/09/2023,"9,733.80"
105370344,Learning Disabilities,Adults,Learning Disability 18 - 64,Income,Client Contribution - Residential,ASTON CARE LIMITED,RG30,15/09/2023,-587.40
105370344,Learning Disabilities,Adults,Learning Disability 18 - 64,3rd Party Payments,Residential Care,ASTON CARE LIMITED,RG30,15/09/2023,"8,008.00"
105370344,Learning Disabilities,Adults,Learning Disability 65 and over,Income,Client Contribution - Residential,ASTON CARE LIMITED,RG30,15/09/2023,-676.40
105370344,Learning Disabilities,Adults,Learning Disability 18 - 64,Income,Client Contribution - Residential,ASTON CARE LIMITED,RG30,15/09/2023,-410.80
105370344,Learning Disabilities,Adults,Learning Disability 18 - 64,3rd Party Payments,Residential Care,ASTON CARE LIMITED,RG30,15/09/2023,"7,288.00"
105875233,Early Help,Early Intervention & Prevention,"Holiday, Activities & Food Grant",3rd Party Payments,Contracts - Child Care,ATBSHOP LTD,SN2 ,20/09/2023,640.00
105876234,Early Help,Early Intervention & Prevention,"Holiday, Activities & Food Grant",3rd Party Payments,Contracts - Child Care,ATBSHOP LTD,SN2 ,20/09/2023,640.00
105882233,Early Help,Early Intervention & Prevention,"Holiday, Activities & Food Grant",3rd Party Payments,Contracts - Child Care,ATBSHOP LTD,SN2 ,20/09/2023,640.00
105878233,Early Help,Early Intervention & Prevention,"Holiday, Activities & Food Grant",3rd Party Payments,Contracts - Child Care,ATBSHOP LTD,SN2 ,20/09/2023,520.00
104794233,Early Help,Early Intervention & Prevention,"Holiday, Activities & Food Grant",3rd Party Payments,Contracts - Child Care,ATBSHOP LTD,SN2 ,13/09/2023,"31,734.00"
107219233,Highways & Transport,Highways & Transport,Project Delivery,Supplies and Services,Services,ATKINS LTD,WR4 ,29/09/2023,"12,431.58"
106815233,Highways & Transport,Highways & Transport,Project Delivery,Supplies and Services,Services,ATKINS LTD,WR4 ,27/09/2023,"11,663.26"
107220233,Highways & Transport,Highways & Transport,Project Delivery,Supplies and Services,Services,ATKINS LTD,WR4 ,29/09/2023,"4,234.56"
107221233,Highways & Transport,Highways & Transport,Project Delivery,Supplies and Services,Services,ATKINS LTD,WR4 ,29/09/2023,747.69
103282233,Highways & Transport,Highways & Transport,Project Delivery,Supplies and Services,Services,ATKINS LTD,WR4 ,06/09/2023,"15,394.25"
102994233,Highways & Transport,Highways & Transport,Project Delivery,Supplies and Services,Services,ATKINS LTD,WR4 ,04/09/2023,"13,906.95"
107222233,Highways & Transport,Highways & Transport,Project Delivery,Supplies and Services,Services,ATKINS LTD,WR4 ,29/09/2023,"4,753.64"
107413233,Social Care,Children & Families,Children's Resource and Home Finding Team,3rd Party Payments,Residential Care,A-TRIANGLE CARE LIMITED,FY5 ,29/09/2023,"25,692.86"
104012263,Social Care,Children & Families,Children's Resource and Home Finding Team,3rd Party Payments,Residential Care,A-TRIANGLE CARE LIMITED,FY5 ,08/09/2023,"26,549.29"
103123233,Senior Management Team,Children & Families,Senior Management Team - Staffing,Employees,Temporary / Agency - by Accounts Payable,ATTENTI LTD,EC2R,04/09/2023,"3,245.00"
106687233,Social Care,Children & Families,CP & CIN Social Work - South,Employees,Temporary / Agency - by Accounts Payable,ATTENTI LTD,EC2R,27/09/2023,"2,183.00"
103388233,Senior Management Team,Children & Families,Family Safeguarding Model,Employees,Temporary / Agency - by Accounts Payable,ATTENTI LTD,EC2R,06/09/2023,"2,950.00"
107194233,Senior Management Team,Children & Families,Senior Management Team - Staffing,Employees,Temporary / Agency - by Accounts Payable,ATTENTI LTD,EC2R,27/09/2023,"3,540.00"
106650233,Senior Management Team,Children & Families,Senior Management Team - Staffing,Employees,Temporary / Agency - by Accounts Payable,ATTENTI LTD,EC2R,25/09/2023,"3,245.00"
106649236,Senior Management Team,Children & Families,Senior Management Team - Staffing,Employees,Temporary / Agency - by Accounts Payable,ATTENTI LTD,EC2R,25/09/2023,944.00
102302233,Senior Management Team,Children & Families,Senior Management Team - Staffing,Employees,Temporary / Agency - by Accounts Payable,ATTENTI LTD,EC2R,01/09/2023,"3,540.00"
106691233,Social Care,Children & Families,CP & CIN Social Work - South,Employees,Temporary / Agency - by Accounts Payable,ATTENTI LTD,EC2R,27/09/2023,"1,770.00"
106690233,Social Care,Children & Families,CP & CIN Social Work - South,Employees,Temporary / Agency - by Accounts Payable,ATTENTI LTD,EC2R,27/09/2023,"1,770.00"
102708233,Social Care,Children & Families,CP & CIN Social Work - South,Employees,Temporary / Agency - by Accounts Payable,ATTENTI LTD,EC2R,01/09/2023,"4,130.00"
106538233,Senior Management Team,Children & Families,Family Safeguarding Model,Employees,Temporary / Agency - by Accounts Payable,ATTENTI LTD,EC2R,25/09/2023,"1,416.00"
104103233,Senior Management Team,Children & Families,Family Safeguarding Model,Employees,Temporary / Agency - by Accounts Payable,ATTENTI LTD,EC2R,08/09/2023,"2,124.00"
106921233,Social Care,Children & Families,Practise Development,Employees,Temporary / Agency - by Accounts Payable,ATTENTI LTD,EC2R,27/09/2023,"2,400.00"
107208233,Social Care,Children & Families,Practise Development,Employees,Temporary / Agency - by Accounts Payable,ATTENTI LTD,EC2R,27/09/2023,"2,360.00"
106629233,Social Care,Children & Families,Practise Development,Employees,Temporary / Agency - by Accounts Payable,ATTENTI LTD,EC2R,25/09/2023,"3,304.00"
102405233,Social Care,Children & Families,Practise Development,Employees,Temporary / Agency - by Accounts Payable,ATTENTI LTD,EC2R,01/09/2023,"2,360.00"
103477233,Social Care,Children & Families,Practise Development,Employees,Temporary / Agency - by Accounts Payable,ATTENTI LTD,EC2R,06/09/2023,"2,360.00"
102707233,Senior Management Team,Children & Families,Senior Management Team - Staffing,Employees,Temporary / Agency - by Accounts Payable,ATTENTI LTD,EC2R,01/09/2023,"3,245.00"
102524234,Senior Management Team,Children & Families,Senior Management Team - Staffing,Employees,Temporary / Agency - by Accounts Payable,ATTENTI LTD,EC2R,01/09/2023,"3,245.00"
107217233,Social Care,Children & Families,Practise Development,Employees,Temporary / Agency - by Accounts Payable,ATTENTI LTD,EC2R,29/09/2023,"2,360.00"
107200233,Social Care,Children & Families,Practise Development,Employees,Temporary / Agency - by Accounts Payable,ATTENTI LTD,EC2R,27/09/2023,"2,360.00"
106877233,Social Care,Children & Families,Practise Development,Employees,Temporary / Agency - by Accounts Payable,ATTENTI LTD,EC2R,27/09/2023,"2,360.00"
106123233,Safeguarding and Quality Assurance,Children & Families,Quality Assurance Team,Employees,Temporary / Agency - by Accounts Payable,ATTENTI LTD,EC2R,22/09/2023,"1,416.00"
106114233,Senior Management Team,Children & Families,Senior Management Team - Staffing,Employees,Temporary / Agency - by Accounts Payable,ATTENTI LTD,EC2R,22/09/2023,"2,832.00"
107240233,Social Care,Children & Families,CP & CIN Social Work - South,Employees,Temporary / Agency - by Accounts Payable,ATTENTI LTD,EC2R,29/09/2023,"2,183.00"
106721233,Social Care,Children & Families,CP & CIN Social Work - South,Employees,Temporary / Agency - by Accounts Payable,ATTENTI LTD,EC2R,27/09/2023,"2,183.00"
106777233,Social Care,Children & Families,Childrens Homefinding Team,Employees,Temporary / Agency - by Accounts Payable,ATTENTI LTD,EC2R,27/09/2023,"-1,947.00"
107205233,Social Care,Children & Families,Practise Development,Employees,Temporary / Agency - by Accounts Payable,ATTENTI LTD,EC2R,27/09/2023,"2,360.00"
106115234,Social Care,Children & Families,Practise Development,Employees,Temporary / Agency - by Accounts Payable,ATTENTI LTD,EC2R,22/09/2023,"1,920.00"
103222233,Social Care,Children & Families,Practise Development,Employees,Temporary / Agency - by Accounts Payable,ATTENTI LTD,EC2R,04/09/2023,"2,360.00"
106649235,Safeguarding and Quality Assurance,Children & Families,Quality Assurance Team,Employees,Temporary / Agency - by Accounts Payable,ATTENTI LTD,EC2R,25/09/2023,"1,888.00"
107195233,Senior Management Team,Children & Families,Senior Management Team - Staffing,Employees,Temporary / Agency - by Accounts Payable,ATTENTI LTD,EC2R,27/09/2023,"3,184.00"
106647233,Senior Management Team,Children & Families,Senior Management Team - Staffing,Employees,Temporary / Agency - by Accounts Payable,ATTENTI LTD,EC2R,25/09/2023,"3,245.00"
106111233,Senior Management Team,Children & Families,Senior Management Team - Staffing,Employees,Temporary / Agency - by Accounts Payable,ATTENTI LTD,EC2R,22/09/2023,"2,360.00"
102527234,Senior Management Team,Children & Families,Senior Management Team - Staffing,Employees,Temporary / Agency - by Accounts Payable,ATTENTI LTD,EC2R,01/09/2023,"3,245.00"
103122233,Senior Management Team,Children & Families,Senior Management Team - Staffing,Employees,Temporary / Agency - by Accounts Payable,ATTENTI LTD,EC2R,04/09/2023,"3,540.00"
102400234,Social Care,Children & Families,CP & CIN Social Work - South,Employees,Temporary / Agency - by Accounts Payable,ATTENTI LTD,EC2R,01/09/2023,"2,183.00"
106112233,Senior Management Team,Children & Families,Family Safeguarding Model,Employees,Temporary / Agency - by Accounts Payable,ATTENTI LTD,EC2R,22/09/2023,"2,360.00"
103333233,Senior Management Team,Children & Families,Family Safeguarding Model,Employees,Temporary / Agency - by Accounts Payable,ATTENTI LTD,EC2R,06/09/2023,"1,888.00"
106185233,Social Care,Children & Families,Childrens Homefinding Team,Employees,Temporary / Agency - by Accounts Payable,ATTENTI LTD,EC2R,22/09/2023,"3,245.00"
107201233,Social Care,Children & Families,Practise Development,Employees,Temporary / Agency - by Accounts Payable,ATTENTI LTD,EC2R,27/09/2023,"2,360.00"
106668233,Senior Management Team,Children & Families,Senior Management Team - Staffing,Employees,Temporary / Agency - by Accounts Payable,ATTENTI LTD,EC2R,25/09/2023,"3,540.00"
106683233,Senior Management Team,Children & Families,Senior Management Team - Staffing,Employees,Temporary / Agency - by Accounts Payable,ATTENTI LTD,EC2R,27/09/2023,"2,950.00"
102432233,Senior Management Team,Children & Families,Senior Management Team - Staffing,Employees,Temporary / Agency - by Accounts Payable,ATTENTI LTD,EC2R,01/09/2023,"18,997.81"
106686233,Social Care,Children & Families,CP & CIN Social Work - South,Employees,Temporary / Agency - by Accounts Payable,ATTENTI LTD,EC2R,27/09/2023,"2,183.00"
106684233,Social Care,Children & Families,CP & CIN Social Work - South,Employees,Temporary / Agency - by Accounts Payable,ATTENTI LTD,EC2R,27/09/2023,"2,183.00"
106723233,Senior Management Team,Children & Families,Family Safeguarding Model,Employees,Temporary / Agency - by Accounts Payable,ATTENTI LTD,EC2R,27/09/2023,"1,888.00"
106722233,Senior Management Team,Children & Families,Family Safeguarding Model,Employees,Temporary / Agency - by Accounts Payable,ATTENTI LTD,EC2R,27/09/2023,"1,888.00"
107211233,Senior Management Team,Children & Families,Family Safeguarding Model,Employees,Temporary / Agency - by Accounts Payable,ATTENTI LTD,EC2R,29/09/2023,"2,950.00"
103387233,Social Care,Children & Families,Childrens Homefinding Team,Employees,Temporary / Agency - by Accounts Payable,ATTENTI LTD,EC2R,06/09/2023,"1,947.00"
106922233,Social Care,Children & Families,Practise Development,Employees,Temporary / Agency - by Accounts Payable,ATTENTI LTD,EC2R,27/09/2023,"3,304.00"
102396233,Social Care,Children & Families,Practise Development,Employees,Temporary / Agency - by Accounts Payable,ATTENTI LTD,EC2R,01/09/2023,"2,360.00"
103414234,Social Care,Children & Families,Practise Development,Employees,Temporary / Agency - by Accounts Payable,ATTENTI LTD,EC2R,06/09/2023,"2,360.00"
106649234,Safeguarding and Quality Assurance,Children & Families,Quality Assurance Team,Employees,Temporary / Agency - by Accounts Payable,ATTENTI LTD,EC2R,25/09/2023,944.00
106122233,Safeguarding and Quality Assurance,Children & Families,Quality Assurance Team,Employees,Temporary / Agency - by Accounts Payable,ATTENTI LTD,EC2R,22/09/2023,"1,416.00"
106120233,Social Care,Children & Families,Practise Development,Employees,Temporary / Agency - by Accounts Payable,ATTENTI LTD,EC2R,22/09/2023,"1,888.00"
106118233,Social Care,Children & Families,Practise Development,Employees,Temporary / Agency - by Accounts Payable,ATTENTI LTD,EC2R,22/09/2023,"2,360.00"
107212234,Senior Management Team,Children & Families,Senior Management Team - Staffing,Employees,Temporary / Agency - by Accounts Payable,ATTENTI LTD,EC2R,29/09/2023,"2,950.00"
106649233,Senior Management Team,Children & Families,Senior Management Team - Staffing,Employees,Temporary / Agency - by Accounts Payable,ATTENTI LTD,EC2R,25/09/2023,"3,540.00"
106646233,Senior Management Team,Children & Families,Senior Management Team - Staffing,Employees,Temporary / Agency - by Accounts Payable,ATTENTI LTD,EC2R,25/09/2023,"3,245.00"
102530233,Senior Management Team,Children & Families,Senior Management Team - Staffing,Employees,Temporary / Agency - by Accounts Payable,ATTENTI LTD,EC2R,01/09/2023,"3,245.00"
102433233,Senior Management Team,Children & Families,Senior Management Team - Staffing,Employees,Temporary / Agency - by Accounts Payable,ATTENTI LTD,EC2R,01/09/2023,"3,245.00"
107216233,Senior Management Team,Children & Families,Family Safeguarding Model,Employees,Temporary / Agency - by Accounts Payable,ATTENTI LTD,EC2R,29/09/2023,"2,360.00"
107202233,Social Care,Children & Families,Practise Development,Employees,Temporary / Agency - by Accounts Payable,ATTENTI LTD,EC2R,27/09/2023,"2,360.00"
106876233,Social Care,Children & Families,Practise Development,Employees,Temporary / Agency - by Accounts Payable,ATTENTI LTD,EC2R,27/09/2023,"2,360.00"
106670233,Social Care,Children & Families,Practise Development,Employees,Temporary / Agency - by Accounts Payable,ATTENTI LTD,EC2R,27/09/2023,"2,360.00"
106116233,Social Care,Children & Families,Practise Development,Employees,Temporary / Agency - by Accounts Payable,ATTENTI LTD,EC2R,22/09/2023,"1,888.00"
106113233,Social Care,Children & Families,Practise Development,Employees,Temporary / Agency - by Accounts Payable,ATTENTI LTD,EC2R,22/09/2023,"1,888.00"
102408233,Social Care,Children & Families,Practise Development,Employees,Temporary / Agency - by Accounts Payable,ATTENTI LTD,EC2R,01/09/2023,"2,360.00"
103353233,Safeguarding and Quality Assurance,Children & Families,Quality Assurance Team,Employees,Temporary / Agency - by Accounts Payable,ATTENTI LTD,EC2R,06/09/2023,"1,888.00"
103221233,Safeguarding and Quality Assurance,Children & Families,Quality Assurance Team,Employees,Temporary / Agency - by Accounts Payable,ATTENTI LTD,EC2R,04/09/2023,"2,400.00"
107239233,Social Care,Children & Families,CP & CIN Social Work - South,Employees,Temporary / Agency - by Accounts Payable,ATTENTI LTD,EC2R,29/09/2023,"1,062.00"
102417233,Social Care,Children & Families,CP & CIN Social Work - South,Employees,Temporary / Agency - by Accounts Payable,ATTENTI LTD,EC2R,01/09/2023,720.00
103735233,Social Care,Children & Families,CP & CIN Social Work - South,Employees,Temporary / Agency - by Accounts Payable,ATTENTI LTD,EC2R,06/09/2023,"2,183.00"
107209233,Senior Management Team,Children & Families,Family Safeguarding Model,Employees,Temporary / Agency - by Accounts Payable,ATTENTI LTD,EC2R,27/09/2023,"2,950.00"
106720233,Senior Management Team,Children & Families,Family Safeguarding Model,Employees,Temporary / Agency - by Accounts Payable,ATTENTI LTD,EC2R,27/09/2023,"2,950.00"
103336233,Senior Management Team,Children & Families,Family Safeguarding Model,Employees,Temporary / Agency - by Accounts Payable,ATTENTI LTD,EC2R,06/09/2023,"2,950.00"
102414234,Social Care,Children & Families,CP & CIN Social Work - South,Employees,Temporary / Agency - by Accounts Payable,ATTENTI LTD,EC2R,01/09/2023,"2,183.00"
103736233,Social Care,Children & Families,CP & CIN Social Work - South,Employees,Temporary / Agency - by Accounts Payable,ATTENTI LTD,EC2R,06/09/2023,"2,183.00"
107210233,Senior Management Team,Children & Families,Family Safeguarding Model,Employees,Temporary / Agency - by Accounts Payable,ATTENTI LTD,EC2R,29/09/2023,"2,950.00"
107218233,Social Care,Children & Families,Practise Development,Employees,Temporary / Agency - by Accounts Payable,ATTENTI LTD,EC2R,29/09/2023,"2,360.00"
107207233,Social Care,Children & Families,Practise Development,Employees,Temporary / Agency - by Accounts Payable,ATTENTI LTD,EC2R,27/09/2023,"2,360.00"
106119233,Social Care,Children & Families,Practise Development,Employees,Temporary / Agency - by Accounts Payable,ATTENTI LTD,EC2R,22/09/2023,"1,888.00"
106663233,Senior Management Team,Children & Families,Senior Management Team - Staffing,Employees,Temporary / Agency - by Accounts Payable,ATTENTI LTD,EC2R,27/09/2023,"3,245.00"
102705233,Senior Management Team,Children & Families,Senior Management Team - Staffing,Employees,Temporary / Agency - by Accounts Payable,ATTENTI LTD,EC2R,01/09/2023,"18,997.81"
103338233,Senior Management Team,Children & Families,Senior Management Team - Staffing,Employees,Temporary / Agency - by Accounts Payable,ATTENTI LTD,EC2R,06/09/2023,"2,950.00"
103881620,Physical Support,Adults,Physical Support 65 and over,Transfer Payments,Personal Budget - Direct Payments - Domiciliary Care,REDACTED PERSONAL DATA,SP11,06/09/2023,"4,008.49"
105370372,Mental Health,Adults,Mental Health 18-64,3rd Party Payments,Nursing Care,AURA CARE LIVING CIRENCESTER LTD,GL7 ,15/09/2023,"5,886.00"
105370372,Physical Support,Adults,Physical Support 65 and over,3rd Party Payments,Residential Care,AURA CARE LIVING CIRENCESTER LTD,GL7 ,15/09/2023,"-5,644.64"
105370372,Physical Support,Adults,Physical Support 65 and over,3rd Party Payments,Nursing Care,AURA CARE LIVING CIRENCESTER LTD,GL7 ,15/09/2023,"4,796.00"
105370372,Physical Support,Adults,Physical Support 65 and over,3rd Party Payments,Nursing Care,AURA CARE LIVING CIRENCESTER LTD,GL7 ,15/09/2023,"5,886.00"
105370372,Mental Health,Adults,Mental Health 65 and over,3rd Party Payments,Residential Care,AURA CARE LIVING CIRENCESTER LTD,GL7 ,15/09/2023,"6,104.00"
105370372,Mental Health,Adults,Mental Health 18-64,3rd Party Payments,Nursing Care,AURA CARE LIVING CIRENCESTER LTD,GL7 ,15/09/2023,"6,720.00"
105370372,Mental Health,Adults,Mental Health 18-64,3rd Party Payments,Residential Care,AURA CARE LIVING CIRENCESTER LTD,GL7 ,15/09/2023,"6,720.00"
105370372,Physical Support,Adults,Physical Support 65 and over,Income,Client Contribution - Nursing,AURA CARE LIVING CIRENCESTER LTD,GL7 ,15/09/2023,-691.20
105370372,Physical Support,Adults,Physical Support 65 and over,3rd Party Payments,Residential Care,AURA CARE LIVING CIRENCESTER LTD,GL7 ,15/09/2023,"4,142.00"
105370372,Physical Support,Adults,Physical Support 65 and over,Income,Client Contribution - Nursing,AURA CARE LIVING CIRENCESTER LTD,GL7 ,15/09/2023,789.94
105370372,Physical Support,Adults,Physical Support 65 and over,3rd Party Payments,Nursing Care,AURA CARE LIVING CIRENCESTER LTD,GL7 ,15/09/2023,"-6,726.86"
105370372,Physical Support,Adults,Physical Support 65 and over,3rd Party Payments,Nursing Care,AURA CARE LIVING CIRENCESTER LTD,GL7 ,15/09/2023,"6,726.86"
105370372,Physical Support,Adults,Physical Support 65 and over,Income,Client Contribution - Nursing,AURA CARE LIVING CIRENCESTER LTD,GL7 ,15/09/2023,-608.00
105370372,Mental Health,Adults,Mental Health 18-64,3rd Party Payments,Residential Care,AURA CARE LIVING CIRENCESTER LTD,GL7 ,15/09/2023,"5,014.00"
105370372,Physical Support,Adults,Physical Support 65 and over,Income,Client Contribution - Residential,AURA CARE LIVING CIRENCESTER LTD,GL7 ,15/09/2023,544.64
105370372,Physical Support,Adults,Physical Support 65 and over,Income,Client Contribution - Nursing,AURA CARE LIVING CIRENCESTER LTD,GL7 ,15/09/2023,"-3,925.03"
105370372,Physical Support,Adults,Physical Support 65 and over,Income,Client Contribution - Nursing,AURA CARE LIVING CIRENCESTER LTD,GL7 ,15/09/2023,-735.64
105370372,Physical Support,Adults,Physical Support 65 and over,Income,Client Contribution - Residential,AURA CARE LIVING CIRENCESTER LTD,GL7 ,15/09/2023,-691.20
105370372,Physical Support,Adults,Physical Support 65 and over,Income,Client Contribution - Nursing,AURA CARE LIVING CIRENCESTER LTD,GL7 ,15/09/2023,-789.94
105370353,Learning Disabilities,Adults,Learning Disability 65 and over,Income,Client Contribution - Residential,AUTONOMY LIFE LIMITED,SN12,15/09/2023,-628.56
105370353,Learning Disabilities,Adults,Learning Disability 65 and over,3rd Party Payments,Residential Care,AUTONOMY LIFE LIMITED,SN12,15/09/2023,"10,027.60"
104977233,Property Management,Property,Property Assets,Supplies and Services,Fees,AVISON YOUNG (UK) LTD,B1 2,13/09/2023,"11,368.20"
105555233,Property Service Charged Properties,Property,Service Charged - Shaw Village Centre,Supplies and Services,Fees,AVISON YOUNG (UK) LTD,B1 2,18/09/2023,892.90
105370254,Learning Disabilities,Adults,Learning Disability 18 - 64,Income,Client Contribution - Residential,AVON AUTISTIC FOUNDATION LTD,BS11,15/09/2023,-438.80
105370255,Learning Disabilities,Adults,Learning Disability 18 - 64,3rd Party Payments,Residential Care,AVON AUTISTIC FOUNDATION LTD,BS11,15/09/2023,"7,668.32"
105370255,Learning Disabilities,Adults,Learning Disability 18 - 64,Income,Client Contribution - Residential,AVON AUTISTIC FOUNDATION LTD,BS11,15/09/2023,-414.20
105370254,Learning Disabilities,Adults,Learning Disability 18 - 64,3rd Party Payments,Residential Care,AVON AUTISTIC FOUNDATION LTD,BS11,15/09/2023,"5,482.04"
106416347,Homelessness and Travellers,Housing Services,Private Sector Landlords,Transfer Payments,Payment of Costs,AVONPARK PROPERTIES LTD,SN3 ,25/09/2023,550.00
106416251,Homelessness and Travellers,Housing Services,Private Sector Landlords,Transfer Payments,Payment of Costs,AVONPARK PROPERTIES LTD,SN3 ,25/09/2023,615.00
104020233,Property Management,Property,Corporate Repairs & Maintenance Programme,Premises Costs,Maintenance - Buildings,AZURA NETWORKS,BN11,08/09/2023,682.00
105048243,Public Health,Public Health,Disabled Facilities Grants,Capital,Grant Payments,B & G JENKINS,SN1 ,13/09/2023,"19,103.34"
106653233,Children's Community Health,Community Health,Public Health 0 - 5 years,Transport Costs,Mileage Allowance,BACK CARE SOLUTIONS LTD,PR5 ,25/09/2023,904.00
105358233,Children's Community Health,Community Health,Public Health 0 - 5 years,Transport Costs,Mileage Allowance,BACK CARE SOLUTIONS LTD,PR5 ,15/09/2023,813.00
105684234,Organisational Resilience,"People, Culture and Organisational Resilience",Health & Safety,Supplies and Services,Accreditations,BACK CARE SOLUTIONS LTD,PR5 ,20/09/2023,-680.00
107172233,Customer Strategy & Operations,"People, Culture and Organisational Resilience",Customer Services,Supplies and Services,Design & Printing Costs,BACK CARE SOLUTIONS LTD,PR5 ,27/09/2023,911.00
105904233,Early Help,Early Intervention & Prevention,Children & Families Commissioning,Transport Costs,Mileage Allowance,BACK CARE SOLUTIONS LTD,PR5 ,20/09/2023,904.00
104979233,Town Centre,"Economy, Growth and Place",Carriage Works Phase 3,Capital,Professional Fees,BAILEY PARTNERSHIP (CONSULTANTS) LLP,PL1 ,13/09/2023,"1,210.00"
103136233,Town Centre,"Economy, Growth and Place",Carriage Works Phase 3,Capital,Professional Fees,BAILEY PARTNERSHIP (CONSULTANTS) LLP,PL1 ,04/09/2023,"2,300.00"
104979233,Town Centre,"Economy, Growth and Place",Carriage Works Phase 3,Capital,Professional Fees,BAILEY PARTNERSHIP (CONSULTANTS) LLP,PL1 ,13/09/2023,181.50
105266233,Streetsmart,Streetsmart,Waste - Disposal,Supplies and Services,Materials,BALER OPTIONS LTD,DE55,15/09/2023,"9,440.00"
107346233,Social Care,Children & Families,Childrens Homefinding Team,Employees,Temporary / Agency - by Accounts Payable,REDACTED PERSONAL DATA,BS1 ,29/09/2023,"2,500.00"
106139301,Social Care,Children & Families,Childrens Homefinding Team,Employees,Temporary / Agency - by Accounts Payable,REDACTED PERSONAL DATA,BS1 ,22/09/2023,"2,500.00"
106652233,Social Care,Children & Families,Childrens Homefinding Team,Employees,Temporary / Agency - by Accounts Payable,REDACTED PERSONAL DATA,BS1 ,25/09/2023,"1,875.00"
104091233,Social Care,Children & Families,Childrens Homefinding Team,Employees,Temporary / Agency - by Accounts Payable,REDACTED PERSONAL DATA,BS1 ,08/09/2023,"3,125.00"
104092233,Social Care,Children & Families,Childrens Homefinding Team,Employees,Temporary / Agency - by Accounts Payable,REDACTED PERSONAL DATA,BS1 ,08/09/2023,"2,500.00"
106652234,Social Care,Children & Families,Childrens Homefinding Team,Employees,Temporary / Agency - by Accounts Payable,REDACTED PERSONAL DATA,BS1 ,25/09/2023,"2,000.00"
105538233,Social Care,Children & Families,Childrens Homefinding Team,Employees,Temporary / Agency - by Accounts Payable,REDACTED PERSONAL DATA,BS1 ,18/09/2023,"3,125.00"
105533233,Social Care,Children & Families,Childrens Homefinding Team,Employees,Temporary / Agency - by Accounts Payable,REDACTED PERSONAL DATA,BS1 ,18/09/2023,"2,500.00"
106140233,Social Care,Children & Families,Childrens Homefinding Team,Employees,Temporary / Agency - by Accounts Payable,REDACTED PERSONAL DATA,BS1 ,22/09/2023,"1,000.00"
105872233,Licencing,Regulatory Services,Taxis & Private Hire,Supplies and Services,Testing / Inspection,BANSAL MOTORS,SN2 ,20/09/2023,"2,750.00"
106184233,Licencing,Regulatory Services,Taxis & Private Hire,Supplies and Services,Testing / Inspection,BANSAL MOTORS,SN2 ,22/09/2023,"2,150.00"
103881613,Physical Support,Adults,Physical Support 65 and over,Transfer Payments,Personal Budget - Direct Payments - Domiciliary Care,REDACTED PERSONAL DATA,2969,06/09/2023,824.01
105814245,Early Years Block,Dedicated Schools Grant (DSG),Free Nursery Education Commissioning - three & four  year olds,3rd Party Payments,Contracts - Child Care,BARN OWL PRE-SCHOOL,SN25,20/09/2023,"6,552.21"
105322233,Libraries,"Education, Inclusion and Skills",Library Shop,Supplies and Services,Goods for resale,BARNES COACHES LTD,SN3 ,15/09/2023,"1,321.18"
105471233,School Transport,"Education, Inclusion and Skills",Mainstream School Transport,Transport Costs,Home to School Transport,BARNES COACHES LTD,SN3 ,18/09/2023,"9,957.90"
104026233,Non-HRA Vehicles,Transport,Vehicle & Plant replacement strategy,Capital,Contractor Payments,BARTEC MUNICIPAL TECHNOLOGIES LTD,S75 ,08/09/2023,"5,735.00"
105553233,Social Care,Children & Families,Childrens Homefinding Team,Supplies and Services,Fees,BCP COUNCIL,BH2 ,18/09/2023,"1,814.84"
104475233,DSG Other Funding,Dedicated Schools Grant (DSG),DFE Additional Grants,3rd Party Payments,Payment of Pupil Premium to school,BEECHCROFT INFANT SCHOOL,SN2 ,13/09/2023,"8,347.00"
104484237,Schools - Primary,Dedicated Schools Grant (DSG),Primary School Budgets,3rd Party Payments,Mainstream Delegated Funding,BEECHCROFT INFANT SCHOOL,SN2 ,13/09/2023,"96,892.00"
105388267,High Needs Block,Dedicated Schools Grant (DSG),SEN Resourcing Assessment Panel,3rd Party Payments,Top up funding - Maintained providers Pre 16,BEECHCROFT INFANT SCHOOL,SN2 ,15/09/2023,"7,300.42"
105370311,Learning Disabilities,Adults,Learning Disability 18 - 64,Income,Client Contribution - Residential,BEECHWOOD COURT LTD,CF10,15/09/2023,-322.56
105370311,Learning Disabilities,Adults,Learning Disability 18 - 64,3rd Party Payments,Residential Care,BEECHWOOD COURT LTD,CF10,15/09/2023,"29,947.84"
105370311,Learning Disabilities,Adults,Learning Disability 18 - 64,3rd Party Payments,Residential Care,BEECHWOOD COURT LTD,CF10,15/09/2023,"20,830.56"
107350233,Homelessness and Travellers,Housing Services,Homelessness Prevention,Transfer Payments,Payment of Costs,BELLE MASION LIMITED T/A PARAMOUNT APARTMENTS BY STAYSERVE,SN25,29/09/2023,537.60
107349233,Homelessness and Travellers,Housing Services,Homelessness Prevention,Transfer Payments,Payment of Costs,BELLE MASION LIMITED T/A PARAMOUNT APARTMENTS BY STAYSERVE,SN25,29/09/2023,537.60
Corporate Card Transaction,Homelessness and Travellers,Housing Services,Bed and Breakfast Accommodation,Transfer Payments,Payment of Costs,Bellemasion.Uk,,25/09/2023,560
Corporate Card Transaction,Homelessness and Travellers,Housing Services,Bed and Breakfast Accommodation,Transfer Payments,Payment of Costs,Bellemasion.Uk,,05/09/2023,560
Corporate Card Transaction,Homelessness and Travellers,Housing Services,Bed and Breakfast Accommodation,Transfer Payments,Payment of Costs,Bellemasion.Uk,,30/08/2023,560
Corporate Card Transaction,Homelessness and Travellers,Housing Services,Bed and Breakfast Accommodation,Transfer Payments,Payment of Costs,Bellemasion.Uk,,30/08/2023,560
104012242,Social Care,Children & Families,Children's Resource and Home Finding Team,3rd Party Payments,Residential Care,BENJAMIN UK LIMITED,LU7 ,08/09/2023,"-7,989.94"
104012244,Social Care,Children & Families,Children's Resource and Home Finding Team,3rd Party Payments,Residential Care,BENJAMIN UK LIMITED,LU7 ,08/09/2023,"17,692.01"
104012243,Social Care,Children & Families,Children's Resource and Home Finding Team,3rd Party Payments,Residential Care,BENJAMIN UK LIMITED,LU7 ,08/09/2023,"17,692.01"
103419233,Social Care,Children & Families,Assessment and Child Protection Team,3rd Party Payments,S17 Emergency Payments,BEST - BE A BETTER YOU,SN3 ,06/09/2023,450.00
107262233,Social Care,Children & Families,Legal Fees,Supplies and Services,Fees,BHATIA BEST SOLICITORS,NG1 ,29/09/2023,224.00
107262233,Social Care,Children & Families,Legal Fees,Supplies and Services,Fees,BHATIA BEST SOLICITORS,NG1 ,29/09/2023,"1,262.00"
107262233,Social Care,Children & Families,Legal Fees,Supplies and Services,Fees,BHATIA BEST SOLICITORS,NG1 ,29/09/2023,"5,469.20"
105277233,Libraries,"Education, Inclusion and Skills",Library Delivery,Supplies and Services,Services,BIBLIOTHECA LTD,SK8 ,15/09/2023,"7,150.00"
104422233,Learning Disabilities,Adults,LD Day Services (OK4U),Premises Costs,Waste,BIFFA WASTE SERVICES LTD,HP12,11/09/2023,598.78
102980233,Care Management & Safeguarding,Adults,Community Safety Partnership,3rd Party Payments,Contract Payments,BIG BEAR PROMO LTD,LE19,01/09/2023,"1,200.00"
104468233,DSG Other Funding,Dedicated Schools Grant (DSG),DFE Additional Grants,3rd Party Payments,Payment of Pupil Premium to school,BISHOPSTONE C E PRIMARY SCHOOL,SN6 ,13/09/2023,"1,618.00"
104481233,Schools - Primary,Dedicated Schools Grant (DSG),Primary School Budgets,3rd Party Payments,Mainstream Delegated Funding,BISHOPSTONE C E PRIMARY SCHOOL,SN6 ,13/09/2023,"27,038.00"
Corporate Card Transaction,Social Care,"Children, Families and Community Health Services",Placement - Care Leaver Team,Supplies and Services,Materials,Bkg*hotel At Booking.C,,25/09/2023,1086.72
Corporate Card Transaction,Social Care,"Children, Families and Community Health Services",External Placements,3rd Party Payments,Care Packages,Bkg*hotel At Booking.C,,08/09/2023,1034.96
Corporate Card Transaction,Social Care,"Children, Families and Community Health Services",External Placements,3rd Party Payments,Care Packages,Bkg*hotel At Booking.C,,25/09/2023,871.77
Corporate Card Transaction,Learning Disabilities,Adults,Learning Disability 26 - 64,3rd Party Payments,Bed and Breakfast Accommodation,Bkg*hotel At Booking.C,,18/09/2023,548.33
Corporate Card Transaction,Social Care,"Children, Families and Community Health Services",CP & CIN Social Work - North,Supplies and Services,Materials,Bkg*hotel At Booking.C,,18/09/2023,1865.23
Corporate Card Transaction,Social Care,"Children, Families and Community Health Services",CP & CIN Social Work - North,Supplies and Services,Materials,Bkg*hotel At Booking.C,,08/09/2023,1089.01
Corporate Card Transaction,Social Care,"Children, Families and Community Health Services",CP & CIN Social Work - North,Supplies and Services,Materials,Bkg*hotel At Booking.C,,30/08/2023,2017.74
104060237,Learning Disabilities,Adults,Learning Disability 18 - 64,3rd Party Payments,Personal Budget - Domiciliary care,BLUEBIRD CARE (SWINDON),SN25,08/09/2023,189.75
104060241,Physical Support,Adults,Physical Support 65 and over,3rd Party Payments,Carers,BLUEBIRD CARE (SWINDON),SN25,08/09/2023,809.60
104060243,Physical Support,Adults,Physical Support 18 - 64,3rd Party Payments,Personal Budget - Domiciliary care,BLUEBIRD CARE (SWINDON),SN25,08/09/2023,971.52
104060239,Learning Disabilities,Adults,Learning Disability 18 - 64,3rd Party Payments,Personal Budget - Domiciliary care,BLUEBIRD CARE (SWINDON),SN25,08/09/2023,971.52
104060236,Physical Support,Adults,Physical Support 65 and over,3rd Party Payments,Personal Budget - Domiciliary care,BLUEBIRD CARE (SWINDON),SN25,08/09/2023,"1,593.90"
104060238,Learning Disabilities,Adults,Learning Disability 18 - 64,3rd Party Payments,Personal Budget - Domiciliary care,BLUEBIRD CARE (SWINDON),SN25,08/09/2023,"1,092.96"
104060237,Learning Disabilities,Adults,Learning Disability 18 - 64,3rd Party Payments,Personal Budget - Domiciliary care,BLUEBIRD CARE (SWINDON),SN25,08/09/2023,"1,328.25"
104060235,Learning Disabilities,Adults,Learning Disability 18 - 64,3rd Party Payments,Personal Budget - Domiciliary care,BLUEBIRD CARE (SWINDON),SN25,08/09/2023,526.24
105716233,Early Years Block,Dedicated Schools Grant (DSG),Free Nursery Education Commissioning - three & four  year olds,3rd Party Payments,Contracts - Child Care,REDACTED PERSONAL DATA,SN3 ,20/09/2023,"12,796.80"
105715233,Early Years Block,Dedicated Schools Grant (DSG),Free Nursery Education Commissioning - two year olds,3rd Party Payments,Contracts - Child Care,REDACTED PERSONAL DATA,SN3 ,20/09/2023,"3,545.02"
105370337,Mental Health,Adults,Mental Health 65 and over,3rd Party Payments,Residential Care,BOLEALLER HOUSE LTD,EX15,15/09/2023,"5,299.80"
102576233,Libraries,"Education, Inclusion and Skills",Library Delivery,Supplies and Services,Materials,BOLINDA UK LTD,RG14,01/09/2023,578.82
103300233,Physical Support,Adults,Fessey House,Supplies and Services,Food,BOOKER LIMITED,CH5 ,06/09/2023,390.69
105626233,Physical Support,Adults,Fessey House,Supplies and Services,Food,BOOKER LIMITED,CH5 ,20/09/2023,373.39
105626233,Physical Support,Adults,Fessey House,Supplies and Services,Food,BOOKER LIMITED,CH5 ,20/09/2023,302.12
103300233,Physical Support,Adults,Fessey House,Supplies and Services,Food,BOOKER LIMITED,CH5 ,06/09/2023,107.66
103966500,Traded Services,"Education, Inclusion and Skills",Plas Pencelli Outdoor Education Centre,Premises Costs,Maintenance - Buildings,BORLEY LAMINATES LTD T/A WILLIS SYSTEMS,CF3 ,08/09/2023,988.00
105370277,Physical Support,Adults,Physical Support 18 - 64,3rd Party Payments,Nursing Care,BOTHWELLS LTD,HA6 ,15/09/2023,"2,867.32"
105370277,Physical Support,Adults,Physical Support 18 - 64,Income,Client Contribution - Nursing,BOTHWELLS LTD,HA6 ,15/09/2023,-425.60
105370277,Physical Support,Adults,Physical Support 65 and over,Income,Client Contribution - Nursing,BOTHWELLS LTD,HA6 ,15/09/2023,-779.00
105370277,Physical Support,Adults,Physical Support 65 and over,3rd Party Payments,Nursing Care,BOTHWELLS LTD,HA6 ,15/09/2023,"-2,274.45"
105370277,Physical Support,Adults,Physical Support 65 and over,3rd Party Payments,Nursing Care,BOTHWELLS LTD,HA6 ,15/09/2023,"-5,271.43"
105370277,Physical Support,Adults,Physical Support 65 and over,3rd Party Payments,Residential Care,BOTHWELLS LTD,HA6 ,15/09/2023,"2,442.86"
105370277,Physical Support,Adults,Physical Support 65 and over,Income,Client Contribution - Nursing,BOTHWELLS LTD,HA6 ,15/09/2023,-659.80
105370277,Physical Support,Adults,Physical Support 65 and over,3rd Party Payments,Nursing Care,BOTHWELLS LTD,HA6 ,15/09/2023,"-4,757.14"
105370277,Physical Support,Adults,Physical Support 65 and over,3rd Party Payments,Nursing Care,BOTHWELLS LTD,HA6 ,15/09/2023,"3,763.24"
105370277,Physical Support,Adults,Physical Support 65 and over,3rd Party Payments,Nursing Care,BOTHWELLS LTD,HA6 ,15/09/2023,"3,270.76"
105370277,Physical Support,Adults,Physical Support 65 and over,3rd Party Payments,Residential Care,BOTHWELLS LTD,HA6 ,15/09/2023,"3,600.00"
105370277,Physical Support,Adults,Physical Support 65 and over,Income,Client Contribution - Nursing,BOTHWELLS LTD,HA6 ,15/09/2023,-691.20
105370277,Physical Support,Adults,Physical Support 65 and over,Income,Client Contribution - Nursing,BOTHWELLS LTD,HA6 ,15/09/2023,-608.80
105370277,Physical Support,Adults,Physical Support 65 and over,3rd Party Payments,Nursing Care,BOTHWELLS LTD,HA6 ,15/09/2023,"7,160.96"
105370277,Physical Support,Adults,Physical Support 65 and over,3rd Party Payments,Nursing Care,BOTHWELLS LTD,HA6 ,15/09/2023,"2,867.32"
105370277,Physical Support,Adults,Physical Support 65 and over,Income,Client Contribution - Nursing,BOTHWELLS LTD,HA6 ,15/09/2023,-909.16
105370277,Physical Support,Adults,Physical Support 65 and over,Income,Client Contribution - Nursing,BOTHWELLS LTD,HA6 ,15/09/2023,"-1,182.84"
105370277,Physical Support,Adults,Physical Support 65 and over,Income,Client Contribution - Nursing,BOTHWELLS LTD,HA6 ,15/09/2023,"-1,384.80"
105370277,Physical Support,Adults,Physical Support 65 and over,Income,Client Contribution - Nursing,BOTHWELLS LTD,HA6 ,15/09/2023,790.53
105370277,Physical Support,Adults,Physical Support 65 and over,Income,Client Contribution - Nursing,BOTHWELLS LTD,HA6 ,15/09/2023,"1,016.57"
105370277,Physical Support,Adults,Physical Support 65 and over,Income,Client Contribution - Nursing,BOTHWELLS LTD,HA6 ,15/09/2023,-781.40
104429255,Responsive Repairs,Repairs,Responsive Repairs,3rd Party Payments,Contract Payments,BOUNDARY SCAFFOLDING LTD,SN6 ,11/09/2023,960.00
104429253,Responsive Repairs,Repairs,Responsive Repairs,3rd Party Payments,Contract Payments,BOUNDARY SCAFFOLDING LTD,SN6 ,11/09/2023,890.00
102965233,Responsive Repairs,Repairs,Responsive Repairs,3rd Party Payments,Contract Payments,BOUNDARY SCAFFOLDING LTD,SN6 ,01/09/2023,"1,292.00"
104429247,Responsive Repairs,Repairs,Responsive Repairs,3rd Party Payments,Contract Payments,BOUNDARY SCAFFOLDING LTD,SN6 ,11/09/2023,890.00
104429249,Responsive Repairs,Repairs,Responsive Repairs,3rd Party Payments,Contract Payments,BOUNDARY SCAFFOLDING LTD,SN6 ,11/09/2023,580.00
104429250,Responsive Repairs,Repairs,Responsive Repairs,3rd Party Payments,Contract Payments,BOUNDARY SCAFFOLDING LTD,SN6 ,11/09/2023,960.00
102967233,Responsive Repairs,Repairs,Responsive Repairs,3rd Party Payments,Contract Payments,BOUNDARY SCAFFOLDING LTD,SN6 ,01/09/2023,940.00
102964233,Responsive Repairs,Repairs,Responsive Repairs,3rd Party Payments,Contract Payments,BOUNDARY SCAFFOLDING LTD,SN6 ,01/09/2023,479.00
106862233,Responsive Repairs,Repairs,Responsive Repairs,3rd Party Payments,Contract Payments,BOUNDARY SCAFFOLDING LTD,SN6 ,27/09/2023,216.00
104429254,Responsive Repairs,Repairs,Responsive Repairs,3rd Party Payments,Contract Payments,BOUNDARY SCAFFOLDING LTD,SN6 ,11/09/2023,580.00
104429252,Responsive Repairs,Repairs,Responsive Repairs,3rd Party Payments,Contract Payments,BOUNDARY SCAFFOLDING LTD,SN6 ,11/09/2023,890.00
104429256,Responsive Repairs,Repairs,Responsive Repairs,3rd Party Payments,Contract Payments,BOUNDARY SCAFFOLDING LTD,SN6 ,11/09/2023,580.00
106862233,Responsive Repairs,Repairs,Responsive Repairs,3rd Party Payments,Contract Payments,BOUNDARY SCAFFOLDING LTD,SN6 ,27/09/2023,144.00
104429257,Responsive Repairs,Repairs,Responsive Repairs,3rd Party Payments,Contract Payments,BOUNDARY SCAFFOLDING LTD,SN6 ,11/09/2023,"1,120.00"
104429248,Responsive Repairs,Repairs,Responsive Repairs,3rd Party Payments,Contract Payments,BOUNDARY SCAFFOLDING LTD,SN6 ,11/09/2023,720.00
104429251,Responsive Repairs,Repairs,Responsive Repairs,3rd Party Payments,Contract Payments,BOUNDARY SCAFFOLDING LTD,SN6 ,11/09/2023,960.00
104375233,Void Repairs,Supervision & Management,Void Property Repairs,Supplies and Services,Materials,BOUNDARY SCAFFOLDING LTD,SN6 ,11/09/2023,845.00
106862233,Responsive Repairs,Repairs,Responsive Repairs,3rd Party Payments,Contract Payments,BOUNDARY SCAFFOLDING LTD,SN6 ,27/09/2023,72.00
102966233,Responsive Repairs,Repairs,Responsive Repairs,3rd Party Payments,Contract Payments,BOUNDARY SCAFFOLDING LTD,SN6 ,01/09/2023,475.00
104993233,Human Resources and Organisational Development,"People, Culture and Organisational Resilience",Organisational Development,Employees,Training,BOURNEMOUTH UNIVERSITY,BH1 ,13/09/2023,813.00
107348238,Responsive Repairs,Repairs,Responsive Repairs,3rd Party Payments,Contract Payments,BPM CONTRACTING SERVICES LTD,BA2 ,29/09/2023,815.85
104450236,Responsive Repairs,Repairs,Responsive Repairs,3rd Party Payments,Contract Payments,BPM CONTRACTING SERVICES LTD,BA2 ,15/09/2023,613.89
104452245,Responsive Repairs,Repairs,Responsive Repairs,3rd Party Payments,Contract Payments,BPM CONTRACTING SERVICES LTD,BA2 ,15/09/2023,707.62
104452234,Responsive Repairs,Repairs,Responsive Repairs,3rd Party Payments,Contract Payments,BPM CONTRACTING SERVICES LTD,BA2 ,15/09/2023,463.20
105168240,Responsive Repairs,Repairs,Responsive Repairs,3rd Party Payments,Contract Payments,BPM CONTRACTING SERVICES LTD,BA2 ,15/09/2023,495.51
105717233,Early Years Block,Dedicated Schools Grant (DSG),Free Nursery Education Commissioning - three & four  year olds,3rd Party Payments,Contracts - Child Care,BRAMBLE HOUSE DAY NURSERY LTD,SN2 ,20/09/2023,"17,640.00"
106697233,High Needs Block,Dedicated Schools Grant (DSG),SEN Resourcing Assessment Panel,3rd Party Payments,Top up funding - Maintained providers Pre 16,BRAMBLE HOUSE DAY NURSERY LTD,SN2 ,27/09/2023,"1,260.00"
106768233,Early Years Block,Dedicated Schools Grant (DSG),Free Nursery Education Commissioning - three & four  year olds,3rd Party Payments,Contracts - Child Care,BRAMBLE HOUSE DAY NURSERY LTD,SN2 ,27/09/2023,"2,280.00"
105718233,Early Years Block,Dedicated Schools Grant (DSG),Free Nursery Education Commissioning - two year olds,3rd Party Payments,Contracts - Child Care,BRAMBLE HOUSE DAY NURSERY LTD,SN2 ,20/09/2023,"8,127.62"
106139298,Social Care,Children & Families,Children's Resource and Home Finding Team,3rd Party Payments,Residential Care,BRANAS ISAF LIMITED,EN6 ,22/09/2023,"23,785.80"
103206234,Property Management,Property,Corporate Repairs & Maintenance Programme,Premises Costs,Maintenance - Buildings,BRISTOL FIRE,BS37,04/09/2023,896.65
103226233,Other Repairs,Repairs,Unallocated job costs from OPEN system,Premises Costs,Maintenance - Buildings,BRISTOL FIRE,BS37,04/09/2023,"1,532.90"
104028233,Streetsmart,Streetsmart,Waterside Depot,Premises Costs,Gas,BRITISH GAS TRADING LTD,S98 ,08/09/2023,"5,224.00"
103492233,Streetsmart,Streetsmart,Waterside Depot,Premises Costs,Gas,BRITISH GAS TRADING LTD,S98 ,06/09/2023,906.35
104027233,Streetsmart,Streetsmart,Waterside Depot,Premises Costs,Gas,BRITISH GAS TRADING LTD,S98 ,08/09/2023,"8,338.87"
103490233,Streetsmart,Streetsmart,Waterside Depot,Premises Costs,Gas,BRITISH GAS TRADING LTD,S98 ,06/09/2023,"2,987.98"
104025233,Streetsmart,Streetsmart,Waterside Depot,Premises Costs,Gas,BRITISH GAS TRADING LTD,S98 ,08/09/2023,"4,280.03"
103489233,Streetsmart,Streetsmart,Waterside Depot,Premises Costs,Gas,BRITISH GAS TRADING LTD,S98 ,06/09/2023,"3,050.22"
104031233,Streetsmart,Streetsmart,Waterside Depot,Premises Costs,Gas,BRITISH GAS TRADING LTD,S98 ,08/09/2023,"3,813.91"
103494233,Streetsmart,Streetsmart,Waterside Depot,Premises Costs,Gas,BRITISH GAS TRADING LTD,S98 ,06/09/2023,"3,066.21"
103491233,Streetsmart,Streetsmart,Waterside Depot,Premises Costs,Gas,BRITISH GAS TRADING LTD,S98 ,06/09/2023,"3,051.29"
103817233,Town Centre,"Economy, Growth and Place",Fleming Way Improvement Scheme,Capital,Contractor Payments,BRITISH TELECOMMUNICATIONS PLC,S1 3,06/09/2023,"28,759.37"
105522233,,,Balance Sheet,Balance Sheet & Recharge,British Telecom invoices,BRITISH TELECOMMUNICATIONS PLC,S98 ,18/09/2023,"20,708.48"
105554233,,,Balance Sheet,Balance Sheet & Recharge,British Telecom invoices,BRITISH TELECOMMUNICATIONS PLC,NE82,18/09/2023,"21,311.92"
105039243,Corporate,Corporate Finance,Corporate Financial Management,Supplies and Services,Fees,BROADSTONE CONSULTANTS & ACTUARIES LTD,BS1 ,13/09/2023,"17,462.50"
102489233,Corporate,Corporate Finance,Corporate Financial Management,Supplies and Services,Fees,BROADSTONE CONSULTANTS & ACTUARIES LTD,BS1 ,01/09/2023,"4,508.00"
102420233,Disabled Children,Children & Families,DCT Daytime Short Breaks,3rd Party Payments,Day Care,BRUNEL EDUCATION,SN25,01/09/2023,831.60
102331233,Disabled Children,Children & Families,DCT Daytime Short Breaks,3rd Party Payments,Day Care,BRUNEL EDUCATION,SN25,01/09/2023,924.00
102297233,Disabled Children,Children & Families,DCT Daytime Short Breaks,3rd Party Payments,Day Care,BRUNEL EDUCATION,SN25,01/09/2023,594.00
102332233,Disabled Children,Children & Families,DCT Daytime Short Breaks,3rd Party Payments,Day Care,BRUNEL EDUCATION,SN25,01/09/2023,660.00
102422233,Disabled Children,Children & Families,DCT Daytime Short Breaks,3rd Party Payments,Day Care,BRUNEL EDUCATION,SN25,01/09/2023,831.60
105388358,High Needs Block,Dedicated Schools Grant (DSG),Post 16 - New Responsibilties,3rd Party Payments,Independent Service Provider- Post 16,BRUNEL EDUCATION,SN25,15/09/2023,"113,367.67"
102266233,Disabled Children,Children & Families,DCT Daytime Short Breaks,3rd Party Payments,Day Care,BRUNEL EDUCATION,SN25,01/09/2023,726.00
105388325,High Needs Block,Dedicated Schools Grant (DSG),SEN Resourcing Assessment Panel,3rd Party Payments,Top up funding - Academies and Free Schools Pre 16,BRUNEL EDUCATION,SN25,15/09/2023,"8,803.76"
102299233,Disabled Children,Children & Families,DCT Daytime Short Breaks,3rd Party Payments,Day Care,BRUNEL EDUCATION,SN25,01/09/2023,880.00
102424233,Disabled Children,Children & Families,DCT Daytime Short Breaks,3rd Party Payments,Day Care,BRUNEL EDUCATION,SN25,01/09/2023,"1,100.00"
102287233,Disabled Children,Children & Families,Aiming High for Disabled Children,Supplies and Services,Services,BRUNEL EDUCATION,SN25,01/09/2023,"1,745.40"
102329233,Disabled Children,Children & Families,DCT Daytime Short Breaks,3rd Party Payments,Day Care,BRUNEL EDUCATION,SN25,01/09/2023,616.00
102290233,Disabled Children,Children & Families,DCT Daytime Short Breaks,3rd Party Payments,Day Care,BRUNEL EDUCATION,SN25,01/09/2023,"1,122.00"
104461236,High Needs Block,Dedicated Schools Grant (DSG),Advisory Teacher Services,Supplies and Services,Payments to Educational Bodies,REDACTED PERSONAL DATA,SN25,13/09/2023,"11,325.00"
105388328,High Needs Block,Dedicated Schools Grant (DSG),SEN Resourcing Assessment Panel,3rd Party Payments,Top up funding - Academies and Free Schools Pre 16,REDACTED PERSONAL DATA,SN25,15/09/2023,"152,203.10"
105388323,High Needs Block,Dedicated Schools Grant (DSG),SEN Resourcing Assessment Panel,3rd Party Payments,Top up funding - Academies and Free Schools Pre 16,REDACTED PERSONAL DATA,SN25,15/09/2023,"113,113.78"
105388339,High Needs Block,Dedicated Schools Grant (DSG),SEN Resourcing Assessment Panel,3rd Party Payments,Top up funding - Academies and Free Schools Pre 16,REDACTED PERSONAL DATA,SN25,15/09/2023,"38,206.64"
107388233,SEND Funds,Skills & Attainment,Education High Needs Provision,Capital,2022/23 expenditure,REDACTED PERSONAL DATA,SN25,29/09/2023,"192,750.38"
105388346,High Needs Block,Dedicated Schools Grant (DSG),SEN Resourcing Assessment Panel,3rd Party Payments,Top up funding - Academies and Free Schools Pre 16,REDACTED PERSONAL DATA,SN25,15/09/2023,"7,332.89"
105388324,High Needs Block,Dedicated Schools Grant (DSG),SEN Resourcing Assessment Panel,3rd Party Payments,Top up funding - Academies and Free Schools Pre 16,REDACTED PERSONAL DATA,SN25,15/09/2023,"7,291.67"
105388327,High Needs Block,Dedicated Schools Grant (DSG),SEN Resourcing Assessment Panel,3rd Party Payments,Top up funding - Academies and Free Schools Pre 16,REDACTED PERSONAL DATA,SN25,15/09/2023,"76,449.07"
104461235,High Needs Block,Dedicated Schools Grant (DSG),Advisory Teacher Services,Supplies and Services,Payments to Educational Bodies,REDACTED PERSONAL DATA,SN25,13/09/2023,"7,250.00"
106752233,Early Years Block,Dedicated Schools Grant (DSG),Free Nursery Education Commissioning - three & four  year olds,3rd Party Payments,Contracts - Child Care,REDACTED PERSONAL DATA,SN25,27/09/2023,"2,280.00"
107244233,SEND Funds,Skills & Attainment,Education High Needs Provision,Capital,2022/23 expenditure,REDACTED PERSONAL DATA,SN25,29/09/2023,"54,222.85"
105388349,High Needs Block,Dedicated Schools Grant (DSG),SEN Resourcing Assessment Panel,3rd Party Payments,Top up funding - Academies and Free Schools Pre 16,REDACTED PERSONAL DATA,SN25,15/09/2023,"21,503.02"
107246233,SEND Funds,Skills & Attainment,Education High Needs Provision,Capital,2022/23 expenditure,REDACTED PERSONAL DATA,SN25,29/09/2023,"50,000.00"
107243233,SEND Funds,Skills & Attainment,Education High Needs Provision,Capital,2022/23 expenditure,REDACTED PERSONAL DATA,SN25,29/09/2023,"14,072.99"
105388351,High Needs Block,Dedicated Schools Grant (DSG),SEN Resourcing Assessment Panel,3rd Party Payments,Top up funding - Academies and Free Schools Post 16,REDACTED PERSONAL DATA,SN25,15/09/2023,"53,295.85"
105388350,High Needs Block,Dedicated Schools Grant (DSG),SEN Resourcing Assessment Panel,3rd Party Payments,Top up funding - Academies and Free Schools Pre 16,REDACTED PERSONAL DATA,SN25,15/09/2023,"23,200.50"
105388308,High Needs Block,Dedicated Schools Grant (DSG),SEN Resourcing Assessment Panel,3rd Party Payments,Top up funding - Academies and Free Schools Pre 16,REDACTED PERSONAL DATA,SN25,15/09/2023,"4,112.92"
105388331,High Needs Block,Dedicated Schools Grant (DSG),SEN Resourcing Assessment Panel,3rd Party Payments,Top up funding - Academies and Free Schools Pre 16,REDACTED PERSONAL DATA,SN25,15/09/2023,"140,701.70"
105388326,High Needs Block,Dedicated Schools Grant (DSG),SEN Resourcing Assessment Panel,3rd Party Payments,Top up funding - Academies and Free Schools Pre 16,REDACTED PERSONAL DATA,SN25,15/09/2023,"37,773.13"
105814346,Early Years Block,Dedicated Schools Grant (DSG),Free Nursery Education Commissioning - three & four  year olds,3rd Party Payments,Contracts - Child Care,REDACTED PERSONAL DATA,SN25,20/09/2023,"6,260.76"
107321233,NEV,"Economy, Growth and Place",Southern Connector Road,Capital,Consultants,BRUTON KNOWLES,GL2 ,29/09/2023,"3,205.60"
105684233,NEV,"Economy, Growth and Place",Southern Connector Road,Capital,Compensation Payments,BRUTON KNOWLES,GL2 ,20/09/2023,"6,078.90"
104374233,Property & Assets,Property & Assets,General Enhancement Works Corporate Buildings,Capital,Contractor Payments,BUILDTECH SW LIMITED,GL53,11/09/2023,"10,596.28"
104048233,Schools Maintenance,Skills & Attainment,Condition Works,Capital,Contractor Payments,BUILDTECH SW LIMITED,GL53,08/09/2023,"1,647.00"
104056233,Schools Maintenance,Skills & Attainment,Condition Works,Capital,Contractor Payments,BUILDTECH SW LIMITED,GL53,08/09/2023,"7,820.61"
104056233,Schools Maintenance,Skills & Attainment,Condition Works,Capital,Contractor Payments,BUILDTECH SW LIMITED,GL53,08/09/2023,"18,248.09"
104048233,Schools Maintenance,Skills & Attainment,Condition Works,Capital,Contractor Payments,BUILDTECH SW LIMITED,GL53,08/09/2023,"2,850.00"
104374233,Property & Assets,Property & Assets,General Enhancement Works Corporate Buildings,Capital,Contractor Payments,BUILDTECH SW LIMITED,GL53,11/09/2023,"15,894.42"
105370382,Physical Support,Adults,Physical Support 65 and over,3rd Party Payments,Residential Care,BUPA CARE HOME (ANS) LTD,LS5 ,15/09/2023,"4,400.00"
105814248,Early Years Block,Dedicated Schools Grant (DSG),Free Nursery Education Commissioning - two year olds,3rd Party Payments,Contracts - Child Care,"BUSY BEES, BROOME MANOR",SN3 ,20/09/2023,"1,296.96"
105814249,Early Years Block,Dedicated Schools Grant (DSG),Free Nursery Education Commissioning - three & four  year olds,3rd Party Payments,Contracts - Child Care,"BUSY BEES, BROOME MANOR",SN3 ,20/09/2023,"11,474.40"
103808233,Early Years Block,Dedicated Schools Grant (DSG),Free Nursery Education Commissioning - three & four  year olds,3rd Party Payments,Contracts - Child Care,"BUSY BEES, BROOME MANOR",SN3 ,06/09/2023,518.70
105814251,Early Years Block,Dedicated Schools Grant (DSG),Free Nursery Education Commissioning - two year olds,3rd Party Payments,Contracts - Child Care,"BUSY BEES, PEATMOOR",SN5 ,20/09/2023,"2,593.92"
106041233,Early Years Block,Dedicated Schools Grant (DSG),Free Nursery Education Commissioning - three & four  year olds,3rd Party Payments,Contracts - Child Care,"BUSY BEES, PEATMOOR",SN5 ,20/09/2023,"13,066.30"
105814250,Early Years Block,Dedicated Schools Grant (DSG),Free Nursery Education Commissioning - three & four  year olds,3rd Party Payments,Contracts - Child Care,"BUSY BEES, PEATMOOR",SN5 ,20/09/2023,"11,662.00"
105814247,Early Years Block,Dedicated Schools Grant (DSG),Free Nursery Education Commissioning - two year olds,3rd Party Payments,Contracts - Child Care,"BUSY BEES, ST ANDREWS RIDGE",SN25,20/09/2023,864.64
105814246,Early Years Block,Dedicated Schools Grant (DSG),Free Nursery Education Commissioning - three & four  year olds,3rd Party Payments,Contracts - Child Care,"BUSY BEES, ST ANDREWS RIDGE",SN25,20/09/2023,"17,248.00"
105281233,Property & Assets,Property & Assets,General Enhancement Works Corporate Buildings,Capital,Contractor Payments,C J COOK CONTRACTORS LTD,GL53,15/09/2023,"6,200.00"
105370295,Learning Disabilities,Adults,Learning Disability 65 and over,Income,Client Contribution - Residential,C.H.O.I.C.E LTD,RG12,15/09/2023,-639.20
105370295,Learning Disabilities,Adults,Learning Disability 18 - 64,3rd Party Payments,Residential Care,C.H.O.I.C.E LTD,RG12,15/09/2023,"9,887.36"
105370292,Learning Disabilities,Adults,Learning Disability 18 - 64,3rd Party Payments,Residential Care,C.H.O.I.C.E LTD,RG12,15/09/2023,"13,814.08"
105370294,Learning Disabilities,Adults,Learning Disability 65 and over,3rd Party Payments,Residential Care,C.H.O.I.C.E LTD,RG12,15/09/2023,"9,862.32"
105370294,Learning Disabilities,Adults,Learning Disability 65 and over,Income,Client Contribution - Residential,C.H.O.I.C.E LTD,RG12,15/09/2023,-773.20
105370291,Learning Disabilities,Adults,Learning Disability 18 - 64,3rd Party Payments,Residential Care,C.H.O.I.C.E LTD,RG12,15/09/2023,"9,531.52"
105370292,Learning Disabilities,Adults,Learning Disability 18 - 64,Income,Client Contribution - Residential,C.H.O.I.C.E LTD,RG12,15/09/2023,-427.20
105370290,Learning Disabilities,Adults,Learning Disability 18 - 64,Income,Client Contribution - Residential,C.H.O.I.C.E LTD,RG12,15/09/2023,-315.89
105370295,Learning Disabilities,Adults,Learning Disability 18 - 64,Income,Client Contribution - Residential,C.H.O.I.C.E LTD,RG12,15/09/2023,-481.00
105370294,Learning Disabilities,Adults,Learning Disability 65 and over,3rd Party Payments,Residential Care,C.H.O.I.C.E LTD,RG12,15/09/2023,"10,516.64"
105370294,Learning Disabilities,Adults,Learning Disability 65 and over,Income,Client Contribution - Residential,C.H.O.I.C.E LTD,RG12,15/09/2023,-607.60
105370290,Learning Disabilities,Adults,Learning Disability 18 - 64,3rd Party Payments,Residential Care,C.H.O.I.C.E LTD,RG12,15/09/2023,"13,440.00"
105370291,Learning Disabilities,Adults,Learning Disability 18 - 64,Income,Client Contribution - Residential,C.H.O.I.C.E LTD,RG12,15/09/2023,-511.20
105370295,Learning Disabilities,Adults,Learning Disability 65 and over,3rd Party Payments,Residential Care,C.H.O.I.C.E LTD,RG12,15/09/2023,"9,797.76"
105370293,Learning Disabilities,Adults,Learning Disability 18 - 64,3rd Party Payments,Residential Care,C.H.O.I.C.E LTD,SO23,15/09/2023,"8,531.76"
105370295,Learning Disabilities,Adults,Learning Disability 65 and over,3rd Party Payments,Residential Care,C.H.O.I.C.E LTD,RG12,15/09/2023,"10,380.16"
105370296,Physical Support,Adults,Physical Support 18 - 64,Income,Client Contribution - Residential,C.H.O.I.C.E LTD,RG12,15/09/2023,-483.20
105370290,Learning Disabilities,Adults,Learning Disability 18 - 64,Income,Client Contribution - Residential,C.H.O.I.C.E LTD,RG12,15/09/2023,-384.56
105370296,Learning Disabilities,Adults,Learning Disability 18 - 64,Income,Client Contribution - Residential,C.H.O.I.C.E LTD,RG12,15/09/2023,-454.80
105370295,Learning Disabilities,Adults,Learning Disability 65 and over,Income,Client Contribution - Residential,C.H.O.I.C.E LTD,RG12,15/09/2023,-617.76
105370296,Learning Disabilities,Adults,Learning Disability 18 - 64,3rd Party Payments,Residential Care,C.H.O.I.C.E LTD,RG12,15/09/2023,"12,844.16"
105370296,Learning Disabilities,Adults,Learning Disability 18 - 64,3rd Party Payments,Residential Care,C.H.O.I.C.E LTD,RG12,15/09/2023,"13,870.08"
105370290,Learning Disabilities,Adults,Learning Disability 18 - 64,Income,Client Contribution - Residential,C.H.O.I.C.E LTD,RG12,15/09/2023,244.95
105370296,Learning Disabilities,Adults,Learning Disability 18 - 64,Income,Client Contribution - Residential,C.H.O.I.C.E LTD,RG12,15/09/2023,-276.60
105370296,Physical Support,Adults,Physical Support 18 - 64,3rd Party Payments,Residential Care,C.H.O.I.C.E LTD,RG12,15/09/2023,"11,449.52"
105299249,Social Care,Children & Families,Children's Resource and Home Finding Team,3rd Party Payments,Residential Care,CALCOT SERVICES FOR CHILDREN LTD,RG7 ,15/09/2023,"28,414.20"
105299248,Social Care,Children & Families,Children's Resource and Home Finding Team,3rd Party Payments,Residential Care,CALCOT SERVICES FOR CHILDREN LTD,RG7 ,15/09/2023,"28,928.40"
103881457,Learning Disabilities,Adults,Learning Disability 18 - 64,Transfer Payments,Personal Budget - Direct Payments - Domiciliary Care,REDACTED PERSONAL DATA,SP11,06/09/2023,"1,958.22"
103881552,Learning Disabilities,Adults,Learning Disability 18 - 64,Transfer Payments,Personal Budget - Direct Payments - Domiciliary Care,REDACTED PERSONAL DATA,SP11,06/09/2023,674.42
103631233,Lydiard Park,Culture & Heritage,Lydiard : Hotel Operations,Premises Costs,Gas,CALOR GAS LTD,CV34,06/09/2023,"2,104.83"
103862233,Physical Support,Adults,Physical Support 18 - 64,Transfer Payments,Personal Budget - Direct Payments - Domiciliary Care,REDACTED PERSONAL DATA,SN25,06/09/2023,896.80
106133233,Social Care,Children & Families,Legal Fees,Supplies and Services,Fees,CANSFORD LABORATORIES LTD,CF23,22/09/2023,440.84
106634233,Disabled Capital Codes,Disabled Codes 2,"Voids - Fencing, Concreting & Environmental Works",Capital,Contractor Payments,CANTILLON GROUP LTD,SN25,27/09/2023,"6,159.90"
106634233,Void Repairs,Supervision & Management,Void Property Repairs,3rd Party Payments,Contract Payments,CANTILLON GROUP LTD,SN25,27/09/2023,"10,176.02"
106634233,Disabled Capital Codes,Disabled Codes 2,Voids - Windows & Ext Doors,Capital,Contractor Payments,CANTILLON GROUP LTD,SN25,27/09/2023,"-50,000.00"
106634237,Other Repairs,Repairs,Cyclical Maintenance,Supplies and Services,Testing / Inspection,CANTILLON GROUP LTD,SN25,27/09/2023,598.75
106870233,Schools Maintenance,Skills & Attainment,Condition Works,Capital,Contractor Payments,CANTILLON GROUP LTD,SN25,27/09/2023,"113,780.95"
106634235,Other Repairs,Repairs,Cyclical Maintenance,Supplies and Services,Testing / Inspection,CANTILLON GROUP LTD,SN25,29/09/2023,657.72
106634233,Acquisitions,HRA Capital Financing,HRA Acquisitions Programme,Capital,Contractor Payments,CANTILLON GROUP LTD,SN25,27/09/2023,"3,594.89"
106634233,Acquisitions,HRA Capital Financing,HRA Acquisitions Programme,Capital,Contractor Payments,CANTILLON GROUP LTD,SN25,27/09/2023,"2,746.50"
106634233,Void Repairs,Supervision & Management,Void Property Repairs,3rd Party Payments,Contract Payments,CANTILLON GROUP LTD,SN25,27/09/2023,"3,658.77"
106634233,Planned Maintenance Programme,HRA Capital Financing,Kitchens,Capital,Contractor Payments,CANTILLON GROUP LTD,SN25,27/09/2023,"4,901.05"
106716233,Other Repairs,Repairs,Cyclical Maintenance,Supplies and Services,Testing / Inspection,CANTILLON GROUP LTD,SN25,27/09/2023,400.00
106634233,Disabled Capital Codes,Disabled Codes 2,Voids - Bathrooms,Capital,Contractor Payments,CANTILLON GROUP LTD,SN25,27/09/2023,"2,525.09"
106634239,Other Repairs,Repairs,Cyclical Maintenance,Supplies and Services,Testing / Inspection,CANTILLON GROUP LTD,SN25,27/09/2023,"1,000.00"
106634241,Other Repairs,Repairs,Cyclical Maintenance,Supplies and Services,Testing / Inspection,CANTILLON GROUP LTD,SN25,29/09/2023,"1,000.00"
106634241,Other Repairs,Repairs,Cyclical Maintenance,Supplies and Services,Testing / Inspection,CANTILLON GROUP LTD,SN25,29/09/2023,"1,162.35"
106870233,Schools Maintenance,Skills & Attainment,Condition Works,Capital,Contractor Payments,CANTILLON GROUP LTD,SN25,27/09/2023,"50,000.00"
106634233,Void Repairs,Supervision & Management,Void Property Repairs,3rd Party Payments,Contract Payments,CANTILLON GROUP LTD,SN25,27/09/2023,"12,390.42"
106634233,Void Repairs,Supervision & Management,Void Property Repairs,3rd Party Payments,Contract Payments,CANTILLON GROUP LTD,SN25,27/09/2023,"22,659.95"
106634233,Acquisitions,HRA Capital Financing,HRA Acquisitions Programme,Capital,Contractor Payments,CANTILLON GROUP LTD,SN25,27/09/2023,"2,796.17"
106634233,Planned Maintenance Programme,HRA Capital Financing,Bathrooms,Capital,Contractor Payments,CANTILLON GROUP LTD,SN25,27/09/2023,"3,476.02"
106634237,Other Repairs,Repairs,Cyclical Maintenance,Supplies and Services,Testing / Inspection,CANTILLON GROUP LTD,SN25,27/09/2023,"1,000.00"
106716233,Other Repairs,Repairs,Cyclical Maintenance,Supplies and Services,Testing / Inspection,CANTILLON GROUP LTD,SN25,27/09/2023,456.22
106634233,Disabled Capital Codes,Disabled Codes 2,Voids - Windows & Ext Doors,Capital,Contractor Payments,CANTILLON GROUP LTD,SN25,27/09/2023,"1,081.28"
106634233,Planned Maintenance Programme,HRA Capital Financing,Bathrooms,Capital,Contractor Payments,CANTILLON GROUP LTD,SN25,27/09/2023,"3,311.31"
106634233,Void Repairs,Supervision & Management,Void Property Repairs,3rd Party Payments,Contract Payments,CANTILLON GROUP LTD,SN25,27/09/2023,"2,924.85"
106634233,Disabled Capital Codes,Disabled Codes 2,Voids - Windows & Ext Doors,Capital,Contractor Payments,CANTILLON GROUP LTD,SN25,27/09/2023,"50,000.00"
106634233,Void Repairs,Supervision & Management,Void Property Repairs,3rd Party Payments,Contract Payments,CANTILLON GROUP LTD,SN25,27/09/2023,"4,652.67"
106634233,Void Repairs,Supervision & Management,Void Property Repairs,3rd Party Payments,Contract Payments,CANTILLON GROUP LTD,SN25,27/09/2023,"8,275.04"
106634233,Void Repairs,Supervision & Management,Void Property Repairs,3rd Party Payments,Contract Payments,CANTILLON GROUP LTD,SN25,27/09/2023,"4,261.20"
106634233,Void Repairs,Supervision & Management,Void Property Repairs,3rd Party Payments,Contract Payments,CANTILLON GROUP LTD,SN25,27/09/2023,"15,770.57"
106634233,Disabled Capital Codes,Disabled Codes 2,Voids - Central Heating,Capital,Contractor Payments,CANTILLON GROUP LTD,SN25,27/09/2023,"4,369.27"
106634235,Other Repairs,Repairs,Cyclical Maintenance,Supplies and Services,Testing / Inspection,CANTILLON GROUP LTD,SN25,29/09/2023,500.00
106634239,Other Repairs,Repairs,Cyclical Maintenance,Supplies and Services,Testing / Inspection,CANTILLON GROUP LTD,SN25,27/09/2023,"1,054.20"
106634233,Void Repairs,Supervision & Management,Void Property Repairs,3rd Party Payments,Contract Payments,CANTILLON GROUP LTD,SN25,27/09/2023,"4,347.88"
106634233,Void Repairs,Supervision & Management,Void Property Repairs,3rd Party Payments,Contract Payments,CANTILLON GROUP LTD,SN25,27/09/2023,"12,130.67"
106634233,Void Repairs,Supervision & Management,Void Property Repairs,3rd Party Payments,Contract Payments,CANTILLON GROUP LTD,SN25,27/09/2023,"7,785.26"
105853233,Digital & Business Change,Digital & Business Change,IT Operations,3rd Party Payments,Strategic Partnership Service Charges,CAPITA BUSINESS SERVICES LTD,DL1 ,20/09/2023,"14,170.41"
105851233,Digital & Business Change,Digital & Business Change,IT Operations,3rd Party Payments,Strategic Partnership Service Charges,CAPITA BUSINESS SERVICES LTD,DL1 ,20/09/2023,"14,201.68"
104778233,Corporate,Corporate Finance,Commercialisation,Supplies and Services,Contracts,CAPITA BUSINESS SERVICES LTD,DL1 ,13/09/2023,"13,800.00"
105361233,NEV,"Economy, Growth and Place",Southern Connector Road,Capital,Consultants,CAPITAL CONSULTING INTERNATIONAL LIMITED,EC3M,15/09/2023,"7,557.60"
104012235,Social Care,Children & Families,Children's Resource and Home Finding Team,3rd Party Payments,Independent Fostering Agency Placements,CAPSTONE FOSTER CARE (SOUTH WEST) LTD,TQ12,08/09/2023,"-3,280.23"
104012234,Social Care,Children & Families,Children's Resource and Home Finding Team,3rd Party Payments,Independent Fostering Agency Placements,CAPSTONE FOSTER CARE (SOUTH WEST) LTD,TQ12,08/09/2023,"3,766.19"
104075234,Social Care,Children & Families,Placement Fostering Service,3rd Party Payments,Foster Care Basic Payments,CAPSTONE FOSTER CARE (SOUTH WEST) LTD,GL13,08/09/2023,"1,428.46"
103091233,Social Care,Children & Families,Children's Resource and Home Finding Team,3rd Party Payments,Independent Fostering Agency Placements,CAPSTONE FOSTER CARE (SOUTH WEST) LTD,TQ12,04/09/2023,"3,728.53"
103092233,Social Care,Children & Families,Children's Resource and Home Finding Team,3rd Party Payments,Independent Fostering Agency Placements,CAPSTONE FOSTER CARE (SOUTH WEST) LTD,TQ12,04/09/2023,"7,881.75"
102787237,Disabled Children,Children & Families,ICES Paediatric,Supplies and Services,Equipment,CARE AND INDEPENDENCE LTD,OX26,01/09/2023,"3,801.10"
105151233,Disabled Children,Children & Families,ICES Paediatric,Supplies and Services,Equipment,CARE AND INDEPENDENCE LTD,OX26,15/09/2023,430.50
102788234,Disabled Children,Children & Families,ICES Paediatric,Supplies and Services,Equipment,CARE AND INDEPENDENCE LTD,OX26,01/09/2023,516.80
103748233,Human Resources and Organisational Development,"People, Culture and Organisational Resilience",HR Operations,Employees,Employee Related Schemes,CARE FIRST,GL3 ,06/09/2023,"3,063.57"
105370371,Learning Disabilities,Adults,Learning Disability 18 - 64,3rd Party Payments,Supported Lodgings (Childrens)/Supported Living (Adults),CAREFORYOU LTD,N13 ,15/09/2023,"4,882.00"
106145233,Digital & Business Change,Digital & Business Change,IT Systems,Supplies and Services,License Costs,CAREWORKS LTD,SL3 ,22/09/2023,"41,355.70"
106103233,"Children, Families & Community Health Services","Children, Familities & Community Health Services",Children's ICS Project,Capital,Contractor Payments,CAREWORKS LTD,SL3 ,22/09/2023,"1,099.99"
104012259,Social Care,Children & Families,Placement - Care Leaver Team,3rd Party Payments,Semi Independent,CARING FOR COMMUNITIES AND PEOPLE (CCP),GL50,08/09/2023,"2,570.00"
104012247,Social Care,Children & Families,Placement - Care Leaver Team,3rd Party Payments,Semi Independent,CARING FOR COMMUNITIES AND PEOPLE (CCP),GL50,08/09/2023,"2,570.00"
105675233,Social Care,Children & Families,Unaccompanied Asylum Seeking Children (UASC),3rd Party Payments,Semi Independent,CARING FOR COMMUNITIES AND PEOPLE (CCP),GL50,20/09/2023,600.00
105534233,Social Care,Children & Families,Unaccompanied Asylum Seeking Children (UASC),3rd Party Payments,Semi Independent,CARING FOR COMMUNITIES AND PEOPLE (CCP),GL50,18/09/2023,"3,410.33"
105675233,Social Care,Children & Families,Unaccompanied Asylum Seeking Children (UASC),3rd Party Payments,Semi Independent,CARING FOR COMMUNITIES AND PEOPLE (CCP),GL50,20/09/2023,600.00
105534233,Social Care,Children & Families,Unaccompanied Asylum Seeking Children (UASC),3rd Party Payments,Semi Independent,CARING FOR COMMUNITIES AND PEOPLE (CCP),GL50,18/09/2023,"3,410.33"
104012251,Social Care,Children & Families,Unaccompanied Asylum Seeking Children (UASC),3rd Party Payments,Semi Independent,CARING FOR COMMUNITIES AND PEOPLE (CCP),GL50,08/09/2023,"3,650.00"
104012248,Social Care,Children & Families,Placement - Care Leaver Team,3rd Party Payments,Semi Independent,CARING FOR COMMUNITIES AND PEOPLE (CCP),GL50,08/09/2023,"2,570.00"
104012255,Social Care,Children & Families,Placement - Care Leaver Team,3rd Party Payments,Semi Independent,CARING FOR COMMUNITIES AND PEOPLE (CCP),GL50,08/09/2023,"2,570.00"
104012257,Social Care,Children & Families,Children's Resource and Home Finding Team,3rd Party Payments,Semi Independent,CARING FOR COMMUNITIES AND PEOPLE (CCP),GL50,08/09/2023,"7,090.00"
105675233,Social Care,Children & Families,Unaccompanied Asylum Seeking Children (UASC),3rd Party Payments,Semi Independent,CARING FOR COMMUNITIES AND PEOPLE (CCP),GL50,20/09/2023,600.00
104012253,Social Care,Children & Families,Placement - Care Leaver Team,3rd Party Payments,Semi Independent,CARING FOR COMMUNITIES AND PEOPLE (CCP),GL50,08/09/2023,"2,570.00"
104012258,Social Care,Children & Families,Placement - Care Leaver Team,3rd Party Payments,Semi Independent,CARING FOR COMMUNITIES AND PEOPLE (CCP),GL50,08/09/2023,"2,570.00"
104012252,Social Care,Children & Families,Placement - Care Leaver Team,3rd Party Payments,Semi Independent,CARING FOR COMMUNITIES AND PEOPLE (CCP),GL50,08/09/2023,"2,570.00"
105675233,Social Care,Children & Families,Unaccompanied Asylum Seeking Children (UASC),3rd Party Payments,Semi Independent,CARING FOR COMMUNITIES AND PEOPLE (CCP),GL50,20/09/2023,600.00
105675233,Social Care,Children & Families,Unaccompanied Asylum Seeking Children (UASC),3rd Party Payments,Semi Independent,CARING FOR COMMUNITIES AND PEOPLE (CCP),GL50,20/09/2023,600.00
105534233,Social Care,Children & Families,Unaccompanied Asylum Seeking Children (UASC),3rd Party Payments,Semi Independent,CARING FOR COMMUNITIES AND PEOPLE (CCP),GL50,18/09/2023,"3,410.33"
105675233,Social Care,Children & Families,Unaccompanied Asylum Seeking Children (UASC),3rd Party Payments,Semi Independent,CARING FOR COMMUNITIES AND PEOPLE (CCP),GL50,20/09/2023,600.00
104012256,Social Care,Children & Families,Children's Resource and Home Finding Team,3rd Party Payments,Semi Independent,CARING FOR COMMUNITIES AND PEOPLE (CCP),GL50,08/09/2023,"7,150.00"
104012250,Social Care,Children & Families,Unaccompanied Asylum Seeking Children (UASC),3rd Party Payments,Semi Independent,CARING FOR COMMUNITIES AND PEOPLE (CCP),GL50,08/09/2023,"3,590.00"
105534233,Social Care,Children & Families,Unaccompanied Asylum Seeking Children (UASC),3rd Party Payments,Semi Independent,CARING FOR COMMUNITIES AND PEOPLE (CCP),GL50,18/09/2023,"3,410.33"
105534233,Social Care,Children & Families,Unaccompanied Asylum Seeking Children (UASC),3rd Party Payments,Semi Independent,CARING FOR COMMUNITIES AND PEOPLE (CCP),GL50,18/09/2023,"3,410.33"
105534233,Social Care,Children & Families,Unaccompanied Asylum Seeking Children (UASC),3rd Party Payments,Semi Independent,CARING FOR COMMUNITIES AND PEOPLE (CCP),GL50,18/09/2023,"3,410.35"
104012246,Social Care,Children & Families,Placement - Care Leaver Team,3rd Party Payments,Semi Independent,CARING FOR COMMUNITIES AND PEOPLE (CCP),GL50,08/09/2023,"2,570.00"
104012249,Social Care,Children & Families,Placement - Care Leaver Team,3rd Party Payments,Semi Independent,CARING FOR COMMUNITIES AND PEOPLE (CCP),GL50,08/09/2023,"2,570.00"
104012254,Social Care,Children & Families,Placement - Care Leaver Team,3rd Party Payments,Semi Independent,CARING FOR COMMUNITIES AND PEOPLE (CCP),GL50,08/09/2023,"2,570.00"
103998248,Physical Support,Adults,Physical Support 65 and over,3rd Party Payments,Personal Budget - Domiciliary care,CARING HEART CARERS LIMITED,SN25,08/09/2023,"1,186.98"
103998249,Physical Support,Adults,Physical Support 18 - 64,3rd Party Payments,Personal Budget - Domiciliary care,CARING HEART CARERS LIMITED,SN25,08/09/2023,"1,329.20"
103881267,Learning Disabilities,Adults,Learning Disability 18 - 64,Transfer Payments,Personal Budget - Direct Payments - Domiciliary Care,REDACTED PERSONAL DATA,SN2 ,06/09/2023,"2,517.31"
103881502,Physical Support,Adults,Physical Support 65 and over,3rd Party Payments,Carers,REDACTED PERSONAL DATA,SP11,06/09/2023,563.73
106580233,Social Care,Children & Families,Placement Adoption Service,3rd Party Payments,Special Guardianship Orders,REDACTED PERSONAL DATA,SN5 ,25/09/2023,"5,605.56"
106579233,Social Care,Children & Families,Placement Adoption Service,3rd Party Payments,Special Guardianship Orders,REDACTED PERSONAL DATA,SN5 ,25/09/2023,"3,397.33"
105388236,High Needs Block,Dedicated Schools Grant (DSG),SEN Resourcing Assessment Panel,Supplies and Services,Services,REDACTED PERSONAL DATA,SN3 ,15/09/2023,"1,147.54"
105388239,High Needs Block,Dedicated Schools Grant (DSG),SEN Resourcing Assessment Panel,Supplies and Services,Services,REDACTED PERSONAL DATA,SN3 ,15/09/2023,"1,557.82"
103881505,Learning Disabilities,Adults,Learning Disability 18 - 64,Transfer Payments,Personal Budget - Direct Payments - Other,REDACTED PERSONAL DATA,SN2 ,06/09/2023,"2,708.57"
103881504,Learning Disabilities,Adults,Learning Disability 18 - 64,Transfer Payments,Personal Budget - Direct Payments - Domiciliary Care,REDACTED PERSONAL DATA,SN2 ,06/09/2023,"1,499.18"
106173233,Responsive Repairs,Repairs,Responsive Repairs,3rd Party Payments,Contract Payments,CARPET WAREHOUSE SWINDON LTD,SN2 ,22/09/2023,"1,469.62"
103739233,Responsive Repairs,Repairs,Responsive Repairs,3rd Party Payments,Contract Payments,CARPET WAREHOUSE SWINDON LTD,SN2 ,06/09/2023,909.79
103738234,Responsive Repairs,Repairs,Responsive Repairs,3rd Party Payments,Contract Payments,CARPET WAREHOUSE SWINDON LTD,SN2 ,06/09/2023,907.36
105312238,Responsive Repairs,Repairs,Responsive Repairs,3rd Party Payments,Contract Payments,CARPET WAREHOUSE SWINDON LTD,SN2 ,15/09/2023,"1,036.25"
107325236,Responsive Repairs,Repairs,Responsive Repairs,3rd Party Payments,Contract Payments,CARPET WAREHOUSE SWINDON LTD,SN2 ,29/09/2023,864.36
103737234,Responsive Repairs,Repairs,Responsive Repairs,3rd Party Payments,Contract Payments,CARPET WAREHOUSE SWINDON LTD,SN2 ,06/09/2023,"1,241.77"
106174233,Responsive Repairs,Repairs,Responsive Repairs,3rd Party Payments,Contract Payments,CARPET WAREHOUSE SWINDON LTD,SN2 ,22/09/2023,"1,178.00"
105312239,Responsive Repairs,Repairs,Responsive Repairs,3rd Party Payments,Contract Payments,CARPET WAREHOUSE SWINDON LTD,SN2 ,15/09/2023,705.43
102946233,Responsive Repairs,Repairs,Responsive Repairs,3rd Party Payments,Contract Payments,CARPET WAREHOUSE SWINDON LTD,SN2 ,01/09/2023,"1,124.79"
106172233,Responsive Repairs,Repairs,Responsive Repairs,3rd Party Payments,Contract Payments,CARPET WAREHOUSE SWINDON LTD,SN2 ,22/09/2023,"1,309.10"
107325233,Responsive Repairs,Repairs,Responsive Repairs,3rd Party Payments,Contract Payments,CARPET WAREHOUSE SWINDON LTD,SN2 ,29/09/2023,"1,178.79"
106171233,Responsive Repairs,Repairs,Responsive Repairs,3rd Party Payments,Contract Payments,CARPET WAREHOUSE SWINDON LTD,SN2 ,22/09/2023,970.92
102947233,Responsive Repairs,Repairs,Responsive Repairs,3rd Party Payments,Contract Payments,CARPET WAREHOUSE SWINDON LTD,SN2 ,01/09/2023,802.86
106117233,Social Care,Children & Families,Legal Fees,Supplies and Services,Fees,CARTER BROWN LTD,B15 ,22/09/2023,"1,347.92"
107260233,Care Management & Safeguarding,Adults,Community Safety Partnership,3rd Party Payments,Contract Payments,CASE MANAGEMENT SOLUTIONS GROUP LTD,B95 ,29/09/2023,"14,520.00"
103881285,Learning Disabilities,Adults,Learning Disability 18 - 64,Transfer Payments,Personal Budget - Direct Payments - Domiciliary Care,REDACTED PERSONAL DATA,SN6 ,06/09/2023,"2,617.11"
103268233,Traded Services,"Education, Inclusion and Skills",Plas Pencelli Outdoor Education Centre,Supplies and Services,Materials,CASTELL HOWELL FOODS LIMITED,SA14,06/09/2023,"1,047.83"
105033234,Traded Services,"Education, Inclusion and Skills",Plas Pencelli Outdoor Education Centre,Supplies and Services,Materials,CASTELL HOWELL FOODS LIMITED,SA14,13/09/2023,"1,567.18"
106672233,Traded Services,"Education, Inclusion and Skills",Plas Pencelli Outdoor Education Centre,Transfer Payments,Compensation,CASTELL HOWELL FOODS LIMITED,SA14,25/09/2023,844.90
105565233,Traded Services,"Education, Inclusion and Skills",Plas Pencelli Outdoor Education Centre,Supplies and Services,Materials,CASTELL HOWELL FOODS LIMITED,SA14,18/09/2023,"1,169.91"
105033234,Traded Services,"Education, Inclusion and Skills",Plas Pencelli Outdoor Education Centre,Supplies and Services,Materials,CASTELL HOWELL FOODS LIMITED,SA14,13/09/2023,642.44
105565233,Traded Services,"Education, Inclusion and Skills",Plas Pencelli Outdoor Education Centre,Supplies and Services,Materials,CASTELL HOWELL FOODS LIMITED,SA14,18/09/2023,409.28
106672233,Traded Services,"Education, Inclusion and Skills",Plas Pencelli Outdoor Education Centre,Transfer Payments,Compensation,CASTELL HOWELL FOODS LIMITED,SA14,25/09/2023,573.91
103268233,Traded Services,"Education, Inclusion and Skills",Plas Pencelli Outdoor Education Centre,Supplies and Services,Materials,CASTELL HOWELL FOODS LIMITED,SA14,06/09/2023,543.95
105035233,Treasury,Corporate Finance,Private Finance Initiatives (PFI),Supplies and Services,Services,CASTLE GATE LEGAL & COMMERCIAL LTD,NG12,13/09/2023,"3,622.37"
104049233,,,Balance Sheet,Balance Sheet & Recharge,Water invoices,CASTLE WATER LTD,PH10,08/09/2023,532.00
104049233,,,Balance Sheet,Balance Sheet & Recharge,Water invoices,CASTLE WATER LTD,PH10,08/09/2023,"9,021.61"
105370265,Learning Disabilities,Adults,Learning Disability 18 - 64,Income,Client Contribution - Personal Budget - Fairer Charging,CATHEDRAL HOMES,GL1 ,15/09/2023,-181.60
105370265,Learning Disabilities,Adults,Learning Disability 18 - 64,3rd Party Payments,Supported Lodgings (Childrens)/Supported Living (Adults),CATHEDRAL HOMES,GL1 ,15/09/2023,"2,325.00"
105370265,Learning Disabilities,Adults,Learning Disability 18 - 64,Income,Client Contribution - Supported Living,CATHEDRAL HOMES,GL1 ,15/09/2023,-414.20
105370265,Learning Disabilities,Adults,Learning Disability 18 - 64,3rd Party Payments,Supported Lodgings (Childrens)/Supported Living (Adults),CATHEDRAL HOMES,GL1 ,15/09/2023,"1,706.28"
105370265,Learning Disabilities,Adults,Learning Disability 18 - 64,3rd Party Payments,Supported Lodgings (Childrens)/Supported Living (Adults),CATHEDRAL HOMES,GL1 ,15/09/2023,"4,462.52"
105370265,Learning Disabilities,Adults,Learning Disability 18 - 64,3rd Party Payments,Supported Lodgings (Childrens)/Supported Living (Adults),CATHEDRAL HOMES,GL1 ,15/09/2023,675.00
105370265,Learning Disabilities,Adults,Learning Disability 18 - 64,3rd Party Payments,Supported Lodgings (Childrens)/Supported Living (Adults),CATHEDRAL HOMES,GL1 ,15/09/2023,"3,225.00"
104359233,"Volutary Sector, Equipment and Carers",Adults,Carers Short Term Breaks - Adults,3rd Party Payments,Carers,REDACTED PERSONAL DATA,SN5 ,11/09/2023,500.00
104081233,"Volutary Sector, Equipment and Carers",Adults,Carers Short Term Breaks - Adults,3rd Party Payments,Carers,REDACTED PERSONAL DATA,SN5 ,08/09/2023,500.00
105214233,Learning Disabilities,Adults,Learning Disability 18 - 64,3rd Party Payments,Supported Accommodation Scheme,REDACTED PERSONAL DATA,SN6 ,20/09/2023,"2,850.00"
105214233,Learning Disabilities,Adults,Learning Disability 18 - 64,3rd Party Payments,Supported Accommodation Scheme,REDACTED PERSONAL DATA,SN6 ,20/09/2023,"1,850.00"
104851233,Town Centre,"Economy, Growth and Place",Kimmerfields enabling works,Capital,Contractor Payments,CC GROUND INVESTIGATIONS LTD,GL3 ,13/09/2023,"54,064.65"
105265233,Streetsmart,Streetsmart,Waste - Disposal,Supplies and Services,Repairs & Maintenance,CENTRAL CONVEYOR BELTING SERVICES LTD,RG19,15/09/2023,"1,766.12"
105722233,Early Years Block,Dedicated Schools Grant (DSG),Free Nursery Education Commissioning - two year olds,3rd Party Payments,Contracts - Child Care,CENTRAL PRE-SCHOOL,SN1 ,20/09/2023,"1,296.96"
105723233,Early Years Block,Dedicated Schools Grant (DSG),Free Nursery Education Commissioning - three & four  year olds,3rd Party Payments,Contracts - Child Care,CENTRAL PRE-SCHOOL,SN1 ,20/09/2023,"32,810.40"
104852233,Town Centre,"Economy, Growth and Place",Carriage Works Phase 3,Capital,Professional Fees,CHAMBERLAINWALKER ECONOMICS LTD,SE19,13/09/2023,"1,700.00"
106655233,Public Health,Public Health,DAAT,3rd Party Payments,Contract Payments,CHANGE GROW LIVE SERVICES LTD,BN1 ,25/09/2023,"458,961.32"
107271233,Public Health,Public Health,DAAT,3rd Party Payments,Contract Payments,CHANGE GROW LIVE SERVICES LTD,BN1 ,29/09/2023,"2,124.26"
106512233,Lydiard Park,Culture & Heritage,Lydiard : Forest Caf�,Supplies and Services,Food,CHAPPLE & JENKINS LTD,BS15,22/09/2023,39.96
106761234,Lydiard Park,Culture & Heritage,Lydiard : Forest Caf�,Supplies and Services,Confectionary,CHAPPLE & JENKINS LTD,BS15,27/09/2023,"1,629.36"
106761234,Lydiard Park,Culture & Heritage,Lydiard : Forest Caf�,Supplies and Services,Confectionary,CHAPPLE & JENKINS LTD,BS15,27/09/2023,108.14
106512233,Lydiard Park,Culture & Heritage,Lydiard : Forest Caf�,Supplies and Services,Confectionary,CHAPPLE & JENKINS LTD,BS15,22/09/2023,85.62
106477233,Lydiard Park,Culture & Heritage,Lydiard : Forest Caf�,Supplies and Services,Confectionary,CHAPPLE & JENKINS LTD,BS15,22/09/2023,768.04
106761234,Lydiard Park,Culture & Heritage,Lydiard : Forest Caf�,Supplies and Services,Food,CHAPPLE & JENKINS LTD,BS15,27/09/2023,95.26
106474233,Streetsmart,Streetsmart,Waterside Canteen,Supplies and Services,Confectionary,CHAPPLE & JENKINS LTD,BS15,22/09/2023,785.29
106477233,Lydiard Park,Culture & Heritage,Lydiard : Forest Caf�,Supplies and Services,Confectionary,CHAPPLE & JENKINS LTD,BS15,22/09/2023,59.07
106512233,Lydiard Park,Culture & Heritage,Lydiard : Forest Caf�,Supplies and Services,Confectionary,CHAPPLE & JENKINS LTD,BS15,22/09/2023,754.65
106771233,Streetsmart,Streetsmart,Waterside Canteen,Supplies and Services,Confectionary,CHAPPLE & JENKINS LTD,BS15,27/09/2023,651.75
106634240,Other Repairs,Repairs,Unallocated job costs from OPEN system,Premises Costs,Maintenance - Buildings,CHARLES HARDING ESTATE AGENTS LIMITED,SN1 ,27/09/2023,30.00
105671234,Void Repairs,Supervision & Management,Void Property Repairs,3rd Party Payments,Contract Payments,CHARLES HARDING ESTATE AGENTS LIMITED,SN1 ,20/09/2023,35.00
107414233,Homelessness and Travellers,Housing Services,Homelessness Prevention,Transfer Payments,Payment of Costs,CHARLES HOPES HOLDINGS LIMITED,SO15,29/09/2023,"2,100.00"
104072233,Homelessness and Travellers,Housing Services,Bed and Breakfast Accommodation,Transfer Payments,Payment of Costs,CHARLES HOPES HOLDINGS LIMITED,SO15,08/09/2023,"2,250.00"
107415233,Homelessness and Travellers,Housing Services,Homelessness Prevention,Transfer Payments,Payment of Costs,CHARLES HOPES HOLDINGS LIMITED,SO15,29/09/2023,"2,100.00"
104055233,Homelessness and Travellers,Housing Services,Bed and Breakfast Accommodation,Transfer Payments,Payment of Costs,CHARLES HOPES HOLDINGS LIMITED,SO15,08/09/2023,"6,750.00"
107421233,Homelessness and Travellers,Housing Services,Homelessness Prevention,Transfer Payments,Payment of Costs,CHARLES HOPES HOLDINGS LIMITED,SO15,29/09/2023,"2,100.00"
103774233,Homelessness and Travellers,Housing Services,Bed and Breakfast Accommodation,Transfer Payments,Payment of Costs,CHARLES HOPES HOLDINGS LIMITED,SO15,06/09/2023,"2,250.00"
103106233,Homelessness and Travellers,Housing Services,Bed and Breakfast Accommodation,Transfer Payments,Payment of Costs,CHARLES HOPES HOLDINGS LIMITED,SO15,04/09/2023,"6,750.00"
104073233,Homelessness and Travellers,Housing Services,Bed and Breakfast Accommodation,Transfer Payments,Payment of Costs,CHARLES HOPES HOLDINGS LIMITED,SO15,08/09/2023,"2,400.00"
107407233,Homelessness and Travellers,Housing Services,Homelessness Prevention,Transfer Payments,Payment of Costs,CHARLES HOPES HOLDINGS LIMITED,SO15,29/09/2023,"2,100.00"
107422233,Homelessness and Travellers,Housing Services,Homelessness Prevention,Transfer Payments,Payment of Costs,CHARLES HOPES HOLDINGS LIMITED,SO15,29/09/2023,"2,100.00"
104335233,Homelessness and Travellers,Housing Services,Bed and Breakfast Accommodation,Transfer Payments,Payment of Costs,CHARLES HOPES HOLDINGS LIMITED,SO15,08/09/2023,"2,400.00"
107324236,Social Care,Children & Families,Fostering Service Team,Supplies and Services,Service Charges,CHARLES HUNTER ASSOCIATES LTD,RG1 ,29/09/2023,"4,447.00"
106786235,Lydiard Park,Culture & Heritage,Lydiard : Forest Caf�,Supplies and Services,Confectionary,CHARLES SAUNDERS LTD,BS37,27/09/2023,"1,943.66"
106475233,Lydiard Park,Culture & Heritage,Lydiard : Coach House Caf�,Supplies and Services,Food,CHARLES SAUNDERS LTD,BS37,22/09/2023,57.26
106506233,Lydiard Park,Culture & Heritage,Lydiard : Coach House Caf�,Supplies and Services,Materials,CHARLES SAUNDERS LTD,BS37,22/09/2023,6.46
106506233,Lydiard Park,Culture & Heritage,Lydiard : Coach House Caf�,Supplies and Services,Food,CHARLES SAUNDERS LTD,BS37,22/09/2023,200.07
106455233,Lydiard Park,Culture & Heritage,Lydiard : Coach House Caf�,Supplies and Services,Food,CHARLES SAUNDERS LTD,BS37,22/09/2023,21.08
106511234,Lydiard Park,Culture & Heritage,Lydiard : Coach House Caf�,Supplies and Services,Confectionary,CHARLES SAUNDERS LTD,BS37,22/09/2023,175.26
106640233,Lydiard Park,Culture & Heritage,Lydiard : Forest Caf�,Supplies and Services,Materials,CHARLES SAUNDERS LTD,BS37,25/09/2023,420.45
106790233,Lydiard Park,Culture & Heritage,Lydiard : Forest Caf�,Supplies and Services,Confectionary,CHARLES SAUNDERS LTD,BS37,27/09/2023,501.24
106464233,Lydiard Park,Culture & Heritage,Lydiard : Coach House Caf�,Supplies and Services,Food,CHARLES SAUNDERS LTD,BS37,22/09/2023,198.39
106816233,Lydiard Park,Culture & Heritage,Lydiard : Coach House Caf�,Supplies and Services,Confectionary,CHARLES SAUNDERS LTD,BS37,27/09/2023,426.58
106464233,Lydiard Park,Culture & Heritage,Lydiard : Coach House Caf�,Supplies and Services,Confectionary,CHARLES SAUNDERS LTD,BS37,22/09/2023,313.22
106455233,Lydiard Park,Culture & Heritage,Lydiard : Coach House Caf�,Supplies and Services,Confectionary,CHARLES SAUNDERS LTD,BS37,22/09/2023,634.38
106508233,Lydiard Park,Culture & Heritage,Lydiard : Forest Caf�,Supplies and Services,Confectionary,CHARLES SAUNDERS LTD,BS37,22/09/2023,50.87
106469233,Lydiard Park,Culture & Heritage,Lydiard : Coach House Caf�,Supplies and Services,Food,CHARLES SAUNDERS LTD,BS37,22/09/2023,143.80
106786235,Lydiard Park,Culture & Heritage,Lydiard : Forest Caf�,Supplies and Services,Confectionary,CHARLES SAUNDERS LTD,BS37,27/09/2023,365.92
106790233,Lydiard Park,Culture & Heritage,Lydiard : Forest Caf�,Supplies and Services,Confectionary,CHARLES SAUNDERS LTD,BS37,27/09/2023,510.15
106475233,Lydiard Park,Culture & Heritage,Lydiard : Coach House Caf�,Supplies and Services,Confectionary,CHARLES SAUNDERS LTD,BS37,22/09/2023,340.78
106475233,Lydiard Park,Culture & Heritage,Lydiard : Coach House Caf�,Supplies and Services,Confectionary,CHARLES SAUNDERS LTD,BS37,22/09/2023,47.76
106455233,Lydiard Park,Culture & Heritage,Lydiard : Coach House Caf�,Supplies and Services,Confectionary,CHARLES SAUNDERS LTD,BS37,22/09/2023,159.08
106453233,Lydiard Park,Culture & Heritage,Lydiard : Forest Caf�,Supplies and Services,Confectionary,CHARLES SAUNDERS LTD,BS37,22/09/2023,407.20
106790233,Lydiard Park,Culture & Heritage,Lydiard : Forest Caf�,Supplies and Services,Food,CHARLES SAUNDERS LTD,BS37,27/09/2023,"1,201.50"
106453233,Lydiard Park,Culture & Heritage,Lydiard : Forest Caf�,Supplies and Services,Food,CHARLES SAUNDERS LTD,BS37,22/09/2023,309.82
106816233,Lydiard Park,Culture & Heritage,Lydiard : Coach House Caf�,Supplies and Services,Food,CHARLES SAUNDERS LTD,BS37,27/09/2023,173.79
106506233,Lydiard Park,Culture & Heritage,Lydiard : Coach House Caf�,Supplies and Services,Confectionary,CHARLES SAUNDERS LTD,BS37,22/09/2023,95.52
106469233,Lydiard Park,Culture & Heritage,Lydiard : Coach House Caf�,Supplies and Services,Confectionary,CHARLES SAUNDERS LTD,BS37,22/09/2023,756.96
106453233,Lydiard Park,Culture & Heritage,Lydiard : Forest Caf�,Supplies and Services,Confectionary,CHARLES SAUNDERS LTD,BS37,22/09/2023,872.55
106816233,Lydiard Park,Culture & Heritage,Lydiard : Coach House Caf�,Supplies and Services,Confectionary,CHARLES SAUNDERS LTD,BS37,27/09/2023,47.76
106506233,Lydiard Park,Culture & Heritage,Lydiard : Coach House Caf�,Supplies and Services,Confectionary,CHARLES SAUNDERS LTD,BS37,22/09/2023,372.09
106462233,Lydiard Park,Culture & Heritage,Lydiard : Coach House Caf�,Supplies and Services,Confectionary,CHARLES SAUNDERS LTD,BS37,22/09/2023,47.76
106511234,Lydiard Park,Culture & Heritage,Lydiard : Coach House Caf�,Supplies and Services,Food,CHARLES SAUNDERS LTD,BS37,22/09/2023,377.92
106462233,Lydiard Park,Culture & Heritage,Lydiard : Coach House Caf�,Supplies and Services,Food,CHARLES SAUNDERS LTD,BS37,22/09/2023,44.95
106462233,Lydiard Park,Culture & Heritage,Lydiard : Coach House Caf�,Supplies and Services,Confectionary,CHARLES SAUNDERS LTD,BS37,22/09/2023,394.27
106508233,Lydiard Park,Culture & Heritage,Lydiard : Forest Caf�,Supplies and Services,Materials,CHARLES SAUNDERS LTD,BS37,22/09/2023,6.65
106790233,Lydiard Park,Culture & Heritage,Lydiard : Forest Caf�,Supplies and Services,Materials,CHARLES SAUNDERS LTD,BS37,27/09/2023,75.78
106508233,Lydiard Park,Culture & Heritage,Lydiard : Forest Caf�,Supplies and Services,Food,CHARLES SAUNDERS LTD,BS37,22/09/2023,477.65
106880233,Lydiard Park,Culture & Heritage,Lydiard : Forest Caf�,Supplies and Services,Confectionary,CHARLES SAUNDERS LTD,BS37,27/09/2023,507.70
106640233,Lydiard Park,Culture & Heritage,Lydiard : Forest Caf�,Supplies and Services,Materials,CHARLES SAUNDERS LTD,BS37,25/09/2023,10.92
106511234,Lydiard Park,Culture & Heritage,Lydiard : Coach House Caf�,Supplies and Services,Materials,CHARLES SAUNDERS LTD,BS37,22/09/2023,12.09
106814233,Social Care,Children & Families,Fostering Service Team,Supplies and Services,Services,CHARLOTTE PATERSON,SN6 ,27/09/2023,620.50
106878233,Business Development,Supervision & Management,Personnel &Performance,Employees,Training,CHARTERED INSTITUTE OF HOUSING,CV4 ,27/09/2023,"2,250.00"
105812261,Early Years Block,Dedicated Schools Grant (DSG),Free Nursery Education Commissioning - three & four  year olds,3rd Party Payments,Contracts - Child Care,CHEEKY CHIMPS,SN2 ,20/09/2023,"31,752.00"
105812260,Early Years Block,Dedicated Schools Grant (DSG),Free Nursery Education Commissioning - two year olds,3rd Party Payments,Contracts - Child Care,CHEEKY CHIMPS,SN2 ,20/09/2023,"15,822.91"
104727233,Public Health,Public Health,Sexual Health & Health Protection Budget,3rd Party Payments,Contract Payments,CHELSEA & WESTMINSTER HOSPITAL NHS FOUNDATION TRUST,SW10,13/09/2023,"1,153.72"
105814347,Early Years Block,Dedicated Schools Grant (DSG),Free Nursery Education Commissioning - two year olds,3rd Party Payments,Contracts - Child Care,CHILD BASE NURSERIES,MK16,20/09/2023,"2,039.11"
105814348,Early Years Block,Dedicated Schools Grant (DSG),Free Nursery Education Commissioning - three & four  year olds,3rd Party Payments,Contracts - Child Care,CHILD BASE NURSERIES,MK16,20/09/2023,"14,179.40"
104371234,Responsive Repairs,Repairs,Responsive Repairs,3rd Party Payments,Contract Payments,CHILD SCAFFOLDING LTD,SN1 ,11/09/2023,65.00
103743233,Responsive Repairs,Repairs,Responsive Repairs,3rd Party Payments,Contract Payments,CHILD SCAFFOLDING LTD,SN1 ,06/09/2023,217.60
104429242,Planned Maintenance Programme,HRA Capital Financing,Contingent Major Repairs,Capital,Contractor Payments,CHILD SCAFFOLDING LTD,SN1 ,11/09/2023,550.00
106858233,Responsive Repairs,Repairs,Responsive Repairs,3rd Party Payments,Contract Payments,CHILD SCAFFOLDING LTD,SN1 ,27/09/2023,"1,100.00"
105512233,Responsive Repairs,Repairs,Responsive Repairs,3rd Party Payments,Contract Payments,CHILD SCAFFOLDING LTD,SN1 ,18/09/2023,"1,021.00"
106857234,Responsive Repairs,Repairs,Responsive Repairs,3rd Party Payments,Contract Payments,CHILD SCAFFOLDING LTD,SN1 ,27/09/2023,640.00
103743233,Responsive Repairs,Repairs,Responsive Repairs,3rd Party Payments,Contract Payments,CHILD SCAFFOLDING LTD,SN1 ,06/09/2023,236.40
103746233,Responsive Repairs,Repairs,Responsive Repairs,3rd Party Payments,Contract Payments,CHILD SCAFFOLDING LTD,SN1 ,06/09/2023,"1,650.00"
105511233,Responsive Repairs,Repairs,Responsive Repairs,3rd Party Payments,Contract Payments,CHILD SCAFFOLDING LTD,SN1 ,18/09/2023,920.00
105513233,Responsive Repairs,Repairs,Responsive Repairs,3rd Party Payments,Contract Payments,CHILD SCAFFOLDING LTD,SN1 ,18/09/2023,780.00
105515233,Responsive Repairs,Repairs,Responsive Repairs,3rd Party Payments,Contract Payments,CHILD SCAFFOLDING LTD,SN1 ,18/09/2023,"1,550.00"
104372233,Responsive Repairs,Repairs,Responsive Repairs,3rd Party Payments,Contract Payments,CHILD SCAFFOLDING LTD,SN1 ,11/09/2023,780.00
103743233,Responsive Repairs,Repairs,Responsive Repairs,3rd Party Payments,Contract Payments,CHILD SCAFFOLDING LTD,SN1 ,06/09/2023,129.60
104429243,Planned Maintenance Programme,HRA Capital Financing,Contingent Major Repairs,Capital,Contractor Payments,CHILD SCAFFOLDING LTD,SN1 ,11/09/2023,440.00
106859233,Responsive Repairs,Repairs,Responsive Repairs,3rd Party Payments,Contract Payments,CHILD SCAFFOLDING LTD,SN1 ,27/09/2023,"1,380.00"
106861233,Responsive Repairs,Repairs,Responsive Repairs,3rd Party Payments,Contract Payments,CHILD SCAFFOLDING LTD,SN1 ,27/09/2023,880.00
104429245,Responsive Repairs,Repairs,Responsive Repairs,3rd Party Payments,Contract Payments,CHILD SCAFFOLDING LTD,SN1 ,11/09/2023,580.00
103745233,Responsive Repairs,Repairs,Responsive Repairs,3rd Party Payments,Contract Payments,CHILD SCAFFOLDING LTD,SN1 ,06/09/2023,440.00
107348246,Responsive Repairs,Repairs,Responsive Repairs,3rd Party Payments,Contract Payments,CHILD SCAFFOLDING LTD,SN1 ,29/09/2023,"3,085.68"
106860233,Responsive Repairs,Repairs,Responsive Repairs,3rd Party Payments,Contract Payments,CHILD SCAFFOLDING LTD,SN1 ,27/09/2023,440.00
103743233,Responsive Repairs,Repairs,Responsive Repairs,3rd Party Payments,Contract Payments,CHILD SCAFFOLDING LTD,SN1 ,06/09/2023,211.20
104371234,Responsive Repairs,Repairs,Responsive Repairs,3rd Party Payments,Contract Payments,CHILD SCAFFOLDING LTD,SN1 ,11/09/2023,260.00
103743233,Responsive Repairs,Repairs,Responsive Repairs,3rd Party Payments,Contract Payments,CHILD SCAFFOLDING LTD,SN1 ,06/09/2023,359.04
104371234,Responsive Repairs,Repairs,Responsive Repairs,3rd Party Payments,Contract Payments,CHILD SCAFFOLDING LTD,SN1 ,11/09/2023,195.00
105535233,Parking & Bus lanes,Highway Operations and Car Parking,Bus Lane Enforcement,Supplies and Services,Materials,CHIPSIDE LTD,SN15,18/09/2023,"2,984.52"
105443233,Parking & Bus lanes,Highway Operations and Car Parking,Street Parking,Supplies and Services,Fees,CHIPSIDE LTD,SN15,18/09/2023,"1,000.58"
105535233,Parking & Bus lanes,Highway Operations and Car Parking,Street Parking,Supplies and Services,Materials,CHIPSIDE LTD,SN15,18/09/2023,472.50
105535233,Parking & Bus lanes,Highway Operations and Car Parking,Bus Lane Enforcement,Supplies and Services,Materials,CHIPSIDE LTD,SN15,18/09/2023,327.60
105535233,Parking & Bus lanes,Highway Operations and Car Parking,Street Parking,Supplies and Services,Materials,CHIPSIDE LTD,SN15,18/09/2023,652.08
104469233,DSG Other Funding,Dedicated Schools Grant (DSG),DFE Additional Grants,3rd Party Payments,Payment of Pupil Premium to school,CHISELDON PRIMARY SCHOOL,SN4 ,13/09/2023,"5,441.00"
105388255,High Needs Block,Dedicated Schools Grant (DSG),SEN Resourcing Assessment Panel,3rd Party Payments,Top up funding - Maintained providers Pre 16,CHISELDON PRIMARY SCHOOL,SN4 ,15/09/2023,780.83
104481234,Schools - Primary,Dedicated Schools Grant (DSG),Primary School Budgets,3rd Party Payments,Mainstream Delegated Funding,CHISELDON PRIMARY SCHOOL,SN4 ,13/09/2023,"71,288.00"
105370278,Learning Disabilities,Adults,Learning Disability 18 - 64,3rd Party Payments,Residential Care,CHOSEN CARE LTD,GL3 ,15/09/2023,"7,631.68"
105370278,Learning Disabilities,Adults,Learning Disability 65 and over,3rd Party Payments,Residential Care,CHOSEN CARE LTD,GL3 ,15/09/2023,"7,802.16"
105370278,Learning Disabilities,Adults,Learning Disability 18 - 64,Income,Client Contribution - Residential,CHOSEN CARE LTD,GL3 ,15/09/2023,-400.48
105370278,Learning Disabilities,Adults,Learning Disability 65 and over,Income,Client Contribution - Residential,CHOSEN CARE LTD,GL3 ,15/09/2023,-779.20
105370278,Learning Disabilities,Adults,Learning Disability 18 - 64,3rd Party Payments,Residential Care,CHOSEN CARE LTD,GL3 ,15/09/2023,"7,639.52"
107237233,Town Centre,"Economy, Growth and Place",Heritage Action Zone (HAZ),Supplies and Services,Publicity,CHRIS BLANDFORD ASSOCIATES LIMITED,NG1 ,29/09/2023,"5,527.00"
104099233,Care Management & Safeguarding,Adults,Mental Capacity & DOL,3rd Party Payments,Contracts - Social Care,CHRIS HORNE BIA/AMHP LIMITED,OX18,08/09/2023,539.15
102566233,Responsive Repairs,Repairs,Responsive Repairs,3rd Party Payments,Contract Payments,CHRIS WHEELER CONSTRUCTION LTD,SN8 ,01/09/2023,"1,570.59"
102227233,Responsive Repairs,Repairs,Responsive Repairs,3rd Party Payments,Contract Payments,CHRIS WHEELER CONSTRUCTION LTD,SN8 ,01/09/2023,835.93
102224233,Responsive Repairs,Repairs,Responsive Repairs,3rd Party Payments,Contract Payments,CHRIS WHEELER CONSTRUCTION LTD,SN8 ,01/09/2023,"2,086.60"
104376233,Responsive Repairs,Repairs,Responsive Repairs,3rd Party Payments,Contract Payments,CHRIS WHEELER CONSTRUCTION LTD,SN8 ,11/09/2023,"2,917.44"
102226233,Responsive Repairs,Repairs,Responsive Repairs,3rd Party Payments,Contract Payments,CHRIS WHEELER CONSTRUCTION LTD,SN8 ,01/09/2023,"2,786.52"
105326233,Homelessness and Travellers,Housing Services,Ukrainian Support Scheme,Supplies and Services,Discretionary Costs,CHRISGATE LTD,SN1 ,15/09/2023,"1,200.00"
103881364,Physical Support,Adults,Physical Support 18 - 64,Transfer Payments,Personal Budget - Direct Payments - Domiciliary Care,REDACTED PERSONAL DATA,SN25,06/09/2023,833.87
104432349,Social Care,Children & Families,Placement Adoption Service,3rd Party Payments,Adoption Allowances,REDACTED PERSONAL DATA,SN6 ,11/09/2023,699.84
106628265,Social Care,Children & Families,Placement Adoption Service,3rd Party Payments,Adoption Allowances,REDACTED PERSONAL DATA,SN6 ,25/09/2023,699.84
104432350,Social Care,Children & Families,Placement Adoption Service,3rd Party Payments,Adoption Allowances,REDACTED PERSONAL DATA,SN6 ,11/09/2023,"1,055.64"
106628266,Social Care,Children & Families,Placement Adoption Service,3rd Party Payments,Adoption Allowances,REDACTED PERSONAL DATA,SN6 ,25/09/2023,"1,055.64"
105064276,Social Care,Children & Families,Children's Resource and Home Finding Team,3rd Party Payments,Independent Fostering Agency Placements,CHRYSALISCARE LTD,DA7 ,13/09/2023,"5,881.01"
105299259,Social Care,Children & Families,Children's Resource and Home Finding Team,3rd Party Payments,Independent Fostering Agency Placements,CHRYSALISCARE LTD,DA7 ,15/09/2023,"5,881.01"
105299258,Social Care,Children & Families,Children's Resource and Home Finding Team,3rd Party Payments,Independent Fostering Agency Placements,CHRYSALISCARE LTD,DA7 ,15/09/2023,"6,589.67"
105064275,Social Care,Children & Families,Children's Resource and Home Finding Team,3rd Party Payments,Independent Fostering Agency Placements,CHRYSALISCARE LTD,DA7 ,13/09/2023,"6,589.67"
105370315,Physical Support,Adults,Physical Support 65 and over,3rd Party Payments,Nursing Care,CHURCH VIEW,SN3 ,15/09/2023,"8,931.71"
105370315,Physical Support,Adults,Physical Support 65 and over,Income,Client Contribution - Nursing,CHURCH VIEW,SN3 ,15/09/2023,"5,063.77"
105370315,Physical Support,Adults,Physical Support 65 and over,Income,Client Contribution - Nursing,CHURCH VIEW,SN3 ,15/09/2023,-610.00
105370315,Physical Support,Adults,Physical Support 65 and over,Income,Client Contribution - Nursing,CHURCH VIEW,SN3 ,15/09/2023,-930.44
105370315,Physical Support,Adults,Physical Support 65 and over,Income,Client Contribution - Nursing,CHURCH VIEW,SN3 ,15/09/2023,-800.96
105370315,Physical Support,Adults,Physical Support 65 and over,3rd Party Payments,Nursing Care,CHURCH VIEW,SN3 ,15/09/2023,"5,863.96"
105370315,Physical Support,Adults,Physical Support 65 and over,3rd Party Payments,Nursing Care,CHURCH VIEW,SN3 ,15/09/2023,"5,816.00"
105370315,Physical Support,Adults,Physical Support 65 and over,Income,Client Contribution - Nursing,CHURCH VIEW,SN3 ,15/09/2023,740.57
105370315,Physical Support,Adults,Physical Support 65 and over,Income,Client Contribution - Nursing,CHURCH VIEW,SN3 ,15/09/2023,-984.92
105370315,Physical Support,Adults,Physical Support 65 and over,Income,Client Contribution - Nursing,CHURCH VIEW,SN3 ,15/09/2023,-709.76
105370315,Physical Support,Adults,Physical Support 18 - 64,3rd Party Payments,Nursing Care,CHURCH VIEW,SN3 ,15/09/2023,"2,988.96"
105370315,Physical Support,Adults,Physical Support 18 - 64,3rd Party Payments,Nursing Care,CHURCH VIEW,SN3 ,15/09/2023,"5,816.00"
105370315,Physical Support,Adults,Physical Support 65 and over,Income,Client Contribution - Nursing,CHURCH VIEW,SN3 ,15/09/2023,49.37
105370315,Physical Support,Adults,Physical Support 65 and over,Income,Client Contribution - Nursing,CHURCH VIEW,SN3 ,15/09/2023,-763.24
105370315,Physical Support,Adults,Physical Support 65 and over,3rd Party Payments,Nursing Care,CHURCH VIEW,SN3 ,15/09/2023,"-1,916.69"
105370315,Physical Support,Adults,Physical Support 65 and over,3rd Party Payments,Nursing Care,CHURCH VIEW,SN3 ,15/09/2023,"6,496.00"
105370315,Physical Support,Adults,Physical Support 65 and over,Income,Client Contribution - Nursing,CHURCH VIEW,SN3 ,15/09/2023,797.50
105370315,Physical Support,Adults,Physical Support 65 and over,Income,Client Contribution - Nursing,CHURCH VIEW,SN3 ,15/09/2023,-741.88
105370315,Physical Support,Adults,Physical Support 65 and over,3rd Party Payments,Nursing Care,CHURCH VIEW,SN3 ,15/09/2023,"4,777.43"
105370315,Physical Support,Adults,Physical Support 65 and over,Income,Client Contribution - Nursing,CHURCH VIEW,SN3 ,15/09/2023,-929.57
105370315,Physical Support,Adults,Physical Support 65 and over,Income,Client Contribution - Nursing,CHURCH VIEW,SN3 ,15/09/2023,-744.56
105370315,Physical Support,Adults,Physical Support 65 and over,3rd Party Payments,Nursing Care,CHURCH VIEW,SN3 ,15/09/2023,"-11,264.47"
105370315,Physical Support,Adults,Physical Support 65 and over,3rd Party Payments,Nursing Care,CHURCH VIEW,SN3 ,15/09/2023,"-6,231.43"
105370315,Physical Support,Adults,Physical Support 65 and over,3rd Party Payments,Nursing Care,CHURCH VIEW,SN3 ,15/09/2023,"2,988.96"
105370315,Physical Support,Adults,Physical Support 65 and over,Income,Client Contribution - Nursing,CHURCH VIEW,SN3 ,15/09/2023,-723.00
105370315,Physical Support,Adults,Physical Support 18 - 64,Income,Client Contribution - Nursing,CHURCH VIEW,SN3 ,15/09/2023,977.77
105370315,Physical Support,Adults,Physical Support 18 - 64,Income,Client Contribution - Nursing,CHURCH VIEW,SN3 ,15/09/2023,-552.52
105370315,Physical Support,Adults,Physical Support 65 and over,3rd Party Payments,Nursing Care,CHURCH VIEW,SN3 ,15/09/2023,"2,867.32"
105370315,Physical Support,Adults,Physical Support 65 and over,Income,Client Contribution - Nursing,CHURCH VIEW,SN3 ,15/09/2023,-999.64
105370315,Physical Support,Adults,Physical Support 65 and over,Income,Client Contribution - Nursing,CHURCH VIEW,SN3 ,15/09/2023,-979.88
105370315,Physical Support,Adults,Physical Support 65 and over,Income,Client Contribution - Nursing,CHURCH VIEW,SN3 ,15/09/2023,-491.76
105370315,Physical Support,Adults,Physical Support 65 and over,Income,Client Contribution - Nursing,CHURCH VIEW,SN3 ,15/09/2023,"-1,061.49"
105370315,Physical Support,Adults,Physical Support 65 and over,3rd Party Payments,Nursing Care,CHURCH VIEW,SN3 ,15/09/2023,"-8,931.71"
105370315,Physical Support,Adults,Physical Support 65 and over,3rd Party Payments,Nursing Care,CHURCH VIEW,SN3 ,15/09/2023,"-5,499.33"
105370342,Learning Disabilities,Adults,Learning Disability 18 - 64,Income,Client Contribution - Residential,CIDERSTONE HOUSE,SN25,15/09/2023,-414.20
105370342,Learning Disabilities,Adults,Learning Disability 18 - 64,Income,Client Contribution - Residential,CIDERSTONE HOUSE,SN25,15/09/2023,-423.00
105370342,Learning Disabilities,Adults,Learning Disability 18 - 64,3rd Party Payments,Residential Care,CIDERSTONE HOUSE,SN25,15/09/2023,"11,782.40"
105370342,Learning Disabilities,Adults,Learning Disability 18 - 64,Income,Client Contribution - Residential,CIDERSTONE HOUSE,SN25,15/09/2023,-788.80
105370342,Learning Disabilities,Adults,Learning Disability 18 - 64,Income,Client Contribution - Residential,CIDERSTONE HOUSE,SN25,15/09/2023,-438.80
105370342,Learning Disabilities,Adults,Learning Disability 18 - 64,Income,Client Contribution - Residential,CIDERSTONE HOUSE,SN25,15/09/2023,-425.60
105370342,Learning Disabilities,Adults,Learning Disability 18 - 64,3rd Party Payments,Residential Care,CIDERSTONE HOUSE,SN25,15/09/2023,"12,163.20"
105388361,High Needs Block,Dedicated Schools Grant (DSG),Post 16 - New Responsibilties,3rd Party Payments,FE Colleges,CIRENCESTER COLLEGE,GL7 ,15/09/2023,"2,987.00"
105388356,High Needs Block,Dedicated Schools Grant (DSG),Out of Borough School Fees,3rd Party Payments,Other Local Authority Mainstream Schools- Pre 16,CIRENCESTER KINGSHILL SCHOOL,GL7 ,15/09/2023,609.58
105388357,High Needs Block,Dedicated Schools Grant (DSG),Out of Borough School Fees,3rd Party Payments,Other Local Authority Mainstream Schools- Pre 16,CIRENCESTER KINGSHILL SCHOOL,GL7 ,15/09/2023,609.58
106386233,Homelessness and Travellers,Housing Services,Private Sector Landlords,Transfer Payments,Payment of Costs,REDACTED PERSONAL DATA,SN5 ,25/09/2023,575.00
103284233,Elections & Democracy,Elections and Democracy,Register of Electors,Supplies and Services,Materials,CIVICA ELECTION SERVICES LIMITED,N8 0,06/09/2023,278.69
103284233,Elections & Democracy,Elections and Democracy,Register of Electors,Supplies and Services,Post,CIVICA ELECTION SERVICES LIMITED,N8 0,06/09/2023,630.71
105346233,Human Resources and Organisational Development,"People, Culture and Organisational Resilience",HR Systems & Strategy,Supplies and Services,License Costs,CIVICA UK LTD,SE1 ,15/09/2023,"5,000.00"
103568233,Planning & Regulatory,Strategic Planning,Economy & Development Management,Employees,Temporary / Agency - by Accounts Payable,REDACTED PERSONAL DATA,BS37,06/09/2023,"9,490.20"
105725233,Early Years Block,Dedicated Schools Grant (DSG),Free Nursery Education Commissioning - three & four  year olds,3rd Party Payments,Contracts - Child Care,REDACTED PERSONAL DATA,SN6 ,20/09/2023,"4,239.74"
105814254,Early Years Block,Dedicated Schools Grant (DSG),Free Nursery Education Commissioning - three & four  year olds,3rd Party Payments,Contracts - Child Care,REDACTED PERSONAL DATA,SN2 ,20/09/2023,546.56
102988234,Property Management,Property,Property Assets,Supplies and Services,Fees,CLARKE WILLMOTT LLP,BS1 ,04/09/2023,"2,684.80"
106144233,Education,"Education, Inclusion and Skills",Education Standards and Quality,Supplies and Services,Fees,CLARKE WILLMOTT LLP,TA1 ,22/09/2023,"4,540.20"
106648233,Education,"Education, Inclusion and Skills",Education Standards and Quality,Supplies and Services,Fees,CLARKE WILLMOTT LLP,BS1 ,25/09/2023,"5,410.60"
105726233,Early Years Block,Dedicated Schools Grant (DSG),Free Nursery Education Commissioning - three & four  year olds,3rd Party Payments,Contracts - Child Care,CLIFTON ST PRE-SCHOOL,SN1 ,20/09/2023,"18,332.16"
104440233,Public Health,Public Health,Disabled Facilities Grants,Capital,Grant Payments,CLOSOMAT LIMITED,M33 ,11/09/2023,"3,790.00"
105312240,Responsive Repairs,Repairs,Responsive Repairs,3rd Party Payments,Contract Payments,CLOSOMAT LIMITED,M33 ,15/09/2023,515.00
105370307,Physical Support,Adults,Physical Support 65 and over,Income,Client Contribution - Residential,COATE WATER CARE CO LTD,SN3 ,15/09/2023,-977.54
105370307,Physical Support,Adults,Physical Support 65 and over,Income,Client Contribution - Residential,COATE WATER CARE CO LTD,SN3 ,15/09/2023,-847.96
105059233,Physical Support,Adults,Physical Support 65 and over,3rd Party Payments,Personal Budget - Respite Care,COATE WATER CARE CO LTD,SN3 ,13/09/2023,"3,985.71"
105370307,Physical Support,Adults,Physical Support 65 and over,Income,Client Contribution - Residential,COATE WATER CARE CO LTD,SN3 ,15/09/2023,-933.04
105370307,Physical Support,Adults,Physical Support 65 and over,Income,Client Contribution - Residential,COATE WATER CARE CO LTD,SN3 ,15/09/2023,-713.24
105370307,Physical Support,Adults,Physical Support 65 and over,3rd Party Payments,Residential Care,COATE WATER CARE CO LTD,SN3 ,15/09/2023,"4,142.86"
105370307,Physical Support,Adults,Physical Support 18 - 64,Income,Client Contribution - Residential,COATE WATER CARE CO LTD,SN3 ,15/09/2023,-416.56
105370307,Physical Support,Adults,Physical Support 65 and over,Income,Client Contribution - Residential,COATE WATER CARE CO LTD,SN3 ,15/09/2023,"-1,395.32"
105370307,Physical Support,Adults,Physical Support 65 and over,Income,Client Contribution - Residential,COATE WATER CARE CO LTD,SN3 ,15/09/2023,-760.96
105370307,Physical Support,Adults,Physical Support 65 and over,3rd Party Payments,Residential Care,COATE WATER CARE CO LTD,SN3 ,15/09/2023,"2,867.32"
105370307,Physical Support,Adults,Physical Support 18 - 64,3rd Party Payments,Residential Care,COATE WATER CARE CO LTD,SN3 ,15/09/2023,"2,867.32"
105370307,Mental Health,Adults,Mental Health 65 and over,3rd Party Payments,Residential Care,COATE WATER CARE CO LTD,SN3 ,15/09/2023,"3,136.00"
105370307,Physical Support,Adults,Physical Support 65 and over,3rd Party Payments,Residential Care,COATE WATER CARE CO LTD,SN3 ,15/09/2023,"-6,546.43"
105370307,Physical Support,Adults,Physical Support 65 and over,3rd Party Payments,Residential Care,COATE WATER CARE CO LTD,SN3 ,15/09/2023,"2,988.96"
105370307,Physical Support,Adults,Physical Support 18 - 64,Income,Client Contribution - Residential,COATE WATER CARE CO LTD,SN3 ,15/09/2023,-550.45
105370307,Physical Support,Adults,Physical Support 18 - 64,Income,Client Contribution - Residential,COATE WATER CARE CO LTD,SN3 ,15/09/2023,474.39
105575233,Physical Support,Adults,Physical Support 65 and over,3rd Party Payments,Personal Budget - Respite Care,COATE WATER CARE CO LTD,SN3 ,20/09/2023,"3,985.71"
105370307,Physical Support,Adults,Physical Support 65 and over,Income,Client Contribution - Residential,COATE WATER CARE CO LTD,SN3 ,15/09/2023,"-2,000.59"
105370307,Physical Support,Adults,Physical Support 65 and over,Income,Client Contribution - Residential,COATE WATER CARE CO LTD,SN3 ,15/09/2023,"1,160.23"
105370307,Physical Support,Adults,Physical Support 65 and over,Income,Client Contribution - Residential,COATE WATER CARE CO LTD,SN3 ,15/09/2023,"-3,839.89"
105370307,Physical Support,Adults,Physical Support 65 and over,Income,Client Contribution - Residential,COATE WATER CARE CO LTD,SN3 ,15/09/2023,"-1,191.84"
105370307,Physical Support,Adults,Physical Support 65 and over,3rd Party Payments,Residential Care,COATE WATER CARE CO LTD,SN3 ,15/09/2023,"3,900.00"
105370307,Physical Support,Adults,Physical Support 65 and over,3rd Party Payments,Residential Care,COATE WATER CARE CO LTD,SN3 ,15/09/2023,"4,400.00"
105370307,Mental Health,Adults,Mental Health 65 and over,Income,Client Contribution - Residential,COATE WATER CARE CO LTD,SN3 ,15/09/2023,-98.74
105370307,Mental Health,Adults,Mental Health 65 and over,3rd Party Payments,Residential Care,COATE WATER CARE CO LTD,SN3 ,15/09/2023,557.14
105370307,Physical Support,Adults,Physical Support 65 and over,Income,Client Contribution - Residential,COATE WATER CARE CO LTD,SN3 ,15/09/2023,"-2,280.92"
105370307,Physical Support,Adults,Physical Support 65 and over,Income,Client Contribution - Residential,COATE WATER CARE CO LTD,SN3 ,15/09/2023,"-1,328.68"
105370307,Physical Support,Adults,Physical Support 65 and over,Income,Client Contribution - Residential,COATE WATER CARE CO LTD,SN3 ,15/09/2023,"-1,175.40"
105370307,Physical Support,Adults,Physical Support 65 and over,Income,Client Contribution - Residential,COATE WATER CARE CO LTD,SN3 ,15/09/2023,-727.20
105370307,Physical Support,Adults,Physical Support 65 and over,3rd Party Payments,Residential Care,COATE WATER CARE CO LTD,SN3 ,15/09/2023,"5,571.43"
105370307,Physical Support,Adults,Physical Support 65 and over,3rd Party Payments,Residential Care,COATE WATER CARE CO LTD,SN3 ,15/09/2023,"6,546.43"
105370307,Mental Health,Adults,Mental Health 65 and over,3rd Party Payments,Residential Care,COATE WATER CARE CO LTD,SN3 ,15/09/2023,"2,867.32"
105370307,Mental Health,Adults,Mental Health 65 and over,3rd Party Payments,Residential Care,COATE WATER CARE CO LTD,SN3 ,15/09/2023,344.00
105370307,Physical Support,Adults,Physical Support 65 and over,Income,Client Contribution - Residential,COATE WATER CARE CO LTD,SN3 ,15/09/2023,"1,151.97"
105370307,Physical Support,Adults,Physical Support 65 and over,Income,Client Contribution - Residential,COATE WATER CARE CO LTD,SN3 ,15/09/2023,"-1,434.76"
105370307,Physical Support,Adults,Physical Support 65 and over,Income,Client Contribution - Residential,COATE WATER CARE CO LTD,SN3 ,15/09/2023,-954.00
105370307,Physical Support,Adults,Physical Support 65 and over,Income,Client Contribution - Residential,COATE WATER CARE CO LTD,SN3 ,15/09/2023,-895.60
105370307,Physical Support,Adults,Physical Support 65 and over,Income,Client Contribution - Residential,COATE WATER CARE CO LTD,SN3 ,15/09/2023,-691.20
105370307,Physical Support,Adults,Physical Support 65 and over,Income,Client Contribution - Residential,COATE WATER CARE CO LTD,SN3 ,15/09/2023,-675.20
105370307,Physical Support,Adults,Physical Support 65 and over,Income,Client Contribution - Residential,COATE WATER CARE CO LTD,SN3 ,15/09/2023,-644.56
105370307,Physical Support,Adults,Physical Support 65 and over,Income,Client Contribution - Residential,COATE WATER CARE CO LTD,SN3 ,15/09/2023,"-1,160.23"
105370307,Physical Support,Adults,Physical Support 65 and over,3rd Party Payments,Residential Care,COATE WATER CARE CO LTD,SN3 ,15/09/2023,"-2,571.43"
105370263,Learning Disabilities,Adults,Learning Disability 18 - 64,Income,Client Contribution - Residential,COCKLEBURY FARMHOUSE,SN15,15/09/2023,-425.60
105370263,Learning Disabilities,Adults,Learning Disability 18 - 64,3rd Party Payments,Residential Care,COCKLEBURY FARMHOUSE,SN15,15/09/2023,"10,364.00"
105844233,Town Centre,"Economy, Growth and Place",Fleming Way Improvement Scheme,Capital,Contractor Payments,COLAS LTD,B37 ,20/09/2023,"456,906.52"
105727233,Early Years Block,Dedicated Schools Grant (DSG),Free Nursery Education Commissioning - three & four  year olds,3rd Party Payments,Contracts - Child Care,COLEVIEW PRE-SCHOOL,SN3 ,20/09/2023,"24,998.40"
103204233,Disabled Children,Children & Families,DCT Daytime Short Breaks,3rd Party Payments,Respite Care,COLLABORATIVE CARE SERVICES LTD,SN2 ,04/09/2023,"29,304.00"
105370252,Learning Disabilities,Adults,Learning Disability 18 - 64,Income,Client Contribution - Supported Living,COMMUNITY ACCESS NETWORK LTD,SN25,15/09/2023,-142.80
104047237,Physical Support,Adults,Physical Support 18 - 64,3rd Party Payments,Personal Budget - Day services,COMMUNITY ACCESS NETWORK LTD,SN25,08/09/2023,703.08
105370252,Learning Disabilities,Adults,Learning Disability 18 - 64,3rd Party Payments,Supported Lodgings (Childrens)/Supported Living (Adults),COMMUNITY ACCESS NETWORK LTD,SN25,15/09/2023,"1,503.88"
105370252,Learning Disabilities,Adults,Learning Disability 18 - 64,3rd Party Payments,Supported Lodgings (Childrens)/Supported Living (Adults),COMMUNITY ACCESS NETWORK LTD,SN25,15/09/2023,560.00
105370252,Learning Disabilities,Adults,Learning Disability 18 - 64,3rd Party Payments,Supported Lodgings (Childrens)/Supported Living (Adults),COMMUNITY ACCESS NETWORK LTD,SN25,15/09/2023,"1,360.00"
105370252,Learning Disabilities,Adults,Learning Disability 18 - 64,3rd Party Payments,Supported Lodgings (Childrens)/Supported Living (Adults),COMMUNITY ACCESS NETWORK LTD,SN25,15/09/2023,24.00
105370252,Learning Disabilities,Adults,Learning Disability 18 - 64,3rd Party Payments,Supported Lodgings (Childrens)/Supported Living (Adults),COMMUNITY ACCESS NETWORK LTD,SN25,15/09/2023,"4,120.00"
105370251,Learning Disabilities,Adults,Learning Disability 65 and over,3rd Party Payments,Supported Lodgings (Childrens)/Supported Living (Adults),COMMUNITY ACCESS NETWORK LTD,SN25,15/09/2023,907.60
105370252,Learning Disabilities,Adults,Learning Disability 18 - 64,3rd Party Payments,Supported Lodgings (Childrens)/Supported Living (Adults),COMMUNITY ACCESS NETWORK LTD,SN25,15/09/2023,27.76
105370251,Learning Disabilities,Adults,Learning Disability 18 - 64,3rd Party Payments,Residential Care,COMMUNITY ACCESS NETWORK LTD,SN25,15/09/2023,"7,036.52"
105370251,Learning Disabilities,Adults,Learning Disability 18 - 64,Income,Client Contribution - Residential,COMMUNITY ACCESS NETWORK LTD,SN25,15/09/2023,-293.60
105299237,Social Care,Children & Families,Children's Resource and Home Finding Team,3rd Party Payments,Independent Fostering Agency Placements,COMMUNITY FOSTER CARE,GL1 ,15/09/2023,"4,058.21"
105299236,Social Care,Children & Families,Children's Resource and Home Finding Team,3rd Party Payments,Independent Fostering Agency Placements,COMMUNITY FOSTER CARE,GL1 ,15/09/2023,"4,058.21"
105299238,Social Care,Children & Families,Children's Resource and Home Finding Team,3rd Party Payments,Independent Fostering Agency Placements,COMMUNITY FOSTER CARE,GL1 ,15/09/2023,"10,416.62"
105370308,Learning Disabilities,Adults,Learning Disability 18 - 64,3rd Party Payments,Residential Care,COMMUNITY THERAPEUTIC SERVICES LTD,BS22,15/09/2023,"12,423.92"
104436240,Social Care,Children & Families,Children's Resource and Home Finding Team,3rd Party Payments,Residential Care,COMPASS CHILDREN'S HOMES LTD,LE7 ,11/09/2023,"20,475.00"
104436239,Social Care,Children & Families,Children's Resource and Home Finding Team,3rd Party Payments,Residential Care,COMPASS CHILDREN'S HOMES LTD,LE7 ,11/09/2023,"21,157.50"
105064235,Social Care,Children & Families,Placement - Care Leaver Team,3rd Party Payments,Staying Put,COMPASS FOSTERING WEST LTD,LE7 ,13/09/2023,"2,137.50"
105064270,Social Care,Children & Families,Children's Resource and Home Finding Team,3rd Party Payments,Independent Fostering Agency Placements,COMPASS FOSTERING WEST LTD,LE7 ,13/09/2023,"3,852.99"
105064237,Social Care,Children & Families,Children's Resource and Home Finding Team,3rd Party Payments,Independent Fostering Agency Placements,COMPASS FOSTERING WEST LTD,LE7 ,13/09/2023,"3,401.63"
105064236,Social Care,Children & Families,Children's Resource and Home Finding Team,3rd Party Payments,Independent Fostering Agency Placements,COMPASS FOSTERING WEST LTD,LE7 ,13/09/2023,"3,401.63"
105064234,Social Care,Children & Families,Placement - Care Leaver Team,3rd Party Payments,Staying Put,COMPASS FOSTERING WEST LTD,LE7 ,13/09/2023,"2,208.75"
105064271,Social Care,Children & Families,Children's Resource and Home Finding Team,3rd Party Payments,Independent Fostering Agency Placements,COMPASS FOSTERING WEST LTD,LE7 ,13/09/2023,"3,728.70"
105064244,Social Care,Children & Families,Children's Resource and Home Finding Team,3rd Party Payments,Independent Fostering Agency Placements,COMPASS FOSTERING WEST LTD,LE7 ,13/09/2023,"3,118.50"
105064239,Social Care,Children & Families,Children's Resource and Home Finding Team,3rd Party Payments,Independent Fostering Agency Placements,COMPASS FOSTERING WEST LTD,LE7 ,13/09/2023,"3,618.01"
105064233,Social Care,Children & Families,Placement - Care Leaver Team,3rd Party Payments,Staying Put,COMPASS FOSTERING WEST LTD,LE7 ,13/09/2023,"2,208.75"
105064249,Social Care,Children & Families,Children's Resource and Home Finding Team,3rd Party Payments,Independent Fostering Agency Placements,COMPASS FOSTERING WEST LTD,LE7 ,13/09/2023,"3,452.47"
105064248,Social Care,Children & Families,Children's Resource and Home Finding Team,3rd Party Payments,Independent Fostering Agency Placements,COMPASS FOSTERING WEST LTD,LE7 ,13/09/2023,"3,452.47"
105064242,Social Care,Children & Families,Children's Resource and Home Finding Team,3rd Party Payments,Independent Fostering Agency Placements,COMPASS FOSTERING WEST LTD,LE7 ,13/09/2023,"3,218.41"
105064268,Social Care,Children & Families,Children's Resource and Home Finding Team,3rd Party Payments,Independent Fostering Agency Placements,COMPASS FOSTERING WEST LTD,LE7 ,13/09/2023,"3,852.99"
105064265,Social Care,Children & Families,Children's Resource and Home Finding Team,3rd Party Payments,Independent Fostering Agency Placements,COMPASS FOSTERING WEST LTD,LE7 ,13/09/2023,"6,016.17"
105064264,Social Care,Children & Families,Children's Resource and Home Finding Team,3rd Party Payments,Independent Fostering Agency Placements,COMPASS FOSTERING WEST LTD,LE7 ,13/09/2023,"6,016.17"
105064247,Social Care,Children & Families,Children's Resource and Home Finding Team,3rd Party Payments,Independent Fostering Agency Placements,COMPASS FOSTERING WEST LTD,LE7 ,13/09/2023,"3,118.50"
105064246,Social Care,Children & Families,Children's Resource and Home Finding Team,3rd Party Payments,Independent Fostering Agency Placements,COMPASS FOSTERING WEST LTD,LE7 ,13/09/2023,"3,222.45"
105064261,Social Care,Children & Families,Children's Resource and Home Finding Team,3rd Party Payments,Independent Fostering Agency Placements,COMPASS FOSTERING WEST LTD,LE7 ,13/09/2023,"5,822.73"
105064267,Social Care,Children & Families,Children's Resource and Home Finding Team,3rd Party Payments,Independent Fostering Agency Placements,COMPASS FOSTERING WEST LTD,LE7 ,13/09/2023,"3,852.99"
105064240,Social Care,Children & Families,Children's Resource and Home Finding Team,3rd Party Payments,Independent Fostering Agency Placements,COMPASS FOSTERING WEST LTD,LE7 ,13/09/2023,"3,618.01"
105064254,Social Care,Children & Families,Children's Resource and Home Finding Team,3rd Party Payments,Independent Fostering Agency Placements,COMPASS FOSTERING WEST LTD,LE7 ,13/09/2023,"3,618.01"
105064258,Social Care,Children & Families,Children's Resource and Home Finding Team,3rd Party Payments,Independent Fostering Agency Placements,COMPASS FOSTERING WEST LTD,LE7 ,13/09/2023,"3,401.63"
105064262,Social Care,Children & Families,Children's Resource and Home Finding Team,3rd Party Payments,Independent Fostering Agency Placements,COMPASS FOSTERING WEST LTD,LE7 ,13/09/2023,"5,634.90"
105064256,Social Care,Children & Families,Children's Resource and Home Finding Team,3rd Party Payments,Independent Fostering Agency Placements,COMPASS FOSTERING WEST LTD,LE7 ,13/09/2023,"3,501.30"
105064257,Social Care,Children & Families,Children's Resource and Home Finding Team,3rd Party Payments,Independent Fostering Agency Placements,COMPASS FOSTERING WEST LTD,LE7 ,13/09/2023,"3,401.63"
105064238,Social Care,Children & Families,Children's Resource and Home Finding Team,3rd Party Payments,Independent Fostering Agency Placements,COMPASS FOSTERING WEST LTD,LE7 ,13/09/2023,"3,291.90"
105064243,Social Care,Children & Families,Children's Resource and Home Finding Team,3rd Party Payments,Independent Fostering Agency Placements,COMPASS FOSTERING WEST LTD,LE7 ,13/09/2023,"3,222.45"
105064251,Social Care,Children & Families,Children's Resource and Home Finding Team,3rd Party Payments,Independent Fostering Agency Placements,COMPASS FOSTERING WEST LTD,LE7 ,13/09/2023,"3,599.41"
103093233,Social Care,Children & Families,Children's Resource and Home Finding Team,3rd Party Payments,Independent Fostering Agency Placements,COMPASS FOSTERING WEST LTD,LE7 ,04/09/2023,"1,740.06"
105064255,Social Care,Children & Families,Children's Resource and Home Finding Team,3rd Party Payments,Independent Fostering Agency Placements,COMPASS FOSTERING WEST LTD,LE7 ,13/09/2023,"3,618.01"
105064259,Social Care,Children & Families,Children's Resource and Home Finding Team,3rd Party Payments,Independent Fostering Agency Placements,COMPASS FOSTERING WEST LTD,LE7 ,13/09/2023,"3,291.90"
105064260,Social Care,Children & Families,Children's Resource and Home Finding Team,3rd Party Payments,Independent Fostering Agency Placements,COMPASS FOSTERING WEST LTD,LE7 ,13/09/2023,"5,822.73"
105064245,Social Care,Children & Families,Children's Resource and Home Finding Team,3rd Party Payments,Independent Fostering Agency Placements,COMPASS FOSTERING WEST LTD,LE7 ,13/09/2023,"3,222.45"
105064250,Social Care,Children & Families,Children's Resource and Home Finding Team,3rd Party Payments,Independent Fostering Agency Placements,COMPASS FOSTERING WEST LTD,LE7 ,13/09/2023,"3,341.10"
105064253,Social Care,Children & Families,Children's Resource and Home Finding Team,3rd Party Payments,Independent Fostering Agency Placements,COMPASS FOSTERING WEST LTD,LE7 ,13/09/2023,"3,666.60"
105064269,Social Care,Children & Families,Children's Resource and Home Finding Team,3rd Party Payments,Independent Fostering Agency Placements,COMPASS FOSTERING WEST LTD,LE7 ,13/09/2023,"-1,740.06"
105064241,Social Care,Children & Families,Children's Resource and Home Finding Team,3rd Party Payments,Independent Fostering Agency Placements,COMPASS FOSTERING WEST LTD,LE7 ,13/09/2023,"3,501.30"
105064266,Social Care,Children & Families,Children's Resource and Home Finding Team,3rd Party Payments,Independent Fostering Agency Placements,COMPASS FOSTERING WEST LTD,LE7 ,13/09/2023,"5,822.10"
105064252,Social Care,Children & Families,Children's Resource and Home Finding Team,3rd Party Payments,Independent Fostering Agency Placements,COMPASS FOSTERING WEST LTD,LE7 ,13/09/2023,"3,788.82"
107270233,Human Resources and Organisational Development,"People, Culture and Organisational Resilience",Pay & Reward,Employees,Temporary / Agency - by Accounts Payable,COMPAWISE LIMITED,WA14,29/09/2023,"3,480.00"
103629233,Human Resources and Organisational Development,"People, Culture and Organisational Resilience",Pay & Reward,Employees,Temporary / Agency - by Accounts Payable,COMPAWISE LIMITED,WA14,06/09/2023,"5,280.00"
106488233,Supported Employment,Housing Services,EW - Timber,Supplies and Services,Materials,CONCRETE FABRICATIONS LTD,BS2 ,22/09/2023,589.06
105934234,Supported Employment,Housing Services,EW - Timber,Supplies and Services,Materials,CONCRETE FABRICATIONS LTD,BS2 ,20/09/2023,"1,767.18"
105136233,Acquisitions,HRA Capital Financing,HRA Acquisitions Programme,Capital,Acquisitions,CONNELLS RESIDENTIAL,LU7 ,15/09/2023,550.00
103881265,Learning Disabilities,Adults,Learning Disability 18 - 64,Transfer Payments,Personal Budget - Direct Payments - Domiciliary Care,REDACTED PERSONAL DATA,GL2 ,06/09/2023,"4,684.74"
104024235,Property Management,Property,Corporate Repairs & Maintenance Programme,Premises Costs,Maintenance - Buildings,COOLINK LTD,SN11,08/09/2023,103.50
102221234,Property Management,Property,Corporate Repairs & Maintenance Programme,Premises Costs,Maintenance - Buildings,COOLINK LTD,SN11,01/09/2023,630.20
103207234,Property Management,Property,Corporate Repairs & Maintenance Programme,Premises Costs,Maintenance - Buildings,COOLINK LTD,SN11,04/09/2023,248.40
103207234,Property Management,Property,Corporate Repairs & Maintenance Programme,Premises Costs,Maintenance - Buildings,COOLINK LTD,SN11,04/09/2023,374.00
104371233,DMJ Tower,Housing Services,DMJ Residential (Now HRA),Premises Costs,Maintenance - Buildings,COOLINK LTD,SN11,11/09/2023,86.25
105253234,Property Management,Property,Corporate Repairs & Maintenance Programme,Premises Costs,Maintenance - Buildings,COOLINK LTD,SN11,15/09/2023,"2,087.00"
104024235,Property Management,Property,Corporate Repairs & Maintenance Programme,Premises Costs,Maintenance - Buildings,COOLINK LTD,SN11,08/09/2023,490.00
103207234,Property Management,Property,Corporate Repairs & Maintenance Programme,Premises Costs,Maintenance - Buildings,COOLINK LTD,SN11,04/09/2023,144.00
102220234,Property Management,Property,Corporate Repairs & Maintenance Programme,Premises Costs,Maintenance - Buildings,COOLINK LTD,SN11,01/09/2023,"1,429.00"
104371233,DMJ Tower,Housing Services,DMJ Residential (Now HRA),Premises Costs,Maintenance - Buildings,COOLINK LTD,SN11,11/09/2023,115.00
104079234,Safeguarding and Quality Assurance,Children & Families,Participation,Supplies and Services,Services,CORAM VOICE,WC1N,08/09/2023,"12,396.95"
102975233,Responsive Repairs,Repairs,Responsive Repairs,3rd Party Payments,Contract Payments,REDACTED PERSONAL DATA,SN2 ,01/09/2023,"1,500.00"
102973233,Responsive Repairs,Repairs,Responsive Repairs,3rd Party Payments,Contract Payments,REDACTED PERSONAL DATA,SN2 ,01/09/2023,700.00
102972233,Responsive Repairs,Repairs,Responsive Repairs,3rd Party Payments,Contract Payments,REDACTED PERSONAL DATA,SN2 ,01/09/2023,"1,350.00"
102974233,Responsive Repairs,Repairs,Responsive Repairs,3rd Party Payments,Contract Payments,REDACTED PERSONAL DATA,SN2 ,01/09/2023,"1,650.00"
104429262,Responsive Repairs,Repairs,Responsive Repairs,3rd Party Payments,Contract Payments,REDACTED PERSONAL DATA,SN2 ,11/09/2023,780.00
104429263,Responsive Repairs,Repairs,Responsive Repairs,3rd Party Payments,Contract Payments,REDACTED PERSONAL DATA,SN2 ,11/09/2023,265.00
105166233,Responsive Repairs,Repairs,Responsive Repairs,3rd Party Payments,Contract Payments,REDACTED PERSONAL DATA,SN2 ,15/09/2023,185.00
104024233,Responsive Repairs,Repairs,Responsive Repairs,3rd Party Payments,Contract Payments,REDACTED PERSONAL DATA,SN2 ,08/09/2023,"2,150.00"
104429261,Responsive Repairs,Repairs,Responsive Repairs,3rd Party Payments,Contract Payments,REDACTED PERSONAL DATA,SN2 ,11/09/2023,300.00
104429261,Responsive Repairs,Repairs,Responsive Repairs,3rd Party Payments,Contract Payments,REDACTED PERSONAL DATA,SN2 ,11/09/2023,650.00
104429263,Responsive Repairs,Repairs,Responsive Repairs,3rd Party Payments,Contract Payments,REDACTED PERSONAL DATA,SN2 ,11/09/2023,440.00
104429262,Responsive Repairs,Repairs,Responsive Repairs,3rd Party Payments,Contract Payments,REDACTED PERSONAL DATA,SN2 ,11/09/2023,950.00
102975233,Responsive Repairs,Repairs,Responsive Repairs,3rd Party Payments,Contract Payments,REDACTED PERSONAL DATA,SN2 ,01/09/2023,"2,600.00"
104024233,Responsive Repairs,Repairs,Responsive Repairs,3rd Party Payments,Contract Payments,REDACTED PERSONAL DATA,SN2 ,08/09/2023,"2,000.00"
105166233,Responsive Repairs,Repairs,Responsive Repairs,3rd Party Payments,Contract Payments,REDACTED PERSONAL DATA,SN2 ,15/09/2023,520.00
102974233,Responsive Repairs,Repairs,Responsive Repairs,3rd Party Payments,Contract Payments,REDACTED PERSONAL DATA,SN2 ,01/09/2023,"1,200.00"
102972233,Responsive Repairs,Repairs,Responsive Repairs,3rd Party Payments,Contract Payments,REDACTED PERSONAL DATA,SN2 ,01/09/2023,"1,000.00"
102973233,Responsive Repairs,Repairs,Responsive Repairs,3rd Party Payments,Contract Payments,REDACTED PERSONAL DATA,SN2 ,01/09/2023,"1,100.00"
106588236,Social Care,Children & Families,Placement Adoption Service,3rd Party Payments,Adoption Allowances,REDACTED PERSONAL DATA,BA15,25/09/2023,860.00
104432268,Social Care,Children & Families,Placement Adoption Service,3rd Party Payments,Adoption Allowances,REDACTED PERSONAL DATA,BA15,11/09/2023,860.00
105370281,Learning Disabilities,Adults,Learning Disability 18 - 64,3rd Party Payments,Residential Care,CORNERSTONES UK LTD,SN9 ,15/09/2023,"5,322.56"
105370281,Learning Disabilities,Adults,Learning Disability 18 - 64,3rd Party Payments,Residential Care,CORNERSTONES UK LTD,SN9 ,15/09/2023,"6,626.24"
105370281,Learning Disabilities,Adults,Learning Disability 18 - 64,Income,Client Contribution - Residential,CORNERSTONES UK LTD,SN9 ,15/09/2023,-414.20
105370281,Learning Disabilities,Adults,Learning Disability 18 - 64,3rd Party Payments,Residential Care,CORNERSTONES UK LTD,SN9 ,15/09/2023,"7,337.52"
105370281,Learning Disabilities,Adults,Learning Disability 18 - 64,Income,Client Contribution - Residential,CORNERSTONES UK LTD,SN9 ,15/09/2023,-487.80
105370281,Learning Disabilities,Adults,Learning Disability 18 - 64,Income,Client Contribution - Residential,CORNERSTONES UK LTD,SN9 ,15/09/2023,-381.00
105370281,Learning Disabilities,Adults,Learning Disability 18 - 64,Income,Client Contribution - Residential,CORNERSTONES UK LTD,SN9 ,15/09/2023,-438.80
105370281,Learning Disabilities,Adults,Learning Disability 18 - 64,3rd Party Payments,Residential Care,CORNERSTONES UK LTD,SN9 ,15/09/2023,"8,465.28"
105370281,Learning Disabilities,Adults,Learning Disability 18 - 64,Income,Client Contribution - Residential,CORNERSTONES UK LTD,SN9 ,15/09/2023,-423.00
105370281,Learning Disabilities,Adults,Learning Disability 18 - 64,3rd Party Payments,Residential Care,CORNERSTONES UK LTD,SN9 ,15/09/2023,"4,178.84"
105370281,Learning Disabilities,Adults,Learning Disability 18 - 64,3rd Party Payments,Residential Care,CORNERSTONES UK LTD,SN9 ,15/09/2023,"8,650.40"
103073233,Social Care,Children & Families,Children's Resource and Home Finding Team,3rd Party Payments,Residential Care,COTSWOLD CHINE SCHOOL,GL5 ,04/09/2023,"75,053.33"
105930234,Streetsmart,Streetsmart,Waterside Fleet Hires,Transport Costs,Vehicle Hire / Contract,COTSWOLD RECYCLING COMPANY LTD,GL12,20/09/2023,"2,385.00"
105928234,Streetsmart,Streetsmart,Waterside Fleet Hires,Transport Costs,Vehicle Hire / Contract,COTSWOLD RECYCLING COMPANY LTD,GL12,20/09/2023,"2,375.00"
105929234,Streetsmart,Streetsmart,Waterside Fleet Hires,Transport Costs,Vehicle Hire / Contract,COTSWOLD RECYCLING COMPANY LTD,GL12,20/09/2023,"2,375.00"
103881525,Learning Disabilities,Adults,Learning Disability 18 - 64,Transfer Payments,Personal Budget - Direct Payments - Domiciliary Care,REDACTED PERSONAL DATA,SP11,06/09/2023,"1,720.56"
Corporate Card Transaction,Homelessness and Travellers,Housing Services,Bed and Breakfast Accommodation,Transfer Payments,Payment of Costs,Countrysouth,,19/09/2023,1000
107235233,Streetsmart,Streetsmart,Waste - Processing,Supplies and Services,Repairs & Maintenance,COVEYA LTD,BS30,29/09/2023,"1,201.20"
106753233,Early Years Block,Dedicated Schools Grant (DSG),Free Nursery Education Commissioning - three & four  year olds,3rd Party Payments,Contracts - Child Care,COVINGHAM KINGFISHER PRE-SCHOOL,SN3 ,27/09/2023,912.00
105728233,Early Years Block,Dedicated Schools Grant (DSG),Free Nursery Education Commissioning - three & four  year olds,3rd Party Payments,Contracts - Child Care,COVINGHAM KINGFISHER PRE-SCHOOL,SN3 ,20/09/2023,"13,228.32"
105729233,Early Years Block,Dedicated Schools Grant (DSG),Free Nursery Education Commissioning - two year olds,3rd Party Payments,Contracts - Child Care,COVINGHAM KINGFISHER PRE-SCHOOL,SN3 ,20/09/2023,"1,204.32"
104482233,Schools - Primary,Dedicated Schools Grant (DSG),Primary School Budgets,3rd Party Payments,Mainstream Delegated Funding,COVINGHAM PARK PRIMARY SCHOOL,SN3 ,13/09/2023,"133,968.00"
105388256,High Needs Block,Dedicated Schools Grant (DSG),SEN Resourcing Assessment Panel,3rd Party Payments,Top up funding - Maintained providers Pre 16,COVINGHAM PARK PRIMARY SCHOOL,SN3 ,15/09/2023,"3,677.50"
104470233,DSG Other Funding,Dedicated Schools Grant (DSG),DFE Additional Grants,3rd Party Payments,Payment of Pupil Premium to school,COVINGHAM PARK PRIMARY SCHOOL,SN3 ,13/09/2023,"8,056.00"
105730233,Early Years Block,Dedicated Schools Grant (DSG),Free Nursery Education Commissioning - two year olds,3rd Party Payments,Contracts - Child Care,COVINGHAM ROUNDABOUT PLAYGROUP,SN3 ,20/09/2023,"1,296.96"
105731233,Early Years Block,Dedicated Schools Grant (DSG),Free Nursery Education Commissioning - three & four  year olds,3rd Party Payments,Contracts - Child Care,COVINGHAM ROUNDABOUT PLAYGROUP,SN3 ,20/09/2023,"17,863.44"
105370356,Physical Support,Adults,Physical Support 65 and over,3rd Party Payments,Residential Care,COXWELL HALL AND MEWS NURSING HOME,TW20,15/09/2023,"5,785.71"
105370356,Physical Support,Adults,Physical Support 65 and over,3rd Party Payments,Residential Care,COXWELL HALL AND MEWS NURSING HOME,TW20,15/09/2023,"6,480.00"
105370356,Mental Health,Adults,Mental Health 65 and over,3rd Party Payments,Nursing Care,COXWELL HALL AND MEWS NURSING HOME,TW20,15/09/2023,"-3,917.77"
105370356,Mental Health,Adults,Mental Health 65 and over,3rd Party Payments,Residential Care,COXWELL HALL AND MEWS NURSING HOME,TW20,15/09/2023,"6,000.00"
105370356,Mental Health,Adults,Mental Health 65 and over,3rd Party Payments,Nursing Care,COXWELL HALL AND MEWS NURSING HOME,TW20,15/09/2023,"-3,300.00"
105370356,Memory & Cognition,Adults,Support for Memory and Cognition 65 and over,3rd Party Payments,Residential Care,COXWELL HALL AND MEWS NURSING HOME,TW20,15/09/2023,"5,968.24"
105370356,Physical Support,Adults,Physical Support 65 and over,Income,Client Contribution - Residential,COXWELL HALL AND MEWS NURSING HOME,TW20,15/09/2023,-544.64
105370356,Physical Support,Adults,Physical Support 65 and over,Income,Client Contribution - Residential,COXWELL HALL AND MEWS NURSING HOME,TW20,15/09/2023,-610.00
107382233,Planned Maintenance Programme,HRA Capital Financing,Contingent Major Repairs,Capital,Contractor Payments,CPS CONSTRUCTION LTD,BS15,29/09/2023,"2,431.41"
105370257,Learning Disabilities,Adults,Learning Disability 18 - 64,Income,Client Contribution - Residential,CRAEGMOOR HEALTHCARE,BA14,15/09/2023,-483.20
105370257,Learning Disabilities,Adults,Learning Disability 18 - 64,3rd Party Payments,Residential Care,CRAEGMOOR HEALTHCARE,BA14,15/09/2023,"9,158.28"
106151235,"Data, Performance and Insight",Digital & Business Change,"Performance, Intelligence and Insight",Supplies and Services,Services,CRAYON DRAGONS LTD,SL6 ,22/09/2023,"6,750.00"
106856233,Heritage,Culture,SMAG relocation,Capital,Contractor Payments,CREATIVE CONSTRUCTION SOUTH WEST LTD,BS48,27/09/2023,"48,412.61"
103293233,Physical Support,Adults,Fessey House,Supplies and Services,Food,CREED CATERING SUPPLIES LTD,GL51,06/09/2023,703.80
104776233,Physical Support,Adults,Fessey House,Supplies and Services,Food,CREED CATERING SUPPLIES LTD,GL51,13/09/2023,162.16
103292233,Physical Support,Adults,Fessey House,Supplies and Services,Food,CREED CATERING SUPPLIES LTD,GL51,06/09/2023,875.37
104774233,Physical Support,Adults,Fessey House,Supplies and Services,Food,CREED CATERING SUPPLIES LTD,GL51,13/09/2023,85.74
105646233,Physical Support,Adults,Fessey House,Supplies and Services,Food,CREED CATERING SUPPLIES LTD,GL51,20/09/2023,750.41
104774233,Physical Support,Adults,Fessey House,Supplies and Services,Food,CREED CATERING SUPPLIES LTD,GL51,13/09/2023,678.35
106785233,Physical Support,Adults,Fessey House,Supplies and Services,Food,CREED CATERING SUPPLIES LTD,GL51,27/09/2023,84.25
103290233,Physical Support,Adults,Fessey House,Supplies and Services,Food,CREED CATERING SUPPLIES LTD,GL51,06/09/2023,680.93
106786233,Physical Support,Adults,Fessey House,Supplies and Services,Food,CREED CATERING SUPPLIES LTD,GL51,27/09/2023,733.07
105646233,Physical Support,Adults,Fessey House,Supplies and Services,Food,CREED CATERING SUPPLIES LTD,GL51,20/09/2023,113.23
104776233,Physical Support,Adults,Fessey House,Supplies and Services,Food,CREED CATERING SUPPLIES LTD,GL51,13/09/2023,556.17
103293233,Physical Support,Adults,Fessey House,Supplies and Services,Food,CREED CATERING SUPPLIES LTD,GL51,06/09/2023,61.87
103292233,Physical Support,Adults,Fessey House,Supplies and Services,Food,CREED CATERING SUPPLIES LTD,GL51,06/09/2023,137.92
106785233,Physical Support,Adults,Fessey House,Supplies and Services,Food,CREED CATERING SUPPLIES LTD,GL51,27/09/2023,496.30
106786233,Physical Support,Adults,Fessey House,Supplies and Services,Food,CREED CATERING SUPPLIES LTD,GL51,27/09/2023,56.23
103290233,Physical Support,Adults,Fessey House,Supplies and Services,Food,CREED CATERING SUPPLIES LTD,GL51,06/09/2023,32.32
106857233,Property & Assets,Property & Assets,General Enhancement Works Corporate Buildings,Capital,Contractor Payments,CRL SURVEYS LIMITED,CR4 ,27/09/2023,"14,180.00"
106811233,Sheltered Accomodation,Special Services,George Hall Court,Premises Costs,Maintenance - Grounds,CROCSEC LIMITED,SN25,27/09/2023,"1,632.00"
106418233,Sheltered Accomodation,Special Services,George Hall Court,Premises Costs,Maintenance - Grounds,CROCSEC LIMITED,SN25,22/09/2023,"1,054.00"
106419233,Sheltered Accomodation,Special Services,George Hall Court,Premises Costs,Maintenance - Grounds,CROCSEC LIMITED,SN25,22/09/2023,"2,320.00"
105732233,Early Years Block,Dedicated Schools Grant (DSG),Free Nursery Education Commissioning - three & four  year olds,3rd Party Payments,Contracts - Child Care,CROFT PLAYGROUP,SN3 ,20/09/2023,"53,086.59"
103963233,Licencing,Regulatory Services,Taxis & Private Hire,Supplies and Services,Testing / Inspection,CROSS STREET GARAGE (SWINDON) LTD,SN1 ,08/09/2023,"1,540.00"
105293233,School Transport,"Education, Inclusion and Skills",Special Educational Needs Transport,Transport Costs,Home to School Transport,CROSS STREET RADIO CARS,SN1 ,15/09/2023,"2,890.00"
105295233,School Transport,"Education, Inclusion and Skills",Special Educational Needs Transport,Transport Costs,Home to School Transport,CROSS STREET RADIO CARS,SN1 ,15/09/2023,"1,920.00"
102282233,School Transport,"Education, Inclusion and Skills",Special Educational Needs Transport,Transport Costs,Home to School Transport,CROSS STREET RADIO CARS,SN1 ,01/09/2023,"1,450.00"
102277233,School Transport,"Education, Inclusion and Skills",Special Educational Needs Transport,Transport Costs,Home to School Transport,CROSS STREET RADIO CARS,SN1 ,01/09/2023,"3,230.00"
105296233,School Transport,"Education, Inclusion and Skills",Special Educational Needs Transport,Transport Costs,Home to School Transport,CROSS STREET RADIO CARS,SN1 ,15/09/2023,990.00
105388274,High Needs Block,Dedicated Schools Grant (DSG),SEN Resourcing Assessment Panel,3rd Party Payments,Top up funding - Maintained providers Pre 16,CROWDYS HILL SCHOOL,SN2 ,15/09/2023,"147,145.86"
104485234,High Needs Block,Dedicated Schools Grant (DSG),Special School Place,3rd Party Payments,HNB- Place Funding post 16,CROWDYS HILL SCHOOL,SN2 ,13/09/2023,"38,334.00"
105388273,High Needs Block,Dedicated Schools Grant (DSG),SEN Resourcing Assessment Panel,3rd Party Payments,Top up funding - Maintained providers Pre 16,CROWDYS HILL SCHOOL,SN2 ,15/09/2023,"46,002.69"
104477233,DSG Other Funding,Dedicated Schools Grant (DSG),DFE Additional Grants,3rd Party Payments,Payment of Pupil Premium to school,CROWDYS HILL SCHOOL,SN2 ,13/09/2023,"10,281.00"
105388279,High Needs Block,Dedicated Schools Grant (DSG),SEN Resourcing Assessment Panel,3rd Party Payments,Top up funding - Maintained providers Post 16,CROWDYS HILL SCHOOL,SN2 ,15/09/2023,"53,082.46"
105388275,High Needs Block,Dedicated Schools Grant (DSG),SEN Resourcing Assessment Panel,3rd Party Payments,Top up funding - Maintained providers Pre 16,CROWDYS HILL SCHOOL,SN2 ,15/09/2023,"4,375.00"
104486233,High Needs Block,Dedicated Schools Grant (DSG),Special School Place,3rd Party Payments,HNB- Place Funding pre 16,CROWDYS HILL SCHOOL,SN2 ,13/09/2023,"170,000.00"
104023262,Physical Support,Adults,Physical Support 65 and over,3rd Party Payments,Personal Budget - Domiciliary care,CRYSTAL CARING LIMITED,SN2 ,08/09/2023,"3,249.90"
104023261,Physical Support,Adults,Physical Support 65 and over,3rd Party Payments,Personal Budget - Domiciliary care,CRYSTAL CARING LIMITED,SN2 ,08/09/2023,"1,653.75"
106546234,Planned Maintenance Programme,HRA Capital Financing,Contingent Major Repairs,Capital,Contractor Payments,CRYSTAL ELECTRONICS LTD,NN6 ,25/09/2023,"5,788.11"
103224235,Other Repairs,Repairs,Unallocated job costs from OPEN system,Premises Costs,Repairs - Buildings,CRYSTAL ELECTRONICS LTD,NN6 ,04/09/2023,432.55
106546235,Property Management,Property,Corporate Repairs & Maintenance Programme,Premises Costs,Repairs - Buildings,CRYSTAL ELECTRONICS LTD,NN6 ,25/09/2023,"1,346.98"
Corporate Card Transaction,Community Health & Wellbeing,Public Health,Swindon Circles,Supplies and Services,Food,Cs* Tesco Stores Gc,,11/09/2023,1000
103789233,Highways Inspections & Maintenance,Highway Operations and Car Parking,Streetlighting,Supplies and Services,Materials,CU PHOSCO LIGHTING LTD,SG12,06/09/2023,"5,490.00"
103790233,Highways Inspections & Maintenance,Highway Operations and Car Parking,Streetlighting,Supplies and Services,Materials,CU PHOSCO LIGHTING LTD,SG12,06/09/2023,915.00
103788233,Highways Inspections & Maintenance,Highway Operations and Car Parking,Streetlighting,Supplies and Services,Materials,CU PHOSCO LIGHTING LTD,SG12,06/09/2023,"11,100.00"
105733233,Early Years Block,Dedicated Schools Grant (DSG),Free Nursery Education Commissioning - two year olds,3rd Party Payments,Contracts - Child Care,CURIOUS LEARNERS CHILDCARE LTD,SN5 ,20/09/2023,"6,484.80"
103809233,Early Years Block,Dedicated Schools Grant (DSG),Free Nursery Education Commissioning - three & four  year olds,3rd Party Payments,Contracts - Child Care,CURIOUS LEARNERS CHILDCARE LTD,SN5 ,06/09/2023,"1,926.60"
105734233,Early Years Block,Dedicated Schools Grant (DSG),Free Nursery Education Commissioning - three & four  year olds,3rd Party Payments,Contracts - Child Care,CURIOUS LEARNERS CHILDCARE LTD,SN5 ,20/09/2023,"8,526.00"
104010234,Repairs Staffing,Repairs,Maintenance,Supplies and Services,Fees,CURRIE & BROWN (UK) LTD,EC1N,08/09/2023,"11,550.00"
Corporate Card Transaction,Homelessness and Travellers,Housing Services,Warm Welcome Project,Supplies and Services,Equipment,Currys Online,,19/09/2023,590
103881299,Physical Support,Adults,Physical Support 18 - 64,Transfer Payments,Personal Budget - Direct Payments - Domiciliary Care,REDACTED PERSONAL DATA,SN25,06/09/2023,"3,200.09"
103881600,Physical Support,Adults,Physical Support 18 - 64,Transfer Payments,Personal Budget - Direct Payments - Domiciliary Care,REDACTED PERSONAL DATA,SP11,06/09/2023,"5,009.44"
103881256,Physical Support,Adults,Physical Support 18 - 64,Transfer Payments,Personal Budget - Direct Payments - Domiciliary Care,REDACTED PERSONAL DATA,SN3 ,06/09/2023,"2,818.49"
103881425,Learning Disabilities,Adults,Learning Disability 18 - 64,Transfer Payments,Personal Budget - Direct Payments - Domiciliary Care,REDACTED PERSONAL DATA,SN2 ,06/09/2023,"1,546.57"
103881463,Learning Disabilities,Adults,Learning Disability 18 - 64,Transfer Payments,Personal Budget - Direct Payments - Domiciliary Care,REDACTED PERSONAL DATA,SN2 ,06/09/2023,"10,563.21"
107376233,Museums & Heritage,Culture & Heritage,Steam:Income Generation,Supplies and Services,Goods for resale,DAPOL LTD,LL14,29/09/2023,"2,527.91"
103750233,Museums & Heritage,Culture & Heritage,Steam:Income Generation,Supplies and Services,Goods for resale,DAPOL LTD,LL14,06/09/2023,"1,800.09"
103881343,Physical Support,Adults,Physical Support 18 - 64,Transfer Payments,Personal Budget - Direct Payments - Domiciliary Care,REDACTED PERSONAL DATA,SN2 ,06/09/2023,652.50
103881409,Learning Disabilities,Adults,Learning Disability 18 - 64,Transfer Payments,Personal Budget - Direct Payments - Domiciliary Care,REDACTED PERSONAL DATA,SP11,06/09/2023,713.04
102434233,Highways & Transport,Highways & Transport,Rights of Way (ROW),Supplies and Services,Repairs & Maintenance,DAVID NEWMAN CONTRACTORS LTD,SN6 ,01/09/2023,"1,100.00"
106051233,Highways & Transport,Highways & Transport,Rights of Way (ROW),Supplies and Services,Repairs & Maintenance,DAVID NEWMAN CONTRACTORS LTD,SN6 ,20/09/2023,"2,250.00"
104121233,Streetsmart,Streetsmart,Waterside Fleet Hires,Transport Costs,Vehicle Hire / Contract,DAWSONRENTLES SWEEPERS,HD6 ,08/09/2023,"3,324.11"
104120233,Streetsmart,Streetsmart,Waterside Fleet Hires,Transport Costs,Vehicle Hire / Contract,DAWSONRENTLES SWEEPERS,HD6 ,08/09/2023,"2,976.49"
104123233,Streetsmart,Streetsmart,Waterside Fleet Hires,Transport Costs,Vehicle Hire / Contract,DAWSONRENTLES SWEEPERS,HD6 ,08/09/2023,"2,954.77"
104119233,Streetsmart,Streetsmart,Waterside Fleet Hires,Transport Costs,Vehicle Hire / Contract,DAWSONRENTLES SWEEPERS,HD6 ,08/09/2023,"2,259.53"
